Workbook

Sheet Prices Vertical (hidden)

Sheet Prices (hidden)
A2: €ur per 100 kg carcasses
A5: HEAVY LAMBS | D5: EU_H
A6: Week beginning
A7: Country Code | B7: Weights (%) | C7: 2012-12-24 | D7: =+C7+7 -> 2012-12-31 | E7: =+D7+7 -> 2013-01-07 | F7: 2013-01-14 | G7: 2013-01-21 | H7: 2013-01-28 | I7: 2013-02-04 | J7: 2013-02-11 | K7: 2013-02-18 | L7: 2013-02-25 | M7: 2013-03-04 | N7: 2013-03-11 | O7: 2013-03-18 | P7: 2013-03-25 | Q7: 2013-04-01 | R7: 2013-04-08 | S7: 2013-04-15 | T7: 2013-04-22 | U7: 2013-04-29 | V7: 2013-05-06 | W7: 2013-05-13 | X7: 2013-05-20 | Y7: 2013-05-27 | AA7: % over prev | AB7: % over prev
C8: 52 | D8: 01 | E8: 02 | F8: 03 | G8: 04 | H8: 05 | I8: 06 | J8: 07 | K8: 08 | L8: 09 | M8: 10 | N8: 11 | O8: 12 | P8: 13 | Q8: 14 | R8: 15 | S8: 16 | T8: 17 | U8: 18 | V8: 19 | W8: 20 | X8: 21 | Y8: 22 | AA8: week | AB8: year
A9: BE | B9: 0.46 | C9: =VLOOKUP($A9&$D$5&C$7,#REF!,12,0) ->  | D9: =VLOOKUP($A9&$D$5&D$7,#REF!,12,0) ->  | E9: =VLOOKUP($A9&$D$5&E$7,#REF!,12,0) ->  | F9: =VLOOKUP($A9&$D$5&F$7,#REF!,12,0) ->  | G9: =VLOOKUP($A9&$D$5&G$7,#REF!,12,0) ->  | H9: =VLOOKUP($A9&$D$5&H$7,#REF!,12,0) ->  | I9: =VLOOKUP($A9&$D$5&I$7,#REF!,12,0) ->  | J9: =VLOOKUP($A9&$D$5&J$7,#REF!,12,0) ->  | K9: =VLOOKUP($A9&$D$5&K$7,#REF!,12,0) ->  | L9: =VLOOKUP($A9&$D$5&L$7,#REF!,12,0) ->  | M9: =VLOOKUP($A9&$D$5&M$7,#REF!,12,0) ->  | N9: =VLOOKUP($A9&$D$5&N$7,#REF!,12,0) ->  | O9: =VLOOKUP($A9&$D$5&O$7,#REF!,12,0) ->  | P9: =VLOOKUP($A9&$D$5&P$7,#REF!,12,0) ->  | Q9: =VLOOKUP($A9&$D$5&Q$7,#REF!,12,0) ->  | R9: =VLOOKUP($A9&$D$5&R$7,#REF!,12,0) ->  | S9: =VLOOKUP($A9&$D$5&S$7,#REF!,12,0) ->  | T9: =VLOOKUP($A9&$D$5&T$7,#REF!,12,0) ->  | U9: =VLOOKUP($A9&$D$5&U$7,#REF!,12,0) ->  | V9: =VLOOKUP($A9&$D$5&V$7,#REF!,12,0) ->  | W9: =VLOOKUP($A9&$D$5&W$7,#REF!,12,0) ->  | X9: =VLOOKUP($A9&$D$5&X$7,#REF!,12,0) ->  | Y9: =VLOOKUP($A9&$D$5&Y$7,#REF!,12,0) ->  | AA9: =+(Y9/X9)-1 -> 
A10: DK | B10: 0.26 | Q10: =VLOOKUP($A10&$D$5&Q$7,#REF!,12,0) ->  | R10: =VLOOKUP($A10&$D$5&R$7,#REF!,12,0) ->  | S10: =VLOOKUP($A10&$D$5&S$7,#REF!,12,0) ->  | T10: =VLOOKUP($A10&$D$5&T$7,#REF!,12,0) ->  | U10: =VLOOKUP($A10&$D$5&U$7,#REF!,12,0) ->  | V10: =VLOOKUP($A10&$D$5&V$7,#REF!,12,0) ->  | W10: =VLOOKUP($A10&$D$5&W$7,#REF!,12,0) ->  | X10: =VLOOKUP($A10&$D$5&X$7,#REF!,12,0) ->  | Y10: =VLOOKUP($A10&$D$5&Y$7,#REF!,12,0) -> 
A11: DE | B11: 6.87 | C11: =VLOOKUP($A11&$D$5&C$7,#REF!,12,0) ->  | D11: =VLOOKUP($A11&$D$5&D$7,#REF!,12,0) ->  | E11: =VLOOKUP($A11&$D$5&E$7,#REF!,12,0) ->  | F11: =VLOOKUP($A11&$D$5&F$7,#REF!,12,0) ->  | G11: =VLOOKUP($A11&$D$5&G$7,#REF!,12,0) ->  | H11: =VLOOKUP($A11&$D$5&H$7,#REF!,12,0) ->  | I11: =VLOOKUP($A11&$D$5&I$7,#REF!,12,0) ->  | J11: =VLOOKUP($A11&$D$5&J$7,#REF!,12,0) ->  | K11: =VLOOKUP($A11&$D$5&K$7,#REF!,12,0) ->  | L11: =VLOOKUP($A11&$D$5&L$7,#REF!,12,0) ->  | M11: =VLOOKUP($A11&$D$5&M$7,#REF!,12,0) ->  | N11: =VLOOKUP($A11&$D$5&N$7,#REF!,12,0) ->  | O11: =VLOOKUP($A11&$D$5&O$7,#REF!,12,0) ->  | P11: =VLOOKUP($A11&$D$5&P$7,#REF!,12,0) ->  | Q11: =VLOOKUP($A11&$D$5&Q$7,#REF!,12,0) ->  | R11: =VLOOKUP($A11&$D$5&R$7,#REF!,12,0) ->  | S11: =VLOOKUP($A11&$D$5&S$7,#REF!,12,0) ->  | T11: =VLOOKUP($A11&$D$5&T$7,#REF!,12,0) ->  | U11: =VLOOKUP($A11&$D$5&U$7,#REF!,12,0) ->  | V11: =VLOOKUP($A11&$D$5&V$7,#REF!,12,0) ->  | W11: =VLOOKUP($A11&$D$5&W$7,#REF!,12,0) ->  | X11: =VLOOKUP($A11&$D$5&X$7,#REF!,12,0) ->  | Y11: =VLOOKUP($A11&$D$5&Y$7,#REF!,12,0) -> 
A12: EE | B12: 0.1 | C12: =VLOOKUP($A12&$D$5&C$7,#REF!,12,0) ->  | D12: =VLOOKUP($A12&$D$5&D$7,#REF!,12,0) ->  | E12: =VLOOKUP($A12&$D$5&E$7,#REF!,12,0) ->  | F12: =VLOOKUP($A12&$D$5&F$7,#REF!,12,0) ->  | G12: =VLOOKUP($A12&$D$5&G$7,#REF!,12,0) ->  | H12: =VLOOKUP($A12&$D$5&H$7,#REF!,12,0) ->  | I12: =VLOOKUP($A12&$D$5&I$7,#REF!,12,0) ->  | J12: =VLOOKUP($A12&$D$5&J$7,#REF!,12,0) ->  | K12: =VLOOKUP($A12&$D$5&K$7,#REF!,12,0) ->  | L12: =VLOOKUP($A12&$D$5&L$7,#REF!,12,0) ->  | M12: =VLOOKUP($A12&$D$5&M$7,#REF!,12,0) ->  | N12: =VLOOKUP($A12&$D$5&N$7,#REF!,12,0) ->  | O12: =VLOOKUP($A12&$D$5&O$7,#REF!,12,0) ->  | P12: =VLOOKUP($A12&$D$5&P$7,#REF!,12,0) ->  | Q12: =VLOOKUP($A12&$D$5&Q$7,#REF!,12,0) ->  | R12: =VLOOKUP($A12&$D$5&R$7,#REF!,12,0) ->  | S12: =VLOOKUP($A12&$D$5&S$7,#REF!,12,0) ->  | T12: =VLOOKUP($A12&$D$5&T$7,#REF!,12,0) ->  | U12: =VLOOKUP($A12&$D$5&U$7,#REF!,12,0) ->  | V12: =VLOOKUP($A12&$D$5&V$7,#REF!,12,0) ->  | W12: =VLOOKUP($A12&$D$5&W$7,#REF!,12,0) ->  | X12: =VLOOKUP($A12&$D$5&X$7,#REF!,12,0) ->  | Y12: =VLOOKUP($A12&$D$5&Y$7,#REF!,12,0) -> 
A13: IE | B13: 8.19 | C13: =VLOOKUP($A13&$D$5&C$7,#REF!,12,0) ->  | D13: =VLOOKUP($A13&$D$5&D$7,#REF!,12,0) ->  | E13: =VLOOKUP($A13&$D$5&E$7,#REF!,12,0) ->  | F13: =VLOOKUP($A13&$D$5&F$7,#REF!,12,0) ->  | G13: =VLOOKUP($A13&$D$5&G$7,#REF!,12,0) ->  | H13: =VLOOKUP($A13&$D$5&H$7,#REF!,12,0) ->  | I13: =VLOOKUP($A13&$D$5&I$7,#REF!,12,0) ->  | J13: =VLOOKUP($A13&$D$5&J$7,#REF!,12,0) ->  | K13: =VLOOKUP($A13&$D$5&K$7,#REF!,12,0) ->  | L13: =VLOOKUP($A13&$D$5&L$7,#REF!,12,0) ->  | M13: =VLOOKUP($A13&$D$5&M$7,#REF!,12,0) ->  | N13: =VLOOKUP($A13&$D$5&N$7,#REF!,12,0) ->  | O13: =VLOOKUP($A13&$D$5&O$7,#REF!,12,0) ->  | P13: =VLOOKUP($A13&$D$5&P$7,#REF!,12,0) ->  | Q13: =VLOOKUP($A13&$D$5&Q$7,#REF!,12,0) ->  | R13: =VLOOKUP($A13&$D$5&R$7,#REF!,12,0) ->  | S13: =VLOOKUP($A13&$D$5&S$7,#REF!,12,0) ->  | T13: =VLOOKUP($A13&$D$5&T$7,#REF!,12,0) ->  | U13: =VLOOKUP($A13&$D$5&U$7,#REF!,12,0) ->  | V13: =VLOOKUP($A13&$D$5&V$7,#REF!,12,0) ->  | W13: =VLOOKUP($A13&$D$5&W$7,#REF!,12,0) ->  | X13: =VLOOKUP($A13&$D$5&X$7,#REF!,12,0) ->  | Y13: =VLOOKUP($A13&$D$5&Y$7,#REF!,12,0) -> 
A14: ES | B14: 4.69 | C14: =VLOOKUP($A14&$D$5&C$7,#REF!,12,0) ->  | D14: =VLOOKUP($A14&$D$5&D$7,#REF!,12,0) ->  | E14: =VLOOKUP($A14&$D$5&E$7,#REF!,12,0) ->  | F14: =VLOOKUP($A14&$D$5&F$7,#REF!,12,0) ->  | G14: =VLOOKUP($A14&$D$5&G$7,#REF!,12,0) ->  | H14: =VLOOKUP($A14&$D$5&H$7,#REF!,12,0) ->  | I14: =VLOOKUP($A14&$D$5&I$7,#REF!,12,0) ->  | J14: =VLOOKUP($A14&$D$5&J$7,#REF!,12,0) ->  | K14: =VLOOKUP($A14&$D$5&K$7,#REF!,12,0) ->  | L14: =VLOOKUP($A14&$D$5&L$7,#REF!,12,0) ->  | M14: =VLOOKUP($A14&$D$5&M$7,#REF!,12,0) ->  | N14: =VLOOKUP($A14&$D$5&N$7,#REF!,12,0) ->  | O14: =VLOOKUP($A14&$D$5&O$7,#REF!,12,0) ->  | P14: =VLOOKUP($A14&$D$5&P$7,#REF!,12,0) ->  | Q14: =VLOOKUP($A14&$D$5&Q$7,#REF!,12,0) ->  | R14: =VLOOKUP($A14&$D$5&R$7,#REF!,12,0) ->  | S14: =VLOOKUP($A14&$D$5&S$7,#REF!,12,0) ->  | T14: =VLOOKUP($A14&$D$5&T$7,#REF!,12,0) ->  | U14: =VLOOKUP($A14&$D$5&U$7,#REF!,12,0) ->  | V14: =VLOOKUP($A14&$D$5&V$7,#REF!,12,0) ->  | W14: =VLOOKUP($A14&$D$5&W$7,#REF!,12,0) ->  | X14: =VLOOKUP($A14&$D$5&X$7,#REF!,12,0) ->  | Y14: =VLOOKUP($A14&$D$5&Y$7,#REF!,12,0) -> 
A15: FR | B15: 17.74 | C15: =VLOOKUP($A15&$D$5&C$7,#REF!,12,0) ->  | D15: =VLOOKUP($A15&$D$5&D$7,#REF!,12,0) ->  | E15: =VLOOKUP($A15&$D$5&E$7,#REF!,12,0) ->  | F15: =VLOOKUP($A15&$D$5&F$7,#REF!,12,0) ->  | G15: =VLOOKUP($A15&$D$5&G$7,#REF!,12,0) ->  | H15: =VLOOKUP($A15&$D$5&H$7,#REF!,12,0) ->  | I15: =VLOOKUP($A15&$D$5&I$7,#REF!,12,0) ->  | J15: =VLOOKUP($A15&$D$5&J$7,#REF!,12,0) ->  | K15: =VLOOKUP($A15&$D$5&K$7,#REF!,12,0) ->  | L15: =VLOOKUP($A15&$D$5&L$7,#REF!,12,0) ->  | M15: =VLOOKUP($A15&$D$5&M$7,#REF!,12,0) ->  | N15: =VLOOKUP($A15&$D$5&N$7,#REF!,12,0) ->  | O15: =VLOOKUP($A15&$D$5&O$7,#REF!,12,0) ->  | P15: =VLOOKUP($A15&$D$5&P$7,#REF!,12,0) ->  | Q15: =VLOOKUP($A15&$D$5&Q$7,#REF!,12,0) ->  | R15: =VLOOKUP($A15&$D$5&R$7,#REF!,12,0) ->  | S15: =VLOOKUP($A15&$D$5&S$7,#REF!,12,0) ->  | T15: =VLOOKUP($A15&$D$5&T$7,#REF!,12,0) ->  | U15: =VLOOKUP($A15&$D$5&U$7,#REF!,12,0) ->  | V15: =VLOOKUP($A15&$D$5&V$7,#REF!,12,0) ->  | W15: =VLOOKUP($A15&$D$5&W$7,#REF!,12,0) ->  | X15: =VLOOKUP($A15&$D$5&X$7,#REF!,12,0) ->  | Y15: =VLOOKUP($A15&$D$5&Y$7,#REF!,12,0) -> 
A16: CY | B16: 0.43 | C16: =VLOOKUP($A16&$D$5&C$7,#REF!,12,0) ->  | D16: =VLOOKUP($A16&$D$5&D$7,#REF!,12,0) ->  | E16: =VLOOKUP($A16&$D$5&E$7,#REF!,12,0) ->  | F16: =VLOOKUP($A16&$D$5&F$7,#REF!,12,0) ->  | G16: =VLOOKUP($A16&$D$5&G$7,#REF!,12,0) ->  | H16: =VLOOKUP($A16&$D$5&H$7,#REF!,12,0) ->  | I16: =VLOOKUP($A16&$D$5&I$7,#REF!,12,0) ->  | J16: =VLOOKUP($A16&$D$5&J$7,#REF!,12,0) ->  | K16: =VLOOKUP($A16&$D$5&K$7,#REF!,12,0) ->  | L16: =VLOOKUP($A16&$D$5&L$7,#REF!,12,0) ->  | M16: =VLOOKUP($A16&$D$5&M$7,#REF!,12,0) ->  | N16: =VLOOKUP($A16&$D$5&N$7,#REF!,12,0) ->  | O16: =VLOOKUP($A16&$D$5&O$7,#REF!,12,0) ->  | P16: =VLOOKUP($A16&$D$5&P$7,#REF!,12,0) ->  | Q16: =VLOOKUP($A16&$D$5&Q$7,#REF!,12,0) ->  | R16: =VLOOKUP($A16&$D$5&R$7,#REF!,12,0) ->  | S16: =VLOOKUP($A16&$D$5&S$7,#REF!,12,0) ->  | T16: =VLOOKUP($A16&$D$5&T$7,#REF!,12,0) ->  | U16: =VLOOKUP($A16&$D$5&U$7,#REF!,12,0) ->  | V16: =VLOOKUP($A16&$D$5&V$7,#REF!,12,0) ->  | W16: =VLOOKUP($A16&$D$5&W$7,#REF!,12,0) ->  | X16: =VLOOKUP($A16&$D$5&X$7,#REF!,12,0) ->  | Y16: =VLOOKUP($A16&$D$5&Y$7,#REF!,12,0) -> 
A17: NL | B17: 2.19 | C17: =VLOOKUP($A17&$D$5&C$7,#REF!,12,0) ->  | D17: =VLOOKUP($A17&$D$5&D$7,#REF!,12,0) ->  | E17: =VLOOKUP($A17&$D$5&E$7,#REF!,12,0) ->  | F17: =VLOOKUP($A17&$D$5&F$7,#REF!,12,0) ->  | G17: =VLOOKUP($A17&$D$5&G$7,#REF!,12,0) ->  | H17: =VLOOKUP($A17&$D$5&H$7,#REF!,12,0) ->  | I17: =VLOOKUP($A17&$D$5&I$7,#REF!,12,0) ->  | J17: =VLOOKUP($A17&$D$5&J$7,#REF!,12,0) ->  | K17: =VLOOKUP($A17&$D$5&K$7,#REF!,12,0) ->  | L17: =VLOOKUP($A17&$D$5&L$7,#REF!,12,0) ->  | M17: =VLOOKUP($A17&$D$5&M$7,#REF!,12,0) ->  | N17: =VLOOKUP($A17&$D$5&N$7,#REF!,12,0) ->  | O17: =VLOOKUP($A17&$D$5&O$7,#REF!,12,0) ->  | P17: =VLOOKUP($A17&$D$5&P$7,#REF!,12,0) ->  | Q17: =VLOOKUP($A17&$D$5&Q$7,#REF!,12,0) ->  | R17: =VLOOKUP($A17&$D$5&R$7,#REF!,12,0) ->  | S17: =VLOOKUP($A17&$D$5&S$7,#REF!,12,0) ->  | T17: =VLOOKUP($A17&$D$5&T$7,#REF!,12,0) ->  | U17: =VLOOKUP($A17&$D$5&U$7,#REF!,12,0) ->  | V17: =VLOOKUP($A17&$D$5&V$7,#REF!,12,0) ->  | W17: =VLOOKUP($A17&$D$5&W$7,#REF!,12,0) ->  | X17: =VLOOKUP($A17&$D$5&X$7,#REF!,12,0) ->  | Y17: =VLOOKUP($A17&$D$5&Y$7,#REF!,12,0) -> 
A18: AT | B18: 1.28 | C18: =VLOOKUP($A18&$D$5&C$7,#REF!,12,0) ->  | D18: =VLOOKUP($A18&$D$5&D$7,#REF!,12,0) ->  | E18: =VLOOKUP($A18&$D$5&E$7,#REF!,12,0) ->  | F18: =VLOOKUP($A18&$D$5&F$7,#REF!,12,0) ->  | G18: =VLOOKUP($A18&$D$5&G$7,#REF!,12,0) ->  | H18: =VLOOKUP($A18&$D$5&H$7,#REF!,12,0) ->  | I18: =VLOOKUP($A18&$D$5&I$7,#REF!,12,0) ->  | J18: =VLOOKUP($A18&$D$5&J$7,#REF!,12,0) ->  | K18: =VLOOKUP($A18&$D$5&K$7,#REF!,12,0) ->  | L18: =VLOOKUP($A18&$D$5&L$7,#REF!,12,0) ->  | M18: =VLOOKUP($A18&$D$5&M$7,#REF!,12,0) ->  | N18: =VLOOKUP($A18&$D$5&N$7,#REF!,12,0) ->  | O18: =VLOOKUP($A18&$D$5&O$7,#REF!,12,0) ->  | P18: =VLOOKUP($A18&$D$5&P$7,#REF!,12,0) ->  | Q18: =VLOOKUP($A18&$D$5&Q$7,#REF!,12,0) ->  | R18: =VLOOKUP($A18&$D$5&R$7,#REF!,12,0) ->  | S18: =VLOOKUP($A18&$D$5&S$7,#REF!,12,0) ->  | T18: =VLOOKUP($A18&$D$5&T$7,#REF!,12,0) ->  | U18: =VLOOKUP($A18&$D$5&U$7,#REF!,12,0) ->  | V18: =VLOOKUP($A18&$D$5&V$7,#REF!,12,0) ->  | W18: =VLOOKUP($A18&$D$5&W$7,#REF!,12,0) ->  | X18: =VLOOKUP($A18&$D$5&X$7,#REF!,12,0) ->  | Y18: =VLOOKUP($A18&$D$5&Y$7,#REF!,12,0) -> 
A19: PL | B19: 0.12 | C19: =VLOOKUP($A19&$D$5&C$7,#REF!,12,0) ->  | D19: =VLOOKUP($A19&$D$5&D$7,#REF!,12,0) ->  | E19: =VLOOKUP($A19&$D$5&E$7,#REF!,12,0) ->  | F19: =VLOOKUP($A19&$D$5&F$7,#REF!,12,0) ->  | G19: =VLOOKUP($A19&$D$5&G$7,#REF!,12,0) ->  | H19: =VLOOKUP($A19&$D$5&H$7,#REF!,12,0) ->  | I19: =VLOOKUP($A19&$D$5&I$7,#REF!,12,0) ->  | J19: =VLOOKUP($A19&$D$5&J$7,#REF!,12,0) ->  | K19: =VLOOKUP($A19&$D$5&K$7,#REF!,12,0) ->  | L19: =VLOOKUP($A19&$D$5&L$7,#REF!,12,0) ->  | M19: =VLOOKUP($A19&$D$5&M$7,#REF!,12,0) ->  | N19: =VLOOKUP($A19&$D$5&N$7,#REF!,12,0) ->  | O19: =VLOOKUP($A19&$D$5&O$7,#REF!,12,0) ->  | P19: =VLOOKUP($A19&$D$5&P$7,#REF!,12,0) ->  | Q19: =VLOOKUP($A19&$D$5&Q$7,#REF!,12,0) ->  | R19: =VLOOKUP($A19&$D$5&R$7,#REF!,12,0) ->  | S19: =VLOOKUP($A19&$D$5&S$7,#REF!,12,0) ->  | T19: =VLOOKUP($A19&$D$5&T$7,#REF!,12,0) ->  | U19: =VLOOKUP($A19&$D$5&U$7,#REF!,12,0) ->  | V19: =VLOOKUP($A19&$D$5&V$7,#REF!,12,0) ->  | W19: =VLOOKUP($A19&$D$5&W$7,#REF!,12,0) ->  | X19: =VLOOKUP($A19&$D$5&X$7,#REF!,12,0) ->  | Y19: =VLOOKUP($A19&$D$5&Y$7,#REF!,12,0) -> 
A20: RO | B20: 7.47 | C20: =VLOOKUP($A20&$D$5&C$7,#REF!,12,0) ->  | D20: =VLOOKUP($A20&$D$5&D$7,#REF!,12,0) ->  | E20: =VLOOKUP($A20&$D$5&E$7,#REF!,12,0) ->  | F20: =VLOOKUP($A20&$D$5&F$7,#REF!,12,0) ->  | G20: =VLOOKUP($A20&$D$5&G$7,#REF!,12,0) ->  | H20: =VLOOKUP($A20&$D$5&H$7,#REF!,12,0) ->  | I20: =VLOOKUP($A20&$D$5&I$7,#REF!,12,0) ->  | J20: =VLOOKUP($A20&$D$5&J$7,#REF!,12,0) ->  | K20: =VLOOKUP($A20&$D$5&K$7,#REF!,12,0) ->  | L20: =VLOOKUP($A20&$D$5&L$7,#REF!,12,0) ->  | M20: =VLOOKUP($A20&$D$5&M$7,#REF!,12,0) ->  | N20: =VLOOKUP($A20&$D$5&N$7,#REF!,12,0) ->  | O20: =VLOOKUP($A20&$D$5&O$7,#REF!,12,0) ->  | P20: =VLOOKUP($A20&$D$5&P$7,#REF!,12,0) ->  | Q20: =VLOOKUP($A20&$D$5&Q$7,#REF!,12,0) ->  | R20: =VLOOKUP($A20&$D$5&R$7,#REF!,12,0) ->  | S20: =VLOOKUP($A20&$D$5&S$7,#REF!,12,0) ->  | T20: =VLOOKUP($A20&$D$5&T$7,#REF!,12,0) ->  | U20: =VLOOKUP($A20&$D$5&U$7,#REF!,12,0) ->  | V20: =VLOOKUP($A20&$D$5&V$7,#REF!,12,0) ->  | W20: =VLOOKUP($A20&$D$5&W$7,#REF!,12,0) ->  | X20: =VLOOKUP($A20&$D$5&X$7,#REF!,12,0) ->  | Y20: =VLOOKUP($A20&$D$5&Y$7,#REF!,12,0) -> 
A21: SE | B21: 0.95 | C21: =VLOOKUP($A21&$D$5&C$7,#REF!,12,0) ->  | D21: =VLOOKUP($A21&$D$5&D$7,#REF!,12,0) ->  | E21: =VLOOKUP($A21&$D$5&E$7,#REF!,12,0) ->  | F21: =VLOOKUP($A21&$D$5&F$7,#REF!,12,0) ->  | G21: =VLOOKUP($A21&$D$5&G$7,#REF!,12,0) ->  | H21: =VLOOKUP($A21&$D$5&H$7,#REF!,12,0) ->  | I21: =VLOOKUP($A21&$D$5&I$7,#REF!,12,0) ->  | J21: =VLOOKUP($A21&$D$5&J$7,#REF!,12,0) ->  | K21: =VLOOKUP($A21&$D$5&K$7,#REF!,12,0) ->  | L21: =VLOOKUP($A21&$D$5&L$7,#REF!,12,0) ->  | M21: =VLOOKUP($A21&$D$5&M$7,#REF!,12,0) ->  | N21: =VLOOKUP($A21&$D$5&N$7,#REF!,12,0) ->  | O21: =VLOOKUP($A21&$D$5&O$7,#REF!,12,0) ->  | P21: =VLOOKUP($A21&$D$5&P$7,#REF!,12,0) ->  | Q21: =VLOOKUP($A21&$D$5&Q$7,#REF!,12,0) ->  | R21: =VLOOKUP($A21&$D$5&R$7,#REF!,12,0) ->  | S21: =VLOOKUP($A21&$D$5&S$7,#REF!,12,0) ->  | T21: =VLOOKUP($A21&$D$5&T$7,#REF!,12,0) ->  | U21: =VLOOKUP($A21&$D$5&U$7,#REF!,12,0) ->  | V21: =VLOOKUP($A21&$D$5&V$7,#REF!,12,0) ->  | W21: =VLOOKUP($A21&$D$5&W$7,#REF!,12,0) ->  | X21: =VLOOKUP($A21&$D$5&X$7,#REF!,12,0) ->  | Y21: =VLOOKUP($A21&$D$5&Y$7,#REF!,12,0) -> 
A22: GB | B22: 92.87 | C22: =VLOOKUP($A22&$D$5&C$7,#REF!,12,0) ->  | D22: =VLOOKUP($A22&$D$5&D$7,#REF!,12,0) ->  | E22: =VLOOKUP($A22&$D$5&E$7,#REF!,12,0) ->  | F22: =VLOOKUP($A22&$D$5&F$7,#REF!,12,0) ->  | G22: =VLOOKUP($A22&$D$5&G$7,#REF!,12,0) ->  | H22: =VLOOKUP($A22&$D$5&H$7,#REF!,12,0) ->  | I22: =VLOOKUP($A22&$D$5&I$7,#REF!,12,0) ->  | J22: =VLOOKUP($A22&$D$5&J$7,#REF!,12,0) ->  | K22: =VLOOKUP($A22&$D$5&K$7,#REF!,12,0) ->  | L22: =VLOOKUP($A22&$D$5&L$7,#REF!,12,0) ->  | M22: =VLOOKUP($A22&$D$5&M$7,#REF!,12,0) ->  | N22: =VLOOKUP($A22&$D$5&N$7,#REF!,12,0) ->  | O22: =VLOOKUP($A22&$D$5&O$7,#REF!,12,0) ->  | P22: =VLOOKUP($A22&$D$5&P$7,#REF!,12,0) ->  | Q22: =VLOOKUP($A22&$D$5&Q$7,#REF!,12,0) ->  | R22: =VLOOKUP($A22&$D$5&R$7,#REF!,12,0) ->  | S22: =VLOOKUP($A22&$D$5&S$7,#REF!,12,0) ->  | T22: =VLOOKUP($A22&$D$5&T$7,#REF!,12,0) ->  | U22: =VLOOKUP($A22&$D$5&U$7,#REF!,12,0) ->  | V22: =VLOOKUP($A22&$D$5&V$7,#REF!,12,0) ->  | W22: =VLOOKUP($A22&$D$5&W$7,#REF!,12,0) ->  | X22: =VLOOKUP($A22&$D$5&X$7,#REF!,12,0) ->  | Y22: =VLOOKUP($A22&$D$5&Y$7,#REF!,12,0) -> 
A23: NI | B23: 7.13 | C23: =VLOOKUP($A23&$D$5&C$7,#REF!,12,0) ->  | D23: =VLOOKUP($A23&$D$5&D$7,#REF!,12,0) ->  | E23: =VLOOKUP($A23&$D$5&E$7,#REF!,12,0) ->  | F23: =VLOOKUP($A23&$D$5&F$7,#REF!,12,0) ->  | G23: =VLOOKUP($A23&$D$5&G$7,#REF!,12,0) ->  | H23: =VLOOKUP($A23&$D$5&H$7,#REF!,12,0) ->  | I23: =VLOOKUP($A23&$D$5&I$7,#REF!,12,0) ->  | J23: =VLOOKUP($A23&$D$5&J$7,#REF!,12,0) ->  | K23: =VLOOKUP($A23&$D$5&K$7,#REF!,12,0) ->  | L23: =VLOOKUP($A23&$D$5&L$7,#REF!,12,0) ->  | M23: =VLOOKUP($A23&$D$5&M$7,#REF!,12,0) ->  | N23: =VLOOKUP($A23&$D$5&N$7,#REF!,12,0) ->  | O23: =VLOOKUP($A23&$D$5&O$7,#REF!,12,0) ->  | P23: =VLOOKUP($A23&$D$5&P$7,#REF!,12,0) ->  | Q23: =VLOOKUP($A23&$D$5&Q$7,#REF!,12,0) ->  | R23: =VLOOKUP($A23&$D$5&R$7,#REF!,12,0) ->  | S23: =VLOOKUP($A23&$D$5&S$7,#REF!,12,0) ->  | T23: =VLOOKUP($A23&$D$5&T$7,#REF!,12,0) ->  | U23: =VLOOKUP($A23&$D$5&U$7,#REF!,12,0) ->  | V23: =VLOOKUP($A23&$D$5&V$7,#REF!,12,0) ->  | W23: =VLOOKUP($A23&$D$5&W$7,#REF!,12,0) ->  | X23: =VLOOKUP($A23&$D$5&X$7,#REF!,12,0) ->  | Y23: =VLOOKUP($A23&$D$5&Y$7,#REF!,12,0) -> 
A24: UK | B24: 49.25 | C24: =(C$22*$B$22+C$23*$B$23)/100 ->  | D24: =(D$22*$B$22+D$23*$B$23)/100 -> 
A25: EU_H | B25: 100 | C25: 453.4246 | D25: =+(D9*$B$9+D11*$B$11+D12*$B$12+D13*$B$13+D14*$B$14+D15*$B$15+D16*$B$16+D17*$B$17+D18*$B$18+D19*$B$19+D20*$B$20+D21*$B$21+D24*$B$24)/100-$B$10 ->  | N25: =+(N9*$B$9+N10*$B$10+N11*$B$11+N12*$B$12+N13*$B$13+N14*$B$14+N15*$B$15+N16*$B$16+N17*$B$17+N18*$B$18+N19*$B$19+N20*$B$20+N21*$B$21+N24*$B$24)/100 ->  | O25: =+(O9*$B$9+O10*$B$10+O11*$B$11+O12*$B$12+O13*$B$13+O14*$B$14+O15*$B$15+O16*$B$16+O17*$B$17+O18*$B$18+O19*$B$19+O20*$B$20+O21*$B$21+O24*$B$24)/100 ->  | Y25: =+(Y9*$B$9+Y10*$B$10+Y11*$B$11+Y12*$B$12+Y13*$B$13+Y14*$B$14+Y15*$B$15+Y16*$B$16+Y17*$B$17+Y18*$B$18+Y19*$B$19+Y20*$B$20+Y21*$B$21+Y24*$B$24)/100 -> 
A26: EU_H 13/12 | C26: -0.1437168867 | D26: -0.1530731436 | E26: -0.1563361865 | F26: -0.1697794478 | G26: -0.1643283566 | H26: -0.1848832596 | I26: -0.1661579621 | J26: -0.1622540578 | K26: -0.1478300947 | L26: -0.141341683 | M26: -0.1038963593 | N26: -0.07523987636 | O26: -0.0467438648 | P26: -0.05878430342 | Q26: -0.05413362759 | R26: -0.03510530824 | S26: -0.04295632862 | T26: -0.003800169187 | U26: 0.03501485236 | V26: 0.03093205133 | W26: 0.04547514085 | X26: 0.05318926169 | Y26: 0.06090338253
A28: LIGHT LAMBS | D28: EU_L
A29: Week beginning
A30: Country Code | B30: Weights (%) | C30: 2012-12-24 | D30: =+C30+7 -> 2012-12-31 | E30: =+D30+7 -> 2013-01-07 | F30: 2013-01-14 | G30: 2013-01-21 | H30: 2013-01-28 | I30: 2013-02-04 | J30: 2013-02-11 | K30: 2013-02-18 | L30: 2013-02-25 | M30: 2013-03-04 | N30: 2013-03-11 | O30: 2013-03-18 | P30: 2013-03-25 | Q30: 2013-04-01 | R30: 2013-04-08 | S30: 2013-04-15 | T30: 2013-04-22 | U30: 2013-04-29 | V30: 2013-05-06 | W30: 2013-05-13 | X30: 2013-05-20 | Y30: 2013-05-27 | AA30: % over prev | AB30: % over prev
C31: 52 | D31: 01 | E31: 02 | F31: 03 | G31: 04 | H31: 05 | I31: 06 | J31: 07 | K31: 08 | L31: 09 | M31: 10 | N31: 11 | O31: 12 | P31: 13 | Q31: 14 | R31: 15 | S31: 16 | T31: 17 | U31: 18 | V31: 19 | W31: 20 | X31: 21 | Y31: 22 | AA31: week | AB31: year
A32: BG | B32: 4.77 | C32: =VLOOKUP($A32&$D$28&C$30,#REF!,12,0) ->  | D32: =VLOOKUP($A32&$D$28&D$30,#REF!,12,0) ->  | E32: =VLOOKUP($A32&$D$28&E$30,#REF!,12,0) ->  | F32: =VLOOKUP($A32&$D$28&F$30,#REF!,12,0) ->  | G32: =VLOOKUP($A32&$D$28&G$30,#REF!,12,0) ->  | H32: =VLOOKUP($A32&$D$28&H$30,#REF!,12,0) ->  | I32: =VLOOKUP($A32&$D$28&I$30,#REF!,12,0) ->  | J32: =VLOOKUP($A32&$D$28&J$30,#REF!,12,0) ->  | K32: =VLOOKUP($A32&$D$28&K$30,#REF!,12,0) ->  | L32: =VLOOKUP($A32&$D$28&L$30,#REF!,12,0) ->  | M32: =VLOOKUP($A32&$D$28&M$30,#REF!,12,0) ->  | N32: =VLOOKUP($A32&$D$28&N$30,#REF!,12,0) ->  | O32: =VLOOKUP($A32&$D$28&O$30,#REF!,12,0) ->  | P32: =VLOOKUP($A32&$D$28&P$30,#REF!,12,0) ->  | Q32: =VLOOKUP($A32&$D$28&Q$30,#REF!,12,0) ->  | R32: =VLOOKUP($A32&$D$28&R$30,#REF!,12,0) ->  | S32: =VLOOKUP($A32&$D$28&S$30,#REF!,12,0) ->  | T32: =VLOOKUP($A32&$D$28&T$30,#REF!,12,0) ->  | U32: =VLOOKUP($A32&$D$28&U$30,#REF!,12,0) ->  | V32: =VLOOKUP($A32&$D$28&V$30,#REF!,12,0) ->  | W32: =VLOOKUP($A32&$D$28&W$30,#REF!,12,0) ->  | X32: =VLOOKUP($A32&$D$28&X$30,#REF!,12,0) ->  | Y32: =VLOOKUP($A32&$D$28&Y$30,#REF!,12,0) ->  | AA32: =+(Y32/X32)-1 -> 
A33: GR | B33: 31.88 | C33: =VLOOKUP($A33&$D$28&C$30,#REF!,12,0) ->  | D33: =VLOOKUP($A33&$D$28&D$30,#REF!,12,0) ->  | E33: =VLOOKUP($A33&$D$28&E$30,#REF!,12,0) ->  | F33: =VLOOKUP($A33&$D$28&F$30,#REF!,12,0) ->  | G33: =VLOOKUP($A33&$D$28&G$30,#REF!,12,0) ->  | H33: =VLOOKUP($A33&$D$28&H$30,#REF!,12,0) ->  | I33: =VLOOKUP($A33&$D$28&I$30,#REF!,12,0) ->  | J33: =VLOOKUP($A33&$D$28&J$30,#REF!,12,0) ->  | K33: =VLOOKUP($A33&$D$28&K$30,#REF!,12,0) ->  | L33: =VLOOKUP($A33&$D$28&L$30,#REF!,12,0) ->  | M33: =VLOOKUP($A33&$D$28&M$30,#REF!,12,0) ->  | N33: =VLOOKUP($A33&$D$28&N$30,#REF!,12,0) ->  | O33: =VLOOKUP($A33&$D$28&O$30,#REF!,12,0) ->  | P33: =VLOOKUP($A33&$D$28&P$30,#REF!,12,0) ->  | Q33: =VLOOKUP($A33&$D$28&Q$30,#REF!,12,0) ->  | R33: =VLOOKUP($A33&$D$28&R$30,#REF!,12,0) ->  | S33: =VLOOKUP($A33&$D$28&S$30,#REF!,12,0) ->  | T33: =VLOOKUP($A33&$D$28&T$30,#REF!,12,0) ->  | U33: =VLOOKUP($A33&$D$28&U$30,#REF!,12,0) ->  | V33: =VLOOKUP($A33&$D$28&V$30,#REF!,12,0) ->  | W33: =VLOOKUP($A33&$D$28&W$30,#REF!,12,0) ->  | X33: =VLOOKUP($A33&$D$28&X$30,#REF!,12,0) ->  | Y33: =VLOOKUP($A33&$D$28&Y$30,#REF!,12,0) -> 
A34: ES | B34: 39.55 | C34: =VLOOKUP($A34&$D$28&C$30,#REF!,12,0) ->  | D34: =VLOOKUP($A34&$D$28&D$30,#REF!,12,0) ->  | E34: =VLOOKUP($A34&$D$28&E$30,#REF!,12,0) ->  | F34: =VLOOKUP($A34&$D$28&F$30,#REF!,12,0) ->  | G34: =VLOOKUP($A34&$D$28&G$30,#REF!,12,0) ->  | H34: =VLOOKUP($A34&$D$28&H$30,#REF!,12,0) ->  | I34: =VLOOKUP($A34&$D$28&I$30,#REF!,12,0) ->  | J34: =VLOOKUP($A34&$D$28&J$30,#REF!,12,0) ->  | K34: =VLOOKUP($A34&$D$28&K$30,#REF!,12,0) ->  | L34: =VLOOKUP($A34&$D$28&L$30,#REF!,12,0) ->  | M34: =VLOOKUP($A34&$D$28&M$30,#REF!,12,0) ->  | N34: =VLOOKUP($A34&$D$28&N$30,#REF!,12,0) ->  | O34: =VLOOKUP($A34&$D$28&O$30,#REF!,12,0) ->  | P34: =VLOOKUP($A34&$D$28&P$30,#REF!,12,0) ->  | Q34: =VLOOKUP($A34&$D$28&Q$30,#REF!,12,0) ->  | R34: =VLOOKUP($A34&$D$28&R$30,#REF!,12,0) ->  | S34: =VLOOKUP($A34&$D$28&S$30,#REF!,12,0) ->  | T34: =VLOOKUP($A34&$D$28&T$30,#REF!,12,0) ->  | U34: =VLOOKUP($A34&$D$28&U$30,#REF!,12,0) ->  | V34: =VLOOKUP($A34&$D$28&V$30,#REF!,12,0) ->  | W34: =VLOOKUP($A34&$D$28&W$30,#REF!,12,0) ->  | X34: =VLOOKUP($A34&$D$28&X$30,#REF!,12,0) ->  | Y34: =VLOOKUP($A34&$D$28&Y$30,#REF!,12,0) -> 
A35: IT | B35: 12.51 | C35: =VLOOKUP($A35&$D$28&C$30,#REF!,12,0) ->  | D35: =VLOOKUP($A35&$D$28&D$30,#REF!,12,0) ->  | E35: =VLOOKUP($A35&$D$28&E$30,#REF!,12,0) ->  | F35: =VLOOKUP($A35&$D$28&F$30,#REF!,12,0) ->  | G35: =VLOOKUP($A35&$D$28&G$30,#REF!,12,0) ->  | H35: =VLOOKUP($A35&$D$28&H$30,#REF!,12,0) ->  | I35: =VLOOKUP($A35&$D$28&I$30,#REF!,12,0) ->  | J35: =VLOOKUP($A35&$D$28&J$30,#REF!,12,0) ->  | K35: =VLOOKUP($A35&$D$28&K$30,#REF!,12,0) ->  | L35: =VLOOKUP($A35&$D$28&L$30,#REF!,12,0) ->  | M35: =VLOOKUP($A35&$D$28&M$30,#REF!,12,0) ->  | N35: =VLOOKUP($A35&$D$28&N$30,#REF!,12,0) ->  | O35: =VLOOKUP($A35&$D$28&O$30,#REF!,12,0) ->  | P35: =VLOOKUP($A35&$D$28&P$30,#REF!,12,0) ->  | Q35: =VLOOKUP($A35&$D$28&Q$30,#REF!,12,0) ->  | R35: =VLOOKUP($A35&$D$28&R$30,#REF!,12,0) ->  | S35: =VLOOKUP($A35&$D$28&S$30,#REF!,12,0) ->  | T35: =VLOOKUP($A35&$D$28&T$30,#REF!,12,0) ->  | U35: =VLOOKUP($A35&$D$28&U$30,#REF!,12,0) ->  | V35: =VLOOKUP($A35&$D$28&V$30,#REF!,12,0) ->  | W35: =VLOOKUP($A35&$D$28&W$30,#REF!,12,0) ->  | X35: =VLOOKUP($A35&$D$28&X$30,#REF!,12,0) ->  | Y35: =VLOOKUP($A35&$D$28&Y$30,#REF!,12,0) -> 
A36: CY
A37: HU | B37: 0.38 | C37: =VLOOKUP($A37&$D$28&C$30,#REF!,12,0) ->  | D37: =VLOOKUP($A37&$D$28&D$30,#REF!,12,0) ->  | E37: =VLOOKUP($A37&$D$28&E$30,#REF!,12,0) ->  | F37: =VLOOKUP($A37&$D$28&F$30,#REF!,12,0) ->  | G37: =VLOOKUP($A37&$D$28&G$30,#REF!,12,0) ->  | H37: =VLOOKUP($A37&$D$28&H$30,#REF!,12,0) ->  | I37: =VLOOKUP($A37&$D$28&I$30,#REF!,12,0) ->  | J37: =VLOOKUP($A37&$D$28&J$30,#REF!,12,0) ->  | K37: =VLOOKUP($A37&$D$28&K$30,#REF!,12,0) ->  | L37: =VLOOKUP($A37&$D$28&L$30,#REF!,12,0) ->  | M37: =VLOOKUP($A37&$D$28&M$30,#REF!,12,0) ->  | N37: =VLOOKUP($A37&$D$28&N$30,#REF!,12,0) ->  | O37: =VLOOKUP($A37&$D$28&O$30,#REF!,12,0) ->  | P37: =VLOOKUP($A37&$D$28&P$30,#REF!,12,0) ->  | Q37: =VLOOKUP($A37&$D$28&Q$30,#REF!,12,0) ->  | R37: =VLOOKUP($A37&$D$28&R$30,#REF!,12,0) ->  | S37: =VLOOKUP($A37&$D$28&S$30,#REF!,12,0) ->  | T37: =VLOOKUP($A37&$D$28&T$30,#REF!,12,0) ->  | U37: =VLOOKUP($A37&$D$28&U$30,#REF!,12,0) ->  | V37: =VLOOKUP($A37&$D$28&V$30,#REF!,12,0) ->  | W37: =VLOOKUP($A37&$D$28&W$30,#REF!,12,0) ->  | X37: =VLOOKUP($A37&$D$28&X$30,#REF!,12,0) ->  | Y37: =VLOOKUP($A37&$D$28&Y$30,#REF!,12,0) ->  | AA37: =+(Y37/X37)-1 -> 
A38: PT | B38: 7 | C38: =VLOOKUP($A38&$D$28&C$30,#REF!,12,0) ->  | D38: =VLOOKUP($A38&$D$28&D$30,#REF!,12,0) ->  | E38: =VLOOKUP($A38&$D$28&E$30,#REF!,12,0) ->  | F38: =VLOOKUP($A38&$D$28&F$30,#REF!,12,0) ->  | G38: =VLOOKUP($A38&$D$28&G$30,#REF!,12,0) ->  | H38: =VLOOKUP($A38&$D$28&H$30,#REF!,12,0) ->  | I38: =VLOOKUP($A38&$D$28&I$30,#REF!,12,0) ->  | J38: =VLOOKUP($A38&$D$28&J$30,#REF!,12,0) ->  | K38: =VLOOKUP($A38&$D$28&K$30,#REF!,12,0) ->  | L38: =VLOOKUP($A38&$D$28&L$30,#REF!,12,0) ->  | M38: =VLOOKUP($A38&$D$28&M$30,#REF!,12,0) ->  | N38: =VLOOKUP($A38&$D$28&N$30,#REF!,12,0) ->  | O38: =VLOOKUP($A38&$D$28&O$30,#REF!,12,0) ->  | P38: =VLOOKUP($A38&$D$28&P$30,#REF!,12,0) ->  | Q38: =VLOOKUP($A38&$D$28&Q$30,#REF!,12,0) ->  | R38: =VLOOKUP($A38&$D$28&R$30,#REF!,12,0) ->  | S38: =VLOOKUP($A38&$D$28&S$30,#REF!,12,0) ->  | T38: =VLOOKUP($A38&$D$28&T$30,#REF!,12,0) ->  | U38: =VLOOKUP($A38&$D$28&U$30,#REF!,12,0) ->  | V38: =VLOOKUP($A38&$D$28&V$30,#REF!,12,0) ->  | W38: =VLOOKUP($A38&$D$28&W$30,#REF!,12,0) ->  | X38: =VLOOKUP($A38&$D$28&X$30,#REF!,12,0) ->  | Y38: =VLOOKUP($A38&$D$28&Y$30,#REF!,12,0) ->  | AA38: =+(Y38/X38)-1 -> 
A39: SI | B39: 0.59 | C39: =VLOOKUP($A39&$D$28&C$30,#REF!,12,0) ->  | D39: =VLOOKUP($A39&$D$28&D$30,#REF!,12,0) ->  | E39: =VLOOKUP($A39&$D$28&E$30,#REF!,12,0) ->  | F39: =VLOOKUP($A39&$D$28&F$30,#REF!,12,0) ->  | G39: =VLOOKUP($A39&$D$28&G$30,#REF!,12,0) ->  | H39: =VLOOKUP($A39&$D$28&H$30,#REF!,12,0) ->  | I39: =VLOOKUP($A39&$D$28&I$30,#REF!,12,0) ->  | J39: =VLOOKUP($A39&$D$28&J$30,#REF!,12,0) ->  | K39: =VLOOKUP($A39&$D$28&K$30,#REF!,12,0) ->  | L39: =VLOOKUP($A39&$D$28&L$30,#REF!,12,0) ->  | M39: =VLOOKUP($A39&$D$28&M$30,#REF!,12,0) ->  | N39: =VLOOKUP($A39&$D$28&N$30,#REF!,12,0) ->  | O39: =VLOOKUP($A39&$D$28&O$30,#REF!,12,0) ->  | P39: =VLOOKUP($A39&$D$28&P$30,#REF!,12,0) ->  | Q39: =VLOOKUP($A39&$D$28&Q$30,#REF!,12,0) ->  | R39: =VLOOKUP($A39&$D$28&R$30,#REF!,12,0) ->  | S39: =VLOOKUP($A39&$D$28&S$30,#REF!,12,0) ->  | T39: =VLOOKUP($A39&$D$28&T$30,#REF!,12,0) ->  | U39: =VLOOKUP($A39&$D$28&U$30,#REF!,12,0) ->  | V39: =VLOOKUP($A39&$D$28&V$30,#REF!,12,0) ->  | W39: =VLOOKUP($A39&$D$28&W$30,#REF!,12,0) ->  | X39: =VLOOKUP($A39&$D$28&X$30,#REF!,12,0) ->  | Y39: =VLOOKUP($A39&$D$28&Y$30,#REF!,12,0) ->  | AA39: =+(Y39/X39)-1 -> 
A40: SK | B40: 0.36 | C40: =VLOOKUP($A40&$D$28&C$30,#REF!,12,0) ->  | D40: =VLOOKUP($A40&$D$28&D$30,#REF!,12,0) ->  | E40: =VLOOKUP($A40&$D$28&E$30,#REF!,12,0) ->  | F40: =VLOOKUP($A40&$D$28&F$30,#REF!,12,0) ->  | G40: =VLOOKUP($A40&$D$28&G$30,#REF!,12,0) ->  | H40: =VLOOKUP($A40&$D$28&H$30,#REF!,12,0) ->  | I40: =VLOOKUP($A40&$D$28&I$30,#REF!,12,0) ->  | J40: =VLOOKUP($A40&$D$28&J$30,#REF!,12,0) ->  | K40: =VLOOKUP($A40&$D$28&K$30,#REF!,12,0) ->  | L40: =VLOOKUP($A40&$D$28&L$30,#REF!,12,0) ->  | M40: =VLOOKUP($A40&$D$28&M$30,#REF!,12,0) ->  | N40: =VLOOKUP($A40&$D$28&N$30,#REF!,12,0) ->  | O40: =VLOOKUP($A40&$D$28&O$30,#REF!,12,0) ->  | P40: =VLOOKUP($A40&$D$28&P$30,#REF!,12,0) ->  | Q40: =VLOOKUP($A40&$D$28&Q$30,#REF!,12,0) ->  | R40: =VLOOKUP($A40&$D$28&R$30,#REF!,12,0) ->  | S40: =VLOOKUP($A40&$D$28&S$30,#REF!,12,0) ->  | T40: =VLOOKUP($A40&$D$28&T$30,#REF!,12,0) ->  | U40: =VLOOKUP($A40&$D$28&U$30,#REF!,12,0) ->  | V40: =VLOOKUP($A40&$D$28&V$30,#REF!,12,0) ->  | W40: =VLOOKUP($A40&$D$28&W$30,#REF!,12,0) ->  | X40: =VLOOKUP($A40&$D$28&X$30,#REF!,12,0) ->  | Y40: =VLOOKUP($A40&$D$28&Y$30,#REF!,12,0) ->  | AA40: =+(Y40/X40)-1 -> 
A41: EU_L | B41: 100 | C41: 602.9494 | D41: 636.0266 | E41: 647.21 | F41: 577.8515 | G41: 558.6693 | H41: 542.385 | I41: 547.9673 | J41: 545.2425 | K41: 539.0463 | L41: 535.1134 | M41: 542.1111 | N41: 527.8825 | O41: 529.935 | P41: 556.0368 | Q41: 550.1393 | R41: 540.8998 | S41: 543.9779 | T41: 549.6268 | U41: 566.2604 | V41: 555.0311 | W41: 560.6467 | X41: 561.6467 | Y41: 562.6467 | AA41: =+(Y41/X41)-1 -> 0.001780478724 | AB41: 0.01305172617
A42: Change 13/12 | C42: -0.06574499764 | D42: 0.003298442302 | E42: 0.06010290964 | F42: -0.0184238903 | G42: -0.03118147383 | H42: -0.0599825371 | I42: -0.06374452096 | J42: -0.06790370069 | K42: -0.07713859469 | L42: -0.08374852703 | M42: -0.07586749224 | N42: -0.09940760928 | O42: -0.08892135172 | P42: -0.04214094204 | Q42: -0.08581188679 | R42: -0.09663397913 | S42: -0.0801727925 | T42: -0.07518687179 | U42: -0.04961449883 | V42: -0.04263436391 | W42: 0.007996779569 | X42: 0.01151565972 | Y42: 0.01503453987
A43: DG-AGRI, Sheep sector
A46: EU Heavy lambs | C46: =+C25 -> 453.4246 | Y46: =+Y25 -> 
A47: maximum Price | C47: =MAX(C9:C24) ->  | Y47: =MAX(Y9:Y24) -> 
A48: minimum | C48: =MIN(C9:C24) ->  | Y48: =MIN(Y9:Y24) -> 
A51: EU Light lambs | C51: =+C41 -> 602.9494 | D51: 636.0266 | E51: 647.21 | F51: 577.8515 | G51: 558.6693 | H51: 542.385 | I51: 547.9673 | J51: 545.2425 | K51: 539.0463 | L51: 535.1134 | M51: 542.1111 | N51: 527.8825 | O51: 529.935 | P51: 556.0368 | Q51: 550.1393 | R51: 540.8998 | S51: 543.9779 | T51: 549.6268 | U51: 566.2604 | V51: 555.0311 | W51: 560.6467 | X51: 561.6467 | Y51: =+Y41 -> 562.6467
A52: maximum | C52: =MAX(C34:C40) ->  | Y52: =MAX(Y34:Y40) -> 
A53: minimum Price | C53: =MIN(C34:C40) ->  | Y53: =MIN(Y34:Y40) -> 
A54: EU Light lambs
A56: France - Slowakia | C56: =+C15-C40 ->  | Y56: =+Y15-Y40 -> 
B62: 2010 | C62: 2011 | D62: 2012 | E62: 2013
A63: Weighing coefficients are based on Official plus unofficial slaughter
A64: Country Code | B64: Weights (%) | C64: Weights (%) | D64: Weights (%) | E64: Weights (%)
A65: BE | B65: 0.26 | C65: 0.53 | D65: 0.53 | E65: 0.46
A66: DK | E66: 0.26
A67: DE | B67: 5.79 | C67: 6.68 | D67: 6.67 | E67: 6.87
A68: EE | D68: 0.12 | E68: 0.1
A69: IE | B69: 9.38 | C69: 8.43 | D69: 8.42 | E69: 8.19
A70: ES | B70: 7.56 | C70: 4.65 | D70: 4.64 | E70: 4.69
A71: FR | B71: 16.2 | C71: 17.91 | D71: 17.89 | E71: 17.74
A72: CY | E72: 0.43
A73: NL | B73: 2.14 | C73: 2.32 | D73: 2.32 | E73: 2.19
A74: AT | B74: 0.86 | C74: 1.28 | D74: 1.28 | E74: 1.28
A75: PL | B75: 0.14 | C75: 0.17 | D75: 0.17 | E75: 0.12
A76: RO | B76: 13.15 | C76: 7.52 | D76: 7.51 | E76: 7.47
A77: SE | B77: 0.56 | C77: 0.94 | D77: 0.94 | E77: 0.95
A78: GB | B78: 92.87 | C78: 92.87 | D78: 92.87 | E78: 92.87
A79: NI | B79: 7.13 | C79: 7.13 | D79: 7.13 | E79: 7.13
A80: UK | B80: 43.96 | C80: 49.57 | D80: 49.51 | E80: 49.25
A81: EU_H | B81: =SUM(B65:B80)-B78-B79 -> 100 | C81: =SUM(C65:C80)-C78-C79 -> 100 | D81: =SUM(D65:D80)-D78-D79 -> 100 | E81: =SUM(E65:E80)-E78-E79 -> 100
A83: LIGHT LAMBS
A84: Country Code | B84: Weights (%) | C84: Weights (%) | D84: Weights (%) | E84: Weights (%)
A85: BG | C85: 4.77 | D85: 4.77 | E85: 5.86
A86: GR | B86: 23.21 | C86: 31.88 | D86: 31.88 | E86: 33.75
A87: ES | B87: 52.3 | C87: 35.6 | D87: 35.6 | E87: 39.55
A88: IT | B88: 19.37 | C88: 18.66 | D88: 18.66 | E88: 12.51
A89: CY | B89: 0.93 | C89: 0.92 | D89: 0.92
A90: HU | B90: 0.26 | C90: 0.29 | D90: 0.29 | E90: 0.38
A91: PT | B91: 3.64 | C91: 6.88 | D91: 6.88 | E91: 7
A92: SI | B92: 0.26 | C92: 0.59 | D92: 0.59 | E92: 0.59
A93: SK | B93: 0.03 | C93: 0.41 | D93: 0.41 | E93: 0.36
A94: EU_L | B94: =SUM(B86:B93) -> 100 | C94: =SUM(C85:C93) -> 100 | D94: =SUM(D85:D93) -> 100 | E94: =SUM(E85:E93) -> 100

Sheet Info Key (hidden)
G2: VLOOKUP($A14&"EU_H"&AC$7;AMIS2_data!$A:$R;12;0)
G4: VLOOKUP($A14&"EU_L"&AC$7;AMIS2_data!$A:$R;12;0)

Sheet COVER
A1: Weekly price report on
A2: Heavy Lamb and Light Lamb prices
A3: in the EU
E5: Note:
E6: New Weighing Coefficients from 01.07.2013
E7: As from 2013 Cyprus communicates Heavy Lamb
E8: instead of light lamb
A23: Period:
B24: 2012 - 2013
A25: Week :
B26: 2013 | C26: 34
F35: Week 2013 : | G35: 34 | H35: Varition 1 week | I35: Varition 1 year | J35: Variation - avg last 4 weeks 2013 with same weeks 2012
F36: Heavy Lamb | G36: 497.9420383 | H36: 0.0001134512621 | I36: -0.01550295927 | J36: -0.02053399516
F37: Light Lamb | G37: 635.730333 | H37: 0.004828887835 | I37: 0.03214100765 | J37: 0.03902936145
F41: Find more monthly, annual and further information on sheep on the following Circa site:
F42: https://circabc.europa.eu/faces/jsp/extension/wai/navigation/container.jsp

Sheet Heavy Lamb Prices
A1: COMMISSION EUROPEENNE | AR1: Week | AS1: =COVER!G35 -> 34
A2: Direction générale de l'Agriculture
A3: C4. Produits animaux
R4: HEAVY LAMB PRICE
R6: DG-Agri-C4, Meat sector
A8: HEAVY LAMB | AL8: €ur per 100 kg carcass
A9: EU_H | C9: Country Code/Currency
A10: 2013 | C10: BE | D10: BG | E10: BG | F10: CZ | G10: CZ | H10: DK | I10: DK | J10: DE | K10: EE | L10: GR | M10: ES | N10: FR | O10: HR | P10: HR | Q10: IE | R10: IT | S10: CY | T10: LV | U10: LV | V10: LT | W10: LT | X10: LU | Y10: HU | Z10: HU | AA10: MT | AB10: NL | AC10: AT | AD10: PL | AE10: PL | AF10: PT | AG10: RO | AH10: RO | AI10: SI | AJ10: SK | AK10: FI | AL10: SE | AM10: SE | AN10: NI | AO10: GB | AP10: UK | AR10: EU_27
A11: Weightings from 01/01/2012 until 31/12/2012 | C11: 0.53 | J11: 6.67 | K11: 0.12 | M11: 4.64 | N11: 17.89 | Q11: 8.42 | AB11: 2.32 | AC11: 1.28 | AD11: 0.17 | AG11: 7.51 | AL11: 0.94 | AP11: 49.51 | AR11: 100
A12: Weightings from 01/01/2012 until 30/06/2013 | C12: 0.46 | H12: 0.26 | J12: 6.87 | K12: 0.1 | M12: 4.69 | N12: 17.74 | Q12: 8.19 | S12: 0.43 | AB12: 2.19 | AC12: 1.28 | AD12: 0.12 | AG12: 7.47 | AL12: 0.95 | AP12: 49.25 | AR12: 100
A13: Weightings from 01/07/2013 until --/--/---- | C13: 0.4253922954 | H13: 0.2795185514 | J13: 6.638565595 | K13: 0.109012235 | M13: 4.548083386 | N13: 17.77912686 | Q13: 9.38728115 | S13: 0.537374415 | V13: 0.06970493875 | AB13: 2.287509945 | AC13: 1.325966128 | AD13: 0.1222893662 | AG13: 7.337886071 | AL13: 0.9650377986 | AP13: 48.18725127 | AR13: 100
A14: Week beginning | B14: Week N° | C14: EUR | D14: EUR | E14: BGN | F14: EUR | G14: CZK | H14: EUR | I14: DKK | J14: EUR | K14: EUR | L14: EUR | M14: EUR | N14: EUR | O14: EUR | P14: HRK | Q14: EUR | R14: EUR | S14: EUR | T14: EUR | U14: LVL | V14: EUR | W14: LTL | X14: EUR | Y14: EUR | Z14: HUF | AA14: EUR | AB14: EUR | AC14: EUR | AD14: EUR | AE14: PLN | AF14: EUR | AG14: EUR | AH14: RON | AI14: EUR | AJ14: EUR | AK14: EUR | AL14: EUR | AM14: SEK | AN14: EUR | AO14: EUR | AP14: EUR | AR14: EURO | AS14: Compare to last week
A15: 2012
A16: 2012-01-02 | B16: 1 | C16: 452.95 | J16: 518.16 | K16: 247.11 | M16: 556.21 | N16: 642 | Q16: 478.14 | AB16: 499.75 | AC16: 518 | AD16: 452.5634 | AE16: 2029.76 | AG16: 230.1265 | AH16: 997 | AL16: 402.5084 | AM16: 3576 | AN16: 469.3915 | AO16: 545.6837 | AP16: 540.2440661 | AR16: 525.714645
A17: 2012-01-09 | B17: 2 | C17: 448.63 | J17: 518.16 | K17: 308.04 | M17: 519.18 | N17: 641 | Q17: 477.67 | AB17: 487.08 | AC17: 525 | AD17: 409.645 | AE17: 1823.16 | AG17: 229.8903 | AH17: 1000 | AL17: 385.7005 | AM17: 3412 | AN17: 473.0093 | AO17: 535.7281 | AP17: 531.2562496 | AR17: 518.9252929 | AS17: -0.01291451972
A18: 2012-01-16 | B18: 3 | C18: 440.73 | J18: 507.96 | K18: 238.68 | M18: 490.23 | N18: 637 | Q18: 477.67 | AB18: 477.28 | AC18: 520 | AD18: 406.2863 | AE18: 1769.11 | AG18: 253.5589 | AH18: 1100 | AL18: 399.8445 | AM18: 3527 | AN18: 482.1759 | AO18: 526.6499 | AP18: 523.4789038 | AR18: 513.8238027 | AS18: -0.009830876016
A19: 2012-01-23 | B19: 4 | C19: 439.26 | J19: 496.74 | K19: 242.12 | M19: 489.32 | N19: 636 | Q19: 493.91 | AB19: 487.22 | AC19: 525 | AD19: 414.335 | AE19: 1769.11 | AG19: 232.484 | AH19: 1010 | AL19: 403.767 | AM19: 3569 | AN19: 484.8594 | AO19: 525.0748 | AP19: 522.207442 | AR19: 512.3509862 | AS19: -0.002866384234
A20: 2012-01-30 | B20: 5 | C20: 439.26 | J20: 496.74 | K20: 231.69 | M20: 489.18 | N20: 636 | Q20: 493.91 | AB20: 471.79 | AC20: 522 | AD20: 449.5905 | AE20: 1893.81 | AG20: 241.6158 | AH20: 1050 | AL20: 402.1888 | AM20: 3570 | AN20: 484.8019 | AO20: 529.5318 | AP20: 526.3425581 | AR20: 514.7137917 | AS20: 0.004611692998
A21: 2012-02-06 | B21: 6 | C21: 438.435 | J21: 506.94 | K21: 257.04 | M21: 489.21 | N21: 637 | Q21: 486.53 | AB21: 487.1 | AC21: 524 | AD21: 445.8633 | AE21: 1870.11 | AG21: 229.3891 | AH21: 998 | AL21: 403.0915 | AM21: 3554 | AN21: 481.5972 | AO21: 528.7161 | AP21: 525.3565224 | AR21: 513.9556049 | AS21: -0.001473026014
A22: 2012-02-13 | B22: 7 | C22: 440.73 | J22: 486.54 | K22: 228.48 | M22: 488.96 | N22: 633 | Q22: 486.1 | AB22: 474.58 | AC22: 533 | AD22: 370.5672 | AE22: 1555.89 | AG22: 232.1069 | AH22: 1010 | AL22: 407.9412 | AM22: 3593 | AN22: 482.3654 | AO22: 530.1931 | AP22: 526.782985 | AR22: 512.4620786 | AS22: -0.002905944176
A23: 2012-02-20 | B23: 8 | C23: 438.85 | J23: 494.7 | K23: 216.24 | M23: 488.84 | N23: 630 | Q23: 481.29 | AB23: 495.01 | AC23: 523 | AD23: 431.4957 | AE23: 1802 | AG23: 233.7466 | AH23: 1018 | AL23: 419.8381 | AM23: 3702 | AN23: 475.3417 | AO23: 524.4207 | AP23: 520.9213673 | AR23: 509.8168684 | AS23: -0.005161767571
A24: 2012-02-27 | B24: 9 | C24: 441.92 | J24: 516.12 | K24: 238.53 | M24: 487.37 | N24: 628 | Q24: 481.98 | AB24: 507.1 | AC24: 529 | AD24: 403.9253 | AE24: 1669.51 | AG24: 241.3619 | AH24: 1050 | AL24: 417.8316 | AM24: 3687 | AN24: 484.3533 | AO24: 523.4612 | AP24: 520.6728067 | AR24: 511.6610954 | AS24: 0.003617430152
A25: 2012-03-05 | B25: 10 | C25: 460.53 | J25: 527.34 | K25: 223.92 | M25: 482.77 | N25: 625 | Q25: 482.49 | AB25: 526.73 | AC25: 527 | AD25: 411.544 | AE25: 1696.69 | AG25: 241.1441 | AH25: 1050 | AL25: 415.0104 | AM25: 3687 | AN25: 496.9044 | AO25: 527.7528 | AP25: 525.5533091 | AR25: 514.5996008 | AS25: 0.005743069915
A26: 2012-03-12 | B26: 11 | C26: 509.09 | J26: 547.74 | K26: 209.48 | M26: 495.15 | N26: 623 | Q26: 486.39 | AB26: 560.84 | AC26: 521 | AD26: 405.5506 | AE26: 1673.58 | AG26: 240.3343 | AH26: 1050 | AL26: 457.5296 | AM26: 4068 | AN26: 496.3555 | AO26: 532.7906 | AP26: 530.1927774 | AR26: 520.0855613 | AS26: 0.0106606388
A27: 2012-03-19 | B27: 12 | C27: 509.09 | J27: 574.26 | K27: 264.59 | M27: 494.46 | N27: 623 | Q27: 488.57 | AB27: 552.71 | AC27: 541 | AD27: 426.4455 | AE27: 1768.89 | AG27: 239.9373 | AH27: 1050 | AL27: 460.3933 | AM27: 4100 | AN27: 503.6855 | AO27: 550.5402 | AP27: 547.1994599 | AR27: 530.5921352 | AS27: 0.02020162586
A28: 2012-03-26 | B28: 13 | C28: 558.86 | J28: 576.3 | K28: 335 | M28: 494.49 | N28: 628 | Q28: 509.76 | AB28: 579.37 | AC28: 544 | AD28: 414.0214 | AE28: 1719.07 | AG28: 230.8436 | AH28: 1010 | AL28: 472.8512 | AM28: 4199 | AN28: 515.8462 | AO28: 564.3077 | AP28: 560.8523951 | AR28: 540.5860928 | AS28: 0.01883548013
A29: 2012-04-02 | B29: 14 | C29: 590.06 | J29: 572.22 | K29: 298.73 | M29: 501.55 | N29: 630 | Q29: 532.72 | AB29: 572.23 | AC29: 540 | AD29: 416.8949 | AE29: 1733.05 | AG29: 225.7534 | AH29: 988 | AL29: 483.5081 | AM29: 4262 | AN29: 513.7309 | AO29: 565.2054 | AP29: 561.5352682 | AR29: 542.8984371 | AS29: 0.004277476414
A30: 2012-04-09 | B30: 15 | C30: 598.3 | J30: 565.08 | K30: 294.18 | M30: 500.18 | N30: 632 | Q30: 533.23 | AB30: 593.19 | AC30: 544 | AD30: 416.3405 | AE30: 1739.56 | AG30: 208.7396 | AH30: 913 | AL30: 497.3183 | AM30: 4411 | AN30: 528.5315 | AO30: 565.0371 | AP30: 562.4342507 | AR30: 542.6312804 | AS30: -0.0004920933481
A31: 2012-04-16 | B31: 16 | C31: 593.98 | J31: 531.42 | K31: 293.76 | M31: 497.51 | N31: 631 | Q31: 510.52 | AB31: 593.32 | AC31: 543 | AD31: 421.7951 | AE31: 1766.52 | AG31: 208.6605 | AH31: 913 | AL31: 520.7989 | AM31: 4615 | AN31: 510.6717 | AO31: 569.4168 | AP31: 565.2282744 | AR31: 539.7453755 | AS31: -0.005318353264
A32: 2012-04-23 | B32: 17 | C32: 574 | J32: 558.96 | K32: 257.25 | M32: 495.34 | N32: 627 | Q32: 504.59 | AB32: 585.18 | AC32: 529 | AD32: 415.9777 | AE32: 1741.77 | AG32: 239.6307 | AH32: 1050 | AL32: 527.0888 | AM32: 4681 | AN32: 476.9597 | AO32: 526.584 | AP32: 523.0457874 | AR32: 521.2394937 | AS32: -0.03428631839
A33: 2012-04-30 | B33: 18 | C33: 564.11 | J33: 555.9 | K33: 302.52 | M33: 487.83 | N33: 620 | Q33: 490.58 | AB33: 573.35 | AC33: 531 | AD33: 413.4044 | AE33: 1725.81 | AG33: 229.6332 | AH33: 1012 | AL33: 531.2861 | AM33: 4729 | AN33: 459.878 | AO33: 515.6107 | AP33: 511.6369585 | AR33: 511.6437933 | AS33: -0.01840938869
A34: 2012-05-07 | B34: 19 | C34: 557 | J34: 541.62 | K34: 283.08 | M34: 488.23 | N34: 617 | Q34: 480.34 | AB34: 565.89 | AC34: 528 | AD34: 409.4795 | AE34: 1725.81 | AG34: 227.8966 | AH34: 1007 | AL34: 536.9321 | AM34: 4796 | AN34: 457.8874 | AO34: 539.3191 | AP34: 533.5130198 | AR34: 519.7853056 | AS34: 0.01591246189
A35: 2012-05-14 | B35: 20 | C35: 557 | J35: 532.44 | K35: 260.85 | M35: 480.3 | N35: 611 | Q35: 482.74 | AB35: 572.08 | AC35: 523 | AD35: 402.8351 | AE35: 1740.15 | AG35: 227.6104 | AH35: 1011 | AL35: 526.6973 | AM35: 4775 | AN35: 453.216 | AO35: 546.5934 | AP35: 539.9355914 | AR35: 521.0374786 | AS35: 0.002409019571
A36: 2012-05-21 | B36: 21 | C36: 557 | J36: 529.38 | K36: 264.73 | M36: 470.33 | N36: 608 | Q36: 439.45 | AB36: 557.14 | AC36: 525 | AD36: 369.1488 | AE36: 1604.21 | AG36: 244.498 | AH36: 1090 | AL36: 528.6735 | AM36: 4783 | AN36: 405.4422 | AO36: 548.6683 | AP36: 538.4562791 | AR36: 516.3698594 | AS36: -0.008958317561
A37: 2012-05-28 | B37: 22 | C37: 557 | J37: 524.28 | K37: 293.26 | M37: 477.06 | N37: 594 | Q37: 440.42 | AB37: 569.86 | AC37: 524 | AD37: 366.2914 | AE37: 1604.21 | AG37: 243.8744 | AH37: 1090 | AL37: 532.308 | AM37: 4783 | AN37: 409.8797 | AO37: 499.3981 | AP37: 493.0154381 | AR37: 491.7202894 | AS37: -0.04773626803
A38: 2012-06-04 | B38: 23 | C38: 504.48 | J38: 506.94 | K38: 336.9 | M38: 464.19 | N38: 587 | Q38: 440.7 | AB38: 556.49 | AC38: 529 | AD38: 378.5285 | AE38: 1644.16 | AG38: 244.6778 | AH38: 1093 | AL38: 528.2007 | AM38: 4747 | AN38: 434.6603 | AO38: 504.1119 | AP38: 499.1600009 | AR38: 491.3503503 | AS38: -0.0007523365537
A39: 2012-06-11 | B39: 24 | C39: 494.87 | J39: 501.84 | K39: 279.04 | M39: 462.81 | N39: 582 | Q39: 458.14 | AB39: 584.21 | AC39: 543 | AD39: 379.0698 | AE39: 1633 | AG39: 224.1047 | AH39: 1000 | AL39: 537.3594 | AM39: 4763 | AN39: 465.6853 | AO39: 522.2662 | AP39: 518.2319818 | AR39: 500.2065452 | AS39: 0.01802419582
A40: 2012-06-18 | B40: 25 | C40: 499.03 | J40: 487.56 | K40: 228.48 | M40: 466.93 | N40: 577 | Q40: 452.9 | AB40: 554.56 | AC40: 524 | AD40: 373.5998 | AE40: 1592.48 | AG40: 251.1656 | AH40: 1122 | AL40: 519.0194 | AM40: 4582 | AN40: 451.0324 | AO40: 539.0959 | AP40: 532.8169724 | AR40: 506.2114326 | AS40: 0.01200481582
A41: 2012-06-25 | B41: 26 | C41: 481.38 | J41: 485.52 | K41: 234.9 | M41: 467.54 | N41: 575 | Q41: 450.65 | AB41: 566.4 | AC41: 516 | AD41: 393.1624 | AE41: 1673.49 | AG41: 243.7109 | AH41: 1086 | AL41: 519.8155 | AM41: 4575 | AN41: 449.5497 | AO41: 534.8105 | AP41: 528.731405 | AR41: 503.100993 | AS41: -0.006144546476
A42: 2012-07-02 | B42: 27 | C42: 473.56 | J42: 469.2 | K42: 209.85 | M42: 481.71 | N42: 579 | Q42: 440.24 | AB42: 570.35 | AC42: 514 | AD42: 379.014 | AE42: 1598.34 | AG42: 247.535 | AH42: 1110 | AL42: 528.5553 | AM42: 4596 | AN42: 435.9577 | AO42: 507.6272 | AP42: 502.5171646 | AR42: 489.8701703 | AS42: -0.02629854207
A43: 2012-07-09 | B43: 28 | C43: 473.56 | J43: 487.56 | K43: 398.82 | M43: 498.06 | N43: 579 | Q43: 426.47 | AB43: 563.74 | AC43: 514 | AD43: 379.9652 | AE43: 1598.34 | AG43: 242.053 | AH43: 1099 | AL43: 522.5384 | AM43: 4488 | AN43: 429.4907 | AO43: 515.4546 | AP43: 509.3253739 | AR43: 493.6715047 | AS43: 0.007759881341
A44: 2012-07-16 | B44: 29 | C44: 475.45 | J44: 479.4 | K44: 292.47 | M44: 509.38 | N44: 581 | Q44: 434.26 | AB44: 581.8 | AC44: 518 | AD44: 361.3385 | AE44: 1508.81 | AG44: 234.6947 | AH44: 1074 | AL44: 512.8394 | AM44: 4374 | AN44: 440.093 | AO44: 541.0498 | AP44: 533.8515802 | AR44: 506.4862681 | AS44: 0.02595807792
A45: 2012-07-23 | B45: 30 | C45: 483.7 | J45: 490.62 | K45: 294.79 | M45: 511.3 | N45: 584 | Q45: 436.91 | AB45: 588.91 | AC45: 502 | AD45: 381.7163 | AE45: 1590.77 | AG45: 232.6359 | AH45: 1074 | AL45: 516.5132 | AM45: 4371 | AN45: 435.9327 | AO45: 548.116 | AP45: 540.1173307 | AR45: 511.1069543 | AS45: 0.00912302364
A46: 2012-07-30 | B46: 31 | C46: 493.34 | J46: 488.58 | K46: 279.47 | M46: 516.38 | N46: 588 | Q46: 442.27 | AB46: 562.68 | AC46: 505 | AD46: 387.9525 | AE46: 1592.85 | AG46: 234.121 | AH46: 1079 | AL46: 520.0194 | AM46: 4340 | AN46: 443.5054 | AO46: 537.5167 | AP46: 530.8136943 | AR46: 507.3849428 | AS46: -0.00728225574
A47: 2012-08-06 | B47: 32 | C47: 489.4 | J47: 480.42 | K47: 295.94 | M47: 529.73 | N47: 593 | Q47: 436.04 | AB47: 560.87 | AC47: 507 | AD47: 390.8862 | AE47: 1592.85 | AG47: 220.0824 | AH47: 1004 | AL47: 508.0042 | AM47: 4202 | AN47: 433.7403 | AO47: 510.9387 | AP47: 505.4344541 | AR47: 494.0850185 | AS47: -0.02621269014
A48: 2012-08-13 | B48: 33 | C48: 489.4 | J48: 478.38 | K48: 229.5 | M48: 539.23 | N48: 599 | Q48: 436.74 | AB48: 563.08 | AC48: 539 | AD48: 402.2272 | AE48: 1642.65 | AG48: 237.4265 | AH48: 1070 | AL48: 497.1569 | AM48: 4098 | AN48: 440.7894 | AO48: 537.2558 | AP48: 530.3777457 | AR48: 509.4725151 | AS48: 0.03114341882
A49: 2012-08-20 | B49: 34 | C49: 489.46 | J49: 494.7 | K49: 219.3 | M49: 539.34 | N49: 606 | Q49: 435.79 | AB49: 560.27 | AC49: 520 | AD49: 373.8045 | AE49: 1525.87 | AG49: 238.3551 | AH49: 1070 | AL49: 487.5138 | AM49: 4033 | AN49: 433.8144 | AO49: 536.255 | AP49: 528.9509852 | AR49: 510.6425442 | AS49: 0.002296549846
A50: 2012-08-27 | B50: 35 | C50: 489.46 | J50: 503.88 | K50: 224.99 | M50: 540.73 | N50: 608 | Q50: 430.03 | AB50: 552.58 | AC50: 526 | AD50: 385.5365 | AE50: 1596.49 | AG50: 239.0966 | AH50: 1068 | AL50: 457.2501 | AM50: 3794 | AN50: 426.9262 | AO50: 525.6804 | AP50: 518.6392255 | AR50: 505.7831742 | AS50: -0.009516187014
A51: 2012-09-03 | B51: 36 | C51: 501.89 | J51: 500.82 | K51: 224.99 | M51: 540.21 | N51: 610 | Q51: 432.31 | AB51: 557.94 | AC51: 520 | AD51: 382.5114 | AE51: 1594.1 | AG51: 223.0791 | AH51: 1000 | AL51: 435.5679 | AM51: 3676 | AN51: 406.9044 | AO51: 521.2297 | AP51: 513.0783061 | AR51: 502.0530704 | AS51: -0.007374906877
A52: 2012-09-10 | B52: 37 | C52: 523.49 | J52: 506.94 | K52: 193.35 | M52: 540.23 | N52: 616 | Q52: 418.17 | AB52: 563.84 | AC52: 523 | AD52: 369.3655 | AE52: 1512.42 | AG52: 222.5161 | AH52: 1000 | AL52: 421.2935 | AM52: 3588 | AN52: 402.8937 | AO52: 503.0246 | AP52: 495.8852668 | AR52: 493.885724 | AS52: -0.01626789461
A53: 2012-09-17 | B53: 38 | C53: 524.38 | J53: 496.74 | K53: 236.37 | M53: 547.16 | N53: 629 | Q53: 411.27 | AB53: 550.22 | AC53: 525 | AD53: 392.3095 | AE53: 1616.13 | AG53: 221.8693 | AH53: 1000 | AL53: 392.2566 | AM53: 3350 | AN53: 394.4327 | AO53: 481.1887 | AP53: 475.0029972 | AR53: 484.4162845 | AS53: -0.01917334107
A54: 2012-09-24 | B54: 39 | C54: 534.78 | J54: 516.12 | K54: 220.66 | M54: 547.16 | N54: 630 | Q54: 397.87 | AB54: 555.73 | AC54: 527 | AD54: 367.4298 | AE54: 1518.22 | AG54: 232.1615 | AH54: 1050 | AL54: 401.8695 | AM54: 3405 | AN54: 390.7368 | AO54: 475.5868 | AP54: 469.536995 | AR54: 483.0640428 | AS54: -0.002791486873
A55: 2012-10-01 | B55: 40 | C55: 554.76 | J55: 511.02 | K55: 236.53 | M55: 545.59 | N55: 630 | Q55: 409.02 | AB55: 552.44 | AC55: 538 | AD55: 384.7726 | AE55: 1574.11 | AG55: 230.9665 | AH55: 1050 | AL55: 375.3928 | AM55: 3208 | AN55: 382.2868 | AO55: 456.9518 | AP55: 451.6281855 | AR55: 474.6034705 | AS55: -0.01751439054
A56: 2012-10-08 | B56: 41 | C56: 548.47 | J56: 519.18 | K56: 192.78 | M56: 544.13 | N56: 633 | Q56: 400.98 | AB56: 556.81 | AC56: 543 | AD56: 401.3392 | AE56: 1639.66 | AG56: 259.7463 | AH56: 1187 | AL56: 360.1613 | AM56: 3109 | AN56: 377.6594 | AO56: 452.5453 | AP56: 447.2059353 | AR56: 474.8761716 | AS56: 0.0005745871191
A57: 2012-10-15 | B57: 42 | C57: 545.23 | J57: 529.38 | K57: 283.63 | M57: 544.13 | N57: 633 | Q57: 402.36 | AB57: 553.7 | AC57: 538 | AD57: 378.2232 | AE57: 1550.51 | AG57: 248.3951 | AH57: 1137 | AL57: 362.2015 | AM57: 3123 | AN57: 385.3329 | AO57: 450.2913 | AP57: 445.6597661 | AR57: 473.9903007 | AS57: -0.001865477547
A58: 2012-10-22 | B58: 43 | C58: 565.54 | J58: 519.18 | K58: 158.1 | M58: 544.13 | N58: 633 | Q58: 401.9 | AB58: 527.55 | AC58: 489 | AD58: 368.915 | AE58: 1524.32 | AG58: 220.2751 | AH58: 1007 | AL58: 360.2352 | AM58: 3112 | AN58: 384.9041 | AO58: 451.1977 | AP58: 446.4709663 | AR58: 470.2498618 | AS58: -0.007891382831
A59: 2012-10-29 | B59: 44 | C59: 542.05 | J59: 515.1 | K59: 222.89 | M59: 543.99 | N59: 633 | Q59: 394.25 | AB59: 542.05 | AC59: 534 | AD59: 378.429 | AE59: 1563.09 | AG59: 260.3549 | AH59: 1182 | AL59: 362.9858 | AM59: 3129 | AN59: 377.6808 | AO59: 444.162 | AP59: 439.4218904 | AR59: 469.7547758 | AS59: -0.001052814872
A60: 2012-11-05 | B60: 45 | C60: 528.31 | J60: 515.1 | K60: 237.59 | M60: 544.46 | N60: 636 | Q60: 386.71 | AB60: 532.1 | AC60: 543 | AD60: 361.771 | AE60: 1497.36 | AG60: 222.6152 | AH60: 1007 | AL60: 368.6189 | AM60: 3157 | AN60: 382.2654 | AO60: 452.0288 | AP60: 447.0546696 | AR60: 470.4769638 | AS60: 0.00153737239
A61: 2012-11-12 | B61: 46 | C61: 520.82 | J61: 497.76 | K61: 234.38 | M61: 541.64 | N61: 638 | Q61: 388.96 | AB61: 518.68 | AC61: 550 | AD61: 359.8232 | AE61: 1500 | AG61: 223.385 | AH61: 1013 | AL61: 367.0795 | AM61: 3164 | AN61: 389.2513 | AO61: 451.6692 | AP61: 447.2188037 | AR61: 469.592788 | AS61: -0.001879317991
A62: 2012-11-19 | B62: 47 | C62: 520.82 | J62: 500.82 | K62: 221.36 | M62: 542.45 | N62: 639 | Q62: 388.82 | AB62: 516.23 | AC62: 541 | AD62: 391.4877 | AE62: 1616.71 | AG62: 227.5419 | AH62: 1032 | AL62: 363.3302 | AM62: 3132 | AN62: 384.6346 | AO62: 435.2434 | AP62: 431.6349926 | AR62: 462.4291465 | AS62: -0.01525500747 | AV62: 0
A63: 2012-11-26 | B63: 48 | C63: 500.43 | J63: 496.74 | K63: 228.94 | M63: 542.45 | N63: 637 | Q63: 386.56 | AB63: 507.92 | AC63: 535 | AD63: 393.9393 | AE63: 1616.71 | AG63: 232.853 | AH63: 1052 | AL63: 379.411 | AM63: 3273 | AN63: 381.5745 | AO63: 437.0098 | AP63: 433.0572631 | AR63: 462.4987125 | AS63: 0.0001504360178
A64: 2012-12-03 | B64: 49 | C64: 482.43 | J64: 483.48 | K64: 278.61 | M64: 540.14 | N64: 632 | Q64: 389.9 | AB64: 496.91 | AC64: 543 | AD64: 466.6133 | AE64: 1923.92 | AG64: 231.5996 | AH64: 1050 | AL64: 384.9576 | AM64: 3325 | AN64: 373.6362 | AO64: 443.1591 | AP64: 438.2021172 | AR64: 463.3337573 | AS64: 0.001805507242
A65: 2012-12-10 | B65: 50 | C65: 479.54 | J65: 496.74 | K65: 304.47 | M65: 549 | N65: 631 | Q65: 387.84 | AB65: 494.43 | AC65: 537 | AD65: 407.5742 | AE65: 1671.59 | AG65: 234.9395 | AH65: 1060 | AL65: 388.3765 | AM65: 3373 | AN65: 379.262 | AO65: 439.7653 | AP65: 435.4514147 | AR65: 462.9790551 | AS65: -0.0007655434816
A66: 2012-12-17 | B66: 51 | C66: 479.54 | J66: 513.06 | K66: 290.17 | M66: 535.71 | N66: 629 | Q66: 394.46 | AB66: 480.61 | AC66: 539 | AD66: 389.2224 | AE66: 1587.11 | AG66: 237.4316 | AH66: 1060 | AL66: 419.9571 | AM66: 3645 | AN66: 373.9175 | AO66: 417.6353 | AP66: 414.5182209 | AR66: 453.4271551 | AS66: -0.02063138684
A67: 2013
A68: 2012-12-24 | B68: 52 | C68: 476.76 | J68: 531.42 | K68: 210.61 | M68: 535.71 | N68: 627 | Q68: 394.21 | AB68: 485.6 | AC68: 530 | AD68: 389.2715 | AE68: 1587.11 | AG68: 239.3541 | AH68: 1060 | AL68: 421.8008 | AM68: 3630 | AN68: 372.2769 | AO68: 415.8028 | AP68: 412.6994033 | AR68: 450.5797388 | AS68: -0.006279765748
A69: =A68+7 -> 2012-12-31 | B69: 1 | C69: 476.76 | J69: 502.86 | K69: 351.95 | M69: 499.68 | N69: 623 | Q69: 394.36 | S69: 506 | AB69: 474.76 | AC69: 536 | AD69: 388.1414 | AE69: 1587.11 | AG69: 233.8648 | AH69: 1037 | AL69: 422.1197 | AM69: 3612 | AN69: 370.4343 | AO69: 410.5291 | AP69: 407.6703408 | AR69: 445.5018982 | AS69: -0.01126957153
A70: =A69+7 -> 2013-01-07 | B70: =B69+1 -> 2 | C70: 452.75 | J70: 503.88 | K70: 235.25 | M70: 478.9 | N70: 623 | Q70: 323.05 | S70: 494 | AB70: 471.95 | AC70: 550 | AD70: 364.0679 | AE70: 1495.7 | AG70: 234.062 | AH70: 1030 | AL70: 435.9725 | AM70: 3739 | AN70: 369.2259 | AO70: 409.1899 | AP70: 406.3404668 | AR70: 438.0584975 | AS70: -0.01670789892
A71: 2013-01-14 | B71: =B70+1 -> 3 | C71: 441.79 | J71: 490.62 | K71: 224.4 | M71: 430.26 | N71: 598 | Q71: 375.99 | S71: 480 | AB71: 468.39 | AC71: 543 | AD71: 406.0691 | AE71: 1675.47 | AG71: 236.3872 | AH71: 1030 | AL71: 429.9633 | AM71: 3715 | AN71: 353.8677 | AO71: 393.3199 | AP71: 390.5069581 | AR71: 426.847079 | AS71: -0.02559342781
A72: 2013-01-21 | B72: 4 | C72: 437.79 | J72: 522.24 | K72: 183.73 | M72: 408.93 | N72: 582 | Q72: 377.2 | S72: 466 | AB72: 464.49 | AC72: 536 | AD72: 323.4769 | AE72: 1349.25 | AG72: 268.0499 | AH72: 1169 | AL72: 424.2229 | AM72: 3685 | AN72: 360.7403 | AO72: 395.4601 | AP72: 392.9845783 | AR72: 428.4172022 | AS72: 0.003678420766
A73: 2013-01-28 | B73: 5 | C73: 440.67 | J73: 486.54 | K73: 204 | M73: 403.21 | N73: 577 | Q73: 379.56 | S73: 456 | AB73: 464.12 | AC73: 535 | AD73: 344.0168 | AE73: 1441.75 | AG73: 236.5127 | AH73: 1036 | AL73: 454.4853 | AM73: 3922 | AN73: 355.0415 | AO73: 389.0834 | AP73: 386.6562125 | AR73: 419.8118349 | AS73: -0.02008641866
A74: 2013-02-04 | B74: 6 | C74: 440.67 | J74: 512.04 | K74: 204 | M74: 395.25 | N74: 568 | Q74: 391.07 | S74: 455 | AB74: 462.72 | AC74: 531 | AD74: 359.6812 | AE74: 1501.33 | AG74: 252.7224 | AH74: 1109 | AL74: 481.3576 | AM74: 4137 | AN74: 356.5023 | AO74: 404.0189 | AP74: 400.6309664 | AR74: 428.8177849 | AS74: 0.02145234904
A75: 2013-02-11 | B75: 7 | C75: 456.21 | J75: 479.4 | K75: 204 | M75: 389.09 | N75: 552 | Q75: 393.63 | S75: 449 | AB75: 469.77 | AC75: 526 | AD75: 359.6812 | AE75: 1501.33 | AG75: 221.4549 | AH75: 973 | AL75: 494.059 | AM75: 4205 | AN75: 387.4292 | AO75: 419.1226 | AP75: 416.8628606 | AR75: 429.5730448 | AS75: 0.001761260728
A76: 2013-02-18 | B76: 8 | C76: 454.27 | J76: 495.72 | K76: 313.01 | M76: 390.63 | N76: 548 | Q76: 408.36 | S76: 461 | AB76: 470.56 | AC76: 532 | AD76: 361.5628 | AE76: 1507.5 | AG76: 252.2173 | AH76: 1105 | AL76: 499.0079 | AM76: 4218 | AN76: 400.6334 | AO76: 419.9768 | AP76: 418.5976156 | AR76: 434.7106194 | AS76: 0.01195972291
A77: 2013-02-25 | B77: 9 | C77: 462.58 | J77: 491.64 | K77: 163.2 | M77: 400.56 | N77: 547 | Q77: 420.81 | S77: 466 | AB77: 464.04 | AC77: 523 | AD77: 362.8733 | AE77: 1507.5 | AG77: 252.8464 | AH77: 1105 | AL77: 510.1237 | AM77: 4300 | AN77: 417.2257 | AO77: 427.5744 | AP77: 426.8365377 | AR77: 439.602059 | AS77: 0.01125217418
A78: 2013-03-04 | B78: 10 | C78: 461.61 | J78: 505.92 | K78: 315 | M78: 402.57 | N78: 559 | Q78: 450.72 | S78: 486 | AB78: 447.94 | AC78: 545 | AD78: 363.9395 | AE78: 1507.5 | AG78: 230.4842 | AH78: 1005 | AL78: 532.839 | AM78: 4441 | AN78: 432.8867 | AO78: 464.4796 | AP78: 462.2270262 | AR78: 461.3945751 | AS78: 0.04957328022
A79: 2013-03-11 | B79: 11 | C79: 490.99 | H79: 466.0816 | I79: 3475.81 | J79: 527.34 | K79: 315 | M79: 402.57 | N79: 567 | Q79: 460.55 | S79: 501 | AB79: 478.13 | AC79: 532 | AD79: 361.381 | AE79: 1498.42 | AG79: 235.4797 | AH79: 1032 | AL79: 527.4362 | AM79: 4396 | AN79: 456.6921 | AO79: 495.121 | AP79: 492.3810194 | AR79: 482.1662359 | AS79: 0.04501930015
A80: 2013-03-18 | B80: 12 | C80: 536.7 | J80: 518.16 | K80: 295.44 | M80: 406.83 | N80: 589 | Q80: 475.33 | S80: 500 | AB80: 532.28 | AC80: 536 | AD80: 370.8144 | AE80: 1545.03 | AG80: 246.8233 | AH80: 1090 | AL80: 538.5645 | AM80: 4507 | AN80: 478.083 | AO80: 532.3203 | AP80: 528.4531805 | AR80: 505.7902699 | AS80: 0.04899562073
A81: 2013-03-25 | B81: 13 | C81: 546.72 | J81: 506.94 | K81: 287.64 | M81: 406.83 | N81: 611 | Q81: 485.67 | S81: 487 | AB81: 533.84 | AC81: 549 | AD81: 353.7404 | AE81: 1477.7 | AG81: 237.6203 | AH81: 1050 | AL81: 530.6461 | AM81: 4441 | AN81: 482.5293 | AO81: 531.1902 | AP81: 527.7206778 | AR81: 508.8081227 | AS81: 0.005966608908
A82: 2013-04-01 | B82: 14 | C82: 552.88 | H82: 472.5436 | I82: 3522.59 | J82: 510 | K82: 275.4 | M82: 420.57 | N82: 614 | Q82: 492.14 | S82: 484 | AB82: 501.55 | AC82: 546 | AD82: 358.6984 | AE82: 1500 | AG82: 229.8197 | AH82: 1016 | AL82: 533.5727 | AM82: 4463 | AN82: 492.2532 | AO82: 536.6688 | AP82: 533.5019677 | AR82: 513.5094348 | AS82: 0.009239852709
A83: 2013-04-08 | B83: 15 | C83: 534.7 | H83: 473.926 | I83: 3533.308 | J83: 516.12 | K83: 244.57 | M83: 420.57 | N83: 620 | Q83: 492.14 | S83: 491 | AB83: 497.71 | AC83: 529 | AD83: 384.2557 | AE83: 1584.72 | AG83: 246.8286 | AH83: 1086 | AL83: 539.9289 | AM83: 4509 | AN83: 494.4058 | AO83: 553.1386 | AP83: 548.9509514 | AR83: 523.582061 | AS83: 0.01961526993
A84: 2013-04-15 | B84: 16 | C84: 547.46 | H84: 466.8094 | I84: 3480.411 | J84: 502.86 | K84: 274.61 | M84: 420.57 | N84: 624 | Q84: 506.21 | S84: 480 | AB84: 508.72 | AC84: 535 | AD84: 362.2353 | AE84: 1488.43 | AG84: 253.9329 | AH84: 1111 | AL84: 554.4508 | AM84: 4680 | AN84: 489.0081 | AO84: 533.9717 | AP84: 530.7657953 | AR84: 516.5599192 | AS84: -0.01341173095
A85: 2013-04-22 | B85: 17 | C85: 549.1 | H85: 484.0162 | I85: 3608.541 | J85: 499.8 | K85: 278.1 | M85: 402.57 | N85: 623 | Q85: 503.48 | S85: 481 | AB85: 506.79 | AC85: 522 | AD85: 386.299 | AE85: 1597.28 | AG85: 255.3721 | AH85: 1111 | AL85: 547.5659 | AM85: 4687 | AN85: 498.4421 | AO85: 542.4996 | AP85: 539.3583002 | AR85: 519.2587017 | AS85: 0.005224529406
A86: 2013-04-29 | B86: 18 | C86: 528.81 | H86: 482.0598 | I86: 3593.88 | J86: 504.9 | K86: 294.43 | M86: 402.38 | N86: 623 | Q86: 514.62 | S86: 479 | AB86: 506.64 | AC86: 535 | AD86: 385.3032 | AE86: 1597.28 | AG86: 266.4114 | AH86: 1151 | AL86: 557.6225 | AM86: 4764 | AN86: 529.7118 | AO86: 557.7099 | AP86: 555.7136355 | AR86: 529.5589321 | AS86: 0.01983641366
A87: 2013-05-06 | B87: 19 | C87: 528.81 | H87: 487.3142 | I87: 3632.28 | J87: 487.56 | K87: 287.23 | M87: 412.94 | N87: 621 | Q87: 518.46 | S87: 484 | AB87: 511.78 | AC87: 525 | AD87: 372.2879 | AE87: 1541.99 | AG87: 241.9798 | AH87: 1045 | AL87: 556.8804 | AM87: 4757 | AN87: 541.6065 | AO87: 576.2024 | AP87: 573.7357123 | AR87: 535.8633256 | AS87: 0.01190498938
A88: 2013-05-13 | B88: 20 | C88: 523.37 | H88: 488.0657 | I88: 3637.7 | J88: 500.82 | K88: 239.57 | M88: 422.39 | N88: 619 | Q88: 536.56 | S88: 484 | AB88: 515.28 | AC88: 524 | AD88: 356.4393 | AE88: 1485.42 | AG88: 233.5726 | AH88: 1012 | AL88: 560.8215 | AM88: 4817 | AN88: 587.9553 | AO88: 586.2165 | AP88: 586.3404764 | AR88: 543.9364531 | AS88: 0.01506564665
A89: 2013-05-20 | B89: 21 | C89: 515.89 | H89: 474.0057 | I89: 3532.92 | J89: 499.8 | K89: 281.52 | M89: 428.65 | N89: 620 | Q89: 533.96 | S89: 484 | AB89: 514.96 | AC89: 516 | AD89: 359.6563 | AE89: 1506.77 | AG89: 251.6663 | AH89: 1095 | AL89: 559.1795 | AM89: 4798 | AN89: 568.1148 | AO89: 581.6706 | AP89: 580.7040715 | AR89: 542.5499424 | AS89: -0.002549030599
A90: 2013-05-27 | B90: 22 | C90: 515.89 | H90: 485.3004 | I90: 3617.54 | J90: 494.7 | K90: 311.97 | M90: 440.8 | N90: 615 | Q90: 505.83 | S90: 480 | AB90: 512.4 | AC90: 513 | AD90: 359.8056 | AE90: 1522.61 | AG90: 246.6252 | AH90: 1074 | AL90: 559.1609 | AM90: 4803 | AN90: 519.8387 | AO90: 578.3259 | AP90: 574.1557626 | AR90: 535.9251029 | AS90: -0.01221056177
A91: 2013-06-03 | B91: 23 | C91: 486.86 | H91: 491.7208 | I91: 3665.8 | J91: 514.08 | K91: 353.52 | M91: 462.03 | N91: 610 | Q91: 480.73 | S91: 480 | AB91: 523.11 | AC91: 518 | AD91: 352.6816 | AE91: 1507.21 | AG91: 226.5895 | AH91: 1010 | AL91: 567.3958 | AM91: 4891 | AN91: 502.4531 | AO91: 586.5023 | AP91: 580.509592 | AR91: 537.2350368 | AS91: 0.002444248222
A92: 2013-06-10 | B92: 24 | C92: 486.86 | H92: 490.0304 | I92: 3654.36 | J92: 508.98 | K92: 262.55 | M92: 476.75 | N92: 608 | Q92: 477.17 | S92: 481 | AB92: 543.72 | AC92: 531 | AD92: 356.4308 | AE92: 1518.65 | AG92: 222.468 | AH92: 1000 | AL92: 555.4815 | AM92: 4819 | AN92: 495.8943 | AO92: 576.4436 | AP92: 570.7004349 | AR92: 532.207792 | AS92: -0.009357626443
A93: 2013-06-17 | B93: 25 | C93: 486.16 | H93: 489.2509 | I93: 3649.19 | J93: 498.78 | K93: 300.26 | M93: 480.96 | N93: 610 | Q93: 480.38 | S93: 480 | AB93: 535.61 | AC93: 523 | AD93: 354.3347 | AE93: 1516.33 | AG93: 230.1988 | AH93: 1036 | AL93: 551.5126 | AM93: 4769 | AN93: 500.2788 | AO93: 562.9631 | AP93: 558.4937094 | AR93: 526.5958129 | AS93: -0.01054471431
A94: 2013-06-24 | B94: 26 | C94: 488.14 | H94: 480.7842 | I94: 3586.19 | J94: 516.12 | K94: 285.53 | M94: 482.73 | N94: 617 | Q94: 490.04 | S94: 478 | AB94: 536.29 | AC94: 497 | AD94: 349.8696 | AE94: 1516.33 | AG94: 231.1881 | AH94: 1036 | AL94: 536.0989 | AM94: 4704 | AN94: 503.9414 | AO94: 577.2398 | AP94: 572.0136241 | AR94: 536.1295649 | AS94: 0.01810449639
A95: 2013-07-01 | B95: 27 | C95: 488.14 | H95: 457.6407 | I95: 3413.83 | J95: 523.26 | K95: 250.26 | M95: 495.22 | N95: 617 | Q95: 478.37 | S95: 484 | AB95: 538.86 | AC95: 503 | AD95: 362.9842 | AE95: 1566.93 | AG95: 233.5156 | AH95: 1038 | AL95: 536.6438 | AM95: 4669 | AN95: 487.9454 | AO95: 573.0448 | AP95: 566.9772128 | AR95: 533.0571684 | AS95: -0.005730697877
A96: 2013-07-08 | B96: 28 | C96: 484.23 | H96: 493.2716 | I96: 3679.13 | J96: 516.12 | K96: 322.38 | M96: 498.2 | N96: 634 | Q96: 469.78 | S96: 484 | AB96: 556.88 | AC96: 515 | AD96: 356.3772 | AE96: 1538.17 | AG96: 234.0617 | AH96: 1038 | AL96: 542.9348 | AM96: 4728 | AN96: 476.8998 | AO96: 561.2154 | AP96: 555.2036977 | AR96: 530.0870685 | AS96: -0.005571822294
A97: 2013-07-15 | B97: 29 | C97: 486.93 | H97: 492.8468 | I97: 3675.37 | J97: 505.92 | K97: 291.72 | M97: 503.88 | N97: 645 | Q97: 474.09 | S97: 481 | AB97: 547.42 | AC97: 501 | AD97: 347.0256 | AE97: 1480.53 | AG97: 234.2858 | AH97: 1038 | AL97: 545.203 | AM97: 4718 | AN97: 480.5377 | AO97: 549.858 | AP97: 544.9154626 | AR97: 526.6565614 | AS97: -0.006471591927
A98: 2013-07-22 | B98: 30 | C98: 486.93 | H98: 501.6446 | I98: 3740.95 | J98: 530.4 | K98: 291.72 | M98: 498.2 | N98: 644 | Q98: 440.36 | S98: 480 | AB98: 550.92 | AC98: 529 | AD98: 347.03 | AG98: 227.1238 | AH98: 1000 | AL98: 548.232 | AM98: 4706 | AN98: 422.9222 | AO98: 475.7338 | AP98: 471.9683329 | AR98: 489.5022613 | AS98: -0.070547493
A99: 2013-07-29 | B99: 31 | C99: 487.93 | H99: 492.3307 | I99: 3670.41 | J99: 511.02 | K99: 228.19 | M99: 503.67 | N99: 646 | Q99: 428.26 | S99: 478 | AB99: 539.05 | AC99: 527 | AD99: 372.8339 | AE99: 1580.48 | AG99: 226.6443 | AH99: 1000 | AL99: 533.0983 | AM99: 4632 | AN99: 429.224 | AO99: 475.3669 | AP99: 472.0769112 | AR99: 487.1870243 | AS99: -0.004729777871
A100: 2013-08-05 | B100: 32 | C100: 487.93 | H100: 486.7758 | I100: 3629.88 | J100: 524.28 | K100: 256.07 | M100: 512.76 | N100: 645 | Q100: 432.88 | S100: 486 | AB100: 555.78 | AC100: 512 | AD100: 375.1869 | AE100: 1580.48 | AG100: 225.594 | AH100: 1000 | AL100: 529.3372 | AM100: 4613 | AN100: 437.7084 | AO100: 493.0197 | AP100: 489.0760043 | AR100: 497.0591884 | AS100: 0.02026360227
A101: 2013-08-12 | B101: 33 | C101: 488.93 | H101: 484.3725 | I101: 3612.63 | J101: 528.36 | K101: 231.54 | M101: 512.66 | N101: 651 | Q101: 431.01 | S101: 485 | AB101: 529.38 | AC101: 529 | AD101: 353.5067 | AE101: 1486.44 | AG101: 225.4145 | AH101: 1000 | AL101: 511.7837 | AM101: 4439 | AN101: 430.1233 | AO101: 494.2523 | AP101: 489.6799023 | AR101: 497.8855525 | AS101: 0.001662506474
A102: 2013-08-19 | B102: 34 | C102: 489.93 | H102: 484.3492 | I102: 3612.38 | J102: 526.32 | K102: 184.13 | M102: 514.97 | N102: 657 | Q102: 420.02 | S102: 490 | AB102: 536.6 | AC102: 522 | AD102: 372.1604 | AE102: 1576.45 | AG102: 236.5156 | AH102: 1000 | AL102: 505.857 | AM102: 4406 | AN102: 418.7549 | AO102: 493.3818 | AP102: 488.060902 | AR102: 497.9420383 | AS102: 0.0001134512621
C500: BE | D500: BG | E500: BG | F500: CZ | G500: CZ | H500: DK | I500: DK | J500: DE | K500: EE | L500: GR | M500: ES | N500: FR | O500: HR | P500: HR | Q500: IE | R500: IT | S500: CY | T500: LV | U500: LV | V500: LT | W500: LT | X500: LU | Y500: HU | Z500: HU | AA500: MT | AB500: NL | AC500: AT | AD500: PL | AE500: PL | AF500: PT | AG500: RO | AH500: RO | AI500: SI | AJ500: SK | AK500: FI | AL500: SE | AM500: SE | AN500: NI | AO500: GB | AP500: UK | AR500: EU_27
A501: Change 1 week | C501: 0.002045282556 | G501: 0 | H501: -4.810347408e-05 | I501: -6.920166195e-05 | J501: -0.003861003861 | K501: -0.2047594368 | M501: 0.00450591035 | N501: 0.009216589862 | P501: 0 | Q501: -0.0254982483 | S501: 0.01030927835 | AB501: 0.01363859609 | AC501: -0.01323251418 | AD501: 0.0527675996 | AE501: 0.06055407551 | AG501: 0.04924749739 | AH501: 0 | AL501: -0.01158047824 | AM501: -0.007434106781 | AN501: -0.02643056073 | AO501: -0.00176124623 | AP501: -0.003306242021 | AR501: 0.0001134512621
A502: Change 4 Weeks | C502: 0.006161049843 | G502: 0 | H502: -0.03447739695 | I502: 0 | J502: -0.007692307692 | K502: -0.36881256 | M502: 0.03366118025 | N502: 0.0201863354 | P502: 0 | Q502: -0.04618948133 | S502: 0.02083333333 | AB502: -0.02599288463 | AC502: -0.01323251418 | AD502: 0.0724156413 | AE502: -0.01255253713 | AG502: 0.04135101649 | AH502: -0.06367041199 | AL502: -0.07729391936 | AM502: 0.1613073274 | AN502: -0.009853585364 | AO502: 0.03709637617 | AP502: 0.03409671367 | AR502: 0.01724154853
A503: Change 1 Year | C503: 0.0009602418992 | G503: 0 | I503: 0 | J503: 0.04453441296 | K503: -0.1816080715 | M503: -0.04763930242 | N503: 0.08059210526 | P503: 0 | Q503: -0.02327744576 | AB503: -0.02891888957 | AC503: -0.007604562738 | AD503: -0.0346947695 | AE503: -0.01255253713 | AG503: -0.01079480009 | AH503: -0.06367041199 | AL503: 0.1063026558 | AM503: 0.1613073274 | AN503: -0.01913984197 | AO503: -0.06144151465 | AP503: -0.05895875592 | AR503: -0.01550295927
A504: Difference in average - last 4 weeks 2013 with same weeks 2012 | C504: -0.003507340946 | I504: -6.920166195e-05 | J504: 0.07615546218 | K504: -0.1213423028 | M504: -0.03794453753 | N504: 0.08927074602 | Q504: -0.02208654132 | AB504: -0.03831501179 | AC504: 0.009174311927 | AD504: -0.05221174704 | AE504: 0.9259360581 | AG504: -0.01700737109 | AH504: -0.03183520599 | AL504: 0.03347845721 | AM504: 0.02403326852 | AN504: -0.02057191557 | AO504: -0.07820364905 | AP504: -0.07476850932 | AR504: -0.02053399516
A506: ??? | B506: Price not communicated

Sheet Light Lamb Prices
A1: COMMISSION EUROPEENNE | AQ1: Week | AR1: =COVER!G35 -> 34
A2: Direction générale de l'Agriculture
A3: C4. Produits animaux
Q4: LIGHT LAMB PRICE
P6: DG-Agri-C4, Meat sector
A8: LIGHT LAMB | AL8: €ur per 100 kg carcass
A9: EU_L | C9: Country Code/Currency
A10: 2013 | C10: BE | D10: BG | E10: BG | F10: CZ | G10: CZ | H10: DK | I10: DK | J10: DE | K10: EE | L10: GR | M10: ES | N10: FR | O10: HR | P10: HR | Q10: IE | R10: IT | S10: CY | T10: LV | U10: LV | V10: LT | W10: LT | X10: LU | Y10: HU | Z10: HU | AA10: MT | AB10: NL | AC10: AT | AD10: PL | AE10: PL | AF10: PT | AG10: RO | AH10: RO | AI10: SI | AJ10: SK | AK10: FI | AL10: SE | AM10: SEK | AN10: GB | AO10: GBP | AQ10: EU_27
A11: Weightings from 01/01/2012 until 31/12/2012 | D11: 4.77 | L11: 31.88 | M11: 35.6 | R11: 18.66 | S11: 0.92 | Y11: 0.29 | AF11: 6.88 | AI11: 0.59 | AJ11: 0.41 | AQ11: 100
A12: Weightings from 01/01/2012 until 30/06/2013 | D12: 5.86 | L12: 33.75 | M12: 39.55 | R12: 12.51 | S12: 0 | Y12: 0.38 | AF12: 7 | AI12: 0.59 | AJ12: 0.36 | AQ12: 100
A13: Weightings from 01/07/2013 until --/--/---- | D13: 3.706795785 | L13: 34.68181254 | M13: 39.03123225 | O13: 1.394502533 | R13: 12.5139937 | Y13: 0.44046031 | AF13: 7.217982827 | AI13: 0.6179351601 | AJ13: 0.3952848936 | AQ13: 100
A14: Week beginning | B14: Week N° | C14: EUR | D14: EUR | E14: BGN | F14: EUR | G14: CZK | H14: EUR | I14: DKK | J14: EUR | K14: EUR | L14: EUR | M14: EUR | N14: EUR | O14: EUR | P14: HRK | Q14: EUR | R14: EUR | S14: EUR | T14: EUR | U14: LVL | V14: EUR | W14: LTL | X14: EUR | Y14: EUR | Z14: HUF | AA14: EUR | AB14: EUR | AC14: EUR | AD14: EUR | AE14: PLN | AF14: EUR | AG14: EUR | AH14: RON | AI14: EUR | AJ14: EUR | AK14: EUR | AL14: EUR | AM14: SEK | AN14: EUR | AO14: GBP | AQ14: EURO | AR14: Compare to last week
A15: 2012
A16: 2012-01-02 | B16: 1 | D16: 528.735 | E16: 1034.1 | L16: 515.964 | M16: 803.68 | R16: 600.37 | S16: 603 | Y16: 724.9764 | Z16: 230148.93 | AF16: 480 | AI16: 402.8 | AJ16: 740.48 | AQ16: 633.9356243
A17: 2012-01-09 | B17: 2 | D17: 527.9937 | E17: 1032.65 | L17: 491.676 | M17: 762.49 | R17: 596.13 | S17: 580 | Y17: 728.1788 | Z17: 227322.86 | AF17: 480 | AI17: 405.52 | AJ17: 740.48 | AQ17: 610.5161608 | AR17: -0.03694296795
A18: 2012-01-16 | B18: 3 | D18: 528.1368 | E18: 1032.93 | L18: 471.732 | M18: 715.61 | R18: 606.24 | S18: 553 | Y18: 589.2085 | Z18: 180803.67 | AF18: 480 | AI18: 403.31 | AJ18: 740.48 | AQ18: 588.6976326 | AR18: -0.0357378389
A19: 2012-01-23 | B19: 4 | D19: 528.1624 | E19: 1032.98 | L19: 462.1 | M19: 695.76 | R19: 604.63 | S19: 513 | Y19: 574.3845 | Z19: 171497.26 | AF19: 480 | AI19: 410.88 | AJ19: 436.89 | AQ19: 576.6501005 | AR19: -0.02046471977
A20: 2012-01-30 | B20: 5 | D20: 528.2033 | E20: 1033.06 | L20: 466.284 | M20: 697.78 | R20: 604.5 | S20: 492 | Y20: 566.253 | Z20: 166062.58 | AF20: 456 | AI20: 387.09 | AJ20: 515.47 | AQ20: 576.9946083 | AR20: 0.0005974294979
A21: 2012-02-06 | B21: 6 | D21: 528.3362 | E21: 1033.32 | L21: 485.224 | M21: 704.1 | R21: 604.5 | S21: 455 | Y21: 634.7326 | Z21: 185358.25 | AF21: 456 | AI21: 408.832 | AJ21: 515.47 | AQ21: 585.2754083 | AR21: 0.01435160719
A22: 2012-02-13 | B22: 7 | D22: 528.4078 | E22: 1033.46 | L22: 492.19 | M22: 698.36 | R22: 604.5 | S22: 463 | Y22: 573.709 | Z22: 167147.65 | AF22: 456 | AI22: 381.89 | AJ22: 459.34 | AQ22: 584.9636852 | AR22: -0.0005326092906
A23: 2012-02-20 | B23: 8 | D23: 528.4538 | E23: 1033.55 | L23: 491.45 | M23: 696.13 | R23: 604.63 | S23: 443 | Y23: 594.6507 | Z23: 171710.5 | AF23: 456 | AI23: 426.99 | AJ23: 459.34 | AQ23: 584.1031663 | AR23: -0.001471063746
A24: 2012-02-27 | B24: 9 | D24: 537.555 | E24: 1051.35 | L24: 485.072 | M24: 701.2 | R24: 604.23 | S24: 432 | Y24: 597.6473 | Z24: 172911.32 | AF24: 456 | AI24: 407.13 | AJ24: 459.34 | AQ24: 584.0245833 | AR24: -0.0001345361993
A25: 2012-03-05 | B25: 10 | D25: 560.0879 | E25: 1095.42 | L25: 489.436 | M25: 696.28 | R25: 604.88 | S25: 446 | Y25: 586.8308 | Z25: 171603.57 | AF25: 480 | AI25: 408.35 | AJ25: 459.34 | AQ25: 586.616246 | AR25: 0.004437591763
A26: 2012-03-12 | B26: 11 | D26: 563.5801 | E26: 1102.25 | L26: 489.12 | M26: 698.72 | R26: 604.75 | S26: 433 | Y26: 587.3021 | Z26: 171538.36 | AF26: 456 | AI26: 408.35 | AJ26: 555.26 | AQ26: 586.1503039 | AR26: -0.0007942877362
A27: 2012-03-19 | B27: 12 | D27: 562.6035 | E27: 1100.34 | L27: 489.12 | M27: 684.55 | R27: 606.09 | S27: 447 | Y27: 607.1786 | Z27: 177248.44 | AF27: 456 | AI27: 415.81 | AJ27: 583.79 | AQ27: 581.6566729 | AR27: -0.007666345885
A28: 2012-03-26 | B28: 13 | D28: 564.1988 | E28: 1103.46 | L28: 515.21 | M28: 657.08 | R28: 607.24 | S28: 461 | Y28: 623.7775 | Z28: 183191.88 | AF28: 456 | AI28: 417.24 | AJ28: 542 | AQ28: 580.4995655 | AR28: -0.001989330535
A29: 2012-04-02 | B29: 14 | D29: 565.1549 | E29: 1105.33 | L29: 530.388 | M29: 701.55 | R29: 607.24 | S29: 466 | Y29: 620.7637 | Z29: 183320.39 | AF29: 456 | AI29: 435.3 | AJ29: 644.44 | AQ29: 601.7790559 | AR29: 0.03665720289
A30: 2012-04-09 | B30: 15 | D30: 563.1302 | E30: 1101.37 | L30: 536.632 | M30: 690.63 | R30: 607.24 | S30: 469 | Y30: 587.3119 | Z30: 174247.06 | AF30: 444 | AI30: 413.25 | AJ30: 644.44 | AQ30: 598.7604397 | AR30: -0.005016153654
A31: 2012-04-16 | B31: 16 | D31: 563.1302 | E31: 1101.37 | L31: 543.042 | M31: 663.09 | R31: 607.37 | S31: 509 | Y31: 599.8404 | Z31: 178292.27 | AF31: 444 | AI31: 407 | AJ31: 644.44 | AQ31: 591.3914233 | AR31: -0.01230711961
A32: 2012-04-23 | B32: 17 | D32: 563.1302 | E32: 1101.37 | L32: 534.838 | M32: 679.93 | R32: 606.84 | S32: 529 | Y32: 620.858 | Z32: 181227.56 | AF32: 444 | AI32: 418.76 | AJ32: 479.75 | AQ32: 594.3112361 | AR32: 0.004937191723
A33: 2012-04-30 | B33: 18 | D33: 564.7101 | E33: 1104.46 | L33: 525.992 | M33: 692.67 | R33: 606.84 | S33: 550 | Y33: 614.4247 | Z33: 175297.99 | AF33: 439 | AI33: 400 | AJ33: 479.75 | AQ33: 595.821792 | AR33: 0.002541691572
A34: 2012-05-07 | B34: 19 | D34: 563.5955 | E34: 1102.28 | L34: 500.748 | M34: 675.32 | R34: 605.17 | S34: 556 | Y34: 587.7164 | Z34: 169312.69 | AF34: 415 | AI34: 410.07 | AJ34: 511.38 | AQ34: 579.7482583 | AR34: -0.02697708259
A35: 2012-05-14 | B35: 20 | D35: 563.5955 | E35: 1102.28 | L35: 505.908 | M35: 605.27 | R35: 605.17 | S35: 564 | Y35: 612.985 | Z35: 180444.39 | AF35: 410 | AI35: 400 | AJ35: 511.38 | AQ35: 556.1989323 | AR35: -0.04061991687
A36: 2012-05-21 | B36: 21 | D36: 563.2733 | E36: 1101.65 | L36: 505.164 | M36: 602.12 | R36: 604.1 | S36: 573 | Y36: 549.3663 | Z36: 164426.13 | AF36: 422 | AI36: 404.11 | AJ36: 481.89 | AQ36: 555.2525599 | AR36: -0.001701499796
A37: 2012-05-28 | B37: 22 | D37: 563.2836 | E37: 1101.67 | L37: 505.164 | M37: 602.12 | R37: 603.96 | S37: 573 | Y37: 579.2185 | Z37: 174564.05 | AF37: 422 | AI37: 418.4 | AJ37: 481.89 | AQ37: 555.3978096 | AR37: 0.0002615921123
A38: 2012-06-04 | B38: 23 | D38: 563.2631 | E38: 1101.63 | L38: 505.164 | M38: 607.2 | R38: 603.96 | S38: 561 | Y38: 591.142 | Z38: 177303.74 | AF38: 422 | AI38: 422.16 | AJ38: 481.89 | AQ38: 557.1516739 | AR38: 0.003157852389
A39: 2012-06-11 | B39: 24 | D39: 563.1609 | E39: 1101.43 | L39: 501.18 | M39: 605.09 | R39: 603.7 | S39: 558 | Y39: 562.5467 | Z39: 166897.96 | AF39: 402 | AI39: 390.83 | AJ39: 481.89 | AQ39: 553.4056504 | AR39: -0.006723525542
A40: 2012-06-18 | B40: 25 | D40: 563.1404 | E40: 1101.39 | L40: 507.61 | M40: 594.92 | R40: 603.43 | S40: 539 | Y40: 568.2357 | Z40: 164459.59 | AF40: 402 | AI40: 400 | AJ40: 481.79 | AQ40: 551.6790456 | AR40: -0.003119962272
A41: 2012-06-25 | B41: 26 | D41: 563.1404 | E41: 1101.39 | L41: 508.058 | M41: 604.52 | R41: 603.43 | S41: 515 | Y41: 578.2765 | Z41: 166233.01 | AF41: 402 | AI41: 400 | AJ41: 481.79 | AQ41: 555.0477863 | AR41: 0.006106341625
A42: 2012-07-02 | B42: 27 | D42: 563.0944 | E42: 1101.3 | L42: 518.512 | M42: 606.14 | R42: 603.43 | S42: 495 | Y42: 659.5562 | Z42: 189076.87 | AF42: 394 | AI42: 397.7 | AJ42: 481.79 | AQ42: 558.4427885 | AR42: 0.006116594307
A43: 2012-07-09 | B43: 28 | D43: 563.0688 | E43: 1101.25 | L43: 544.37 | M43: 638.09 | R43: 603.7 | S43: 469 | Y43: 577.2061 | Z43: 166613.02 | AF43: 386 | AI43: 400 | AJ43: 481.89 | AQ43: 577.0952445 | AR43: 0.033400836
A44: 2012-07-16 | B44: 29 | D44: 563.0535 | E44: 1101.22 | L44: 541.342 | M44: 679.4 | R44: 603.7 | S44: 470 | Y44: 571.1544 | Z44: 163660.22 | AF44: 386 | AI44: 413.08 | AJ44: 481.89 | AQ44: 590.9043703 | AR44: 0.02392867727
A45: 2012-07-23 | B45: 30 | D45: 563.0279 | E45: 1101.17 | L45: 555.346 | M45: 688.04 | R45: 603.7 | S45: 465 | Y45: 600.8628 | Z45: 171843.34 | AF45: 386 | AI45: 400 | AJ45: 481.89 | AQ45: 598.4064467 | AR45: 0.01269592309
A46: 2012-07-30 | B46: 31 | D46: 563.0279 | E46: 1101.17 | L46: 548.578 | M46: 695.72 | R46: 604.1 | S46: 465 | Y46: 631.2048 | Z46: 176692.27 | AF46: 396 | AI46: 400 | AJ46: 481.89 | AQ46: 599.8335202 | AR46: 0.002384789482
A47: 2012-08-06 | B47: 32 | D47: 563.0279 | E47: 1101.17 | L47: 551.196 | M47: 707.41 | R47: 604.1 | S47: 471 | Y47: 635.1944 | Z47: 176424.34 | AF47: 396 | AI47: 418.61 | AJ47: 467.51 | AQ47: 604.9473894 | AR47: 0.008525480935
A48: 2012-08-13 | B48: 33 | D48: 563.0279 | E48: 1101.17 | L48: 553.134 | M48: 731.89 | R48: 604.1 | S48: 468 | Y48: 647.6687 | Z48: 180603.33 | AF48: 396 | AI48: 410.84 | AJ48: 528.73 | AQ48: 614.4938383 | AR48: 0.01578062661
A49: 2012-08-20 | B49: 34 | D49: 563.0484 | E49: 1101.21 | L49: 549.53 | M49: 727.3 | R49: 604.1 | S49: 465 | Y49: 673.085 | Z49: 186668.58 | AF49: 400 | AI49: 440.36 | AJ49: 459.34 | AQ49: 611.9227972 | AR49: -0.004183998146
A50: 2012-08-27 | B50: 35 | D50: 563.5955 | E50: 1102.28 | L50: 562.328 | M50: 728.32 | R50: 604.1 | S50: 465 | Y50: 641.2375 | Z50: 180701.65 | AF50: 400 | AI50: 393.9181 | AJ50: 436.89 | AQ50: 615.9336063 | AR50: 0.006554436489
A51: 2012-09-03 | B51: 36 | D51: 563.5955 | E51: 1102.28 | L51: 560.882 | M51: 779.95 | R51: 604.1 | S51: 463 | Y51: 643.4554 | Z51: 183599.9 | AF51: 400 | AI51: 399.39 | AJ51: 459.34 | AQ51: 633.9652626 | AR51: 0.0292753247
A52: 2012-09-10 | B52: 37 | D52: 564.5567 | E52: 1104.16 | L52: 566.858 | M52: 785.42 | R52: 604.1 | S52: 465 | Y52: 651.7587 | Z52: 185066.87 | AF52: 400 | AI52: 394.87 | AJ52: 459.34 | AQ52: 637.8793922 | AR52: 0.006174044291
A53: 2012-09-17 | B53: 38 | D53: 565.2521 | E53: 1105.52 | L53: 566.652 | M53: 789.07 | R53: 605.02 | S53: 470 | Y53: 665.2592 | Z53: 188223.68 | AF53: 400 | AI53: 402.82 | AJ53: 459.34 | AQ53: 639.4500185 | AR53: 0.002462262066
A54: 2012-09-24 | B54: 39 | D54: 566.1264 | E54: 1107.23 | L54: 556.79 | M54: 791.4 | R54: 605.02 | S54: 480 | Y54: 649.9234 | Z54: 184701.72 | AF54: 420 | AI54: 396.12 | AJ54: 459.34 | AQ54: 638.5611931 | AR54: -0.001389984024
A55: 2012-10-01 | B55: 40 | D55: 566.2849 | E55: 1107.54 | L55: 529.188 | M55: 781.04 | R55: 605.02 | S55: 486 | Y55: 682.0093 | Z55: 194162.21 | AF55: 420 | AI55: 406.66 | AJ55: 443.02 | AQ55: 626.2245991 | AR55: -0.01931936073
A56: 2012-10-08 | B56: 41 | D56: 566.0139 | E56: 1107.01 | L56: 536.412 | M56: 788.61 | R56: 605.02 | S56: 490 | Y56: 668.8076 | Z56: 188861.7 | AF56: 420 | AI56: 410.5708 | AJ56: 406.28 | AQ56: 631.0805584 | AR56: 0.007754341329
A57: 2012-10-15 | B57: 42 | D57: 565.5895 | E57: 1106.18 | L57: 522.528 | M57: 792.63 | R57: 606.08 | S57: 490 | Y57: 667.3651 | Z57: 186216.8 | AF57: 432 | AI57: 386.12 | AJ57: 447.1 | AQ57: 629.1075303 | AR57: -0.003126428193
A58: 2012-10-22 | B58: 43 | D58: 565.1038 | E58: 1105.23 | L58: 530.772 | M58: 776.47 | R58: 605.95 | S58: 505 | Y58: 674.9554 | Z58: 189491.79 | AF58: 432 | AI58: 375.2 | AJ58: 414.45 | AQ58: 625.8970505 | AR58: -0.005103229043
A59: 2012-10-29 | B59: 44 | D59: 565.5077 | E59: 1106.02 | L59: 530.772 | M59: 783.25 | R59: 605.95 | S59: 505 | Y59: 692.1834 | Z59: 195869.11 | AF59: 450 | AI59: 395.66 | AJ59: 412.4 | AQ59: 629.7306668 | AR59: 0.00612499488
A60: 2012-11-05 | B60: 45 | D60: 566.0395 | E60: 1107.06 | L60: 534.118 | M60: 785.57 | R60: 605.95 | S60: 512 | Y60: 685.762 | Z60: 194097.11 | AF60: 456 | AI60: 404.4 | AJ60: 412.4 | AQ60: 632.1588024 | AR60: 0.003855831911
A61: 2012-11-12 | B61: 46 | D61: 566.3053 | E61: 1107.58 | L61: 539.614 | M61: 788.49 | R61: 605.95 | S61: 525 | Y61: 689.9558 | Z61: 196150.48 | AF61: 468 | AI61: 410.73 | AJ61: 406.28 | AQ61: 635.9327428 | AR61: 0.00596992475
A62: 2012-11-19 | B62: 47 | D62: 566.3053 | E62: 1107.58 | L62: 536.77 | M62: 796.06 | R62: 608.08 | S62: 542 | Y62: 699.4386 | Z62: 196888.96 | AF62: 468 | AI62: 380.75 | AJ62: 425.47 | AQ62: 638.2041507 | AR62: 0.003571773817
A63: 2012-11-26 | B63: 48 | D63: 565.6713 | E63: 1106.34 | L63: 534.772 | M63: 786.37 | R63: 608.08 | S63: 557 | Y63: 690.798 | Z63: 193901.08 | AF63: 468 | AI63: 402.89 | AJ63: 421.59 | AQ63: 634.3149668 | AR63: -0.006093949617
A64: 2012-12-03 | B64: 49 | D64: 565.6713 | E64: 1106.34 | L64: 530.376 | M64: 789.17 | R64: 609.15 | S64: 543 | Y64: 712.0465 | Z64: 201339.29 | AF64: 473 | AI64: 417 | AJ64: 421.59 | AQ64: 634.4700537 | AR64: 0.0002444950192
A65: 2012-12-10 | B65: 50 | D65: 566.6275 | E65: 1108.21 | L65: 529.356 | M65: 785.15 | R65: 611.55 | S65: 539 | Y65: 699.1133 | Z65: 198044.81 | AF65: 485 | AI65: 382.29 | AJ65: 680.47 | AQ65: 634.8151211 | AR65: 0.0005438672133
A66: 2012-12-17 | B66: 51 | D66: 566.6275 | E66: 1108.21 | L66: 522.916 | M66: 700.65 | R66: 611.55 | S66: 528 | Y66: 697.2965 | Z66: 199893.99 | AF66: 495 | AI66: 411.95 | AJ66: 680.47 | AQ66: 603.4365744 | AR66: -0.04942942548
A67: 2013
A68: 2012-12-24 | B68: 52 | D68: 566.6275 | E68: 1108.21 | L68: 522.916 | M68: 697.73 | R68: 611.55 | S68: 528 | Y68: 674.2995 | Z68: 195622 | AF68: 495 | AI68: 400 | AJ68: 680.47 | AQ68: 604.1676716 | AR68: 0.001211555996
A69: 2012-12-31 | B69: 1 | D69: 566.607 | E69: 1108.17 | L69: 526.318 | M69: 775.45 | R69: 612.17 | Y69: 649.2637 | Z69: 189222.35 | AF69: 495 | AI69: 398.52 | AJ69: 680.47 | AQ69: 636.0265993 | AR69: 0.05273193048
A70: =A69+7 -> 2013-01-07 | B70: =B69+1 -> 2 | D70: 566.5099 | E70: 1107.98 | L70: 526.318 | M70: 808.13 | R70: 612.17 | Y70: 645.0417 | Z70: 188959.43 | AF70: 470 | AI70: 403.63 | AJ70: 680.47 | AQ70: 647.2099546 | AR70: 0.01758315667
A71: =A70+7 -> 2013-01-14 | B71: =B70+1 -> 3 | D71: 566.4843 | E71: 1107.93 | L71: 487.056 | M71: 671.39 | R71: 611.55 | Y71: 585.0409 | Z71: 172370.59 | AF71: 446 | AI71: 396.88 | AJ71: 680.47 | AQ71: 577.8514694 | AR71: -0.107165356
A72: 2013-01-21 | B72: 4 | D72: 561.5247 | E72: 1098.23 | L72: 479.106 | M72: 634.3 | R72: 611.55 | Y72: 531.4591 | Z72: 156769.81 | AF72: 426 | AI72: 407.78 | AJ72: 680.47 | AQ72: 558.669316 | AR72: -0.03319564701
A73: 2013-01-28 | B73: 5 | D73: 561.5247 | E73: 1098.23 | L73: 452.77 | M73: 615.1 | R73: 612.8 | Y73: 533.2916 | Z73: 157456.64 | AF73: 426 | AI73: 413.6 | AJ73: 680.47 | AQ73: 542.3849925 | AR73: -0.02914841219
A74: 2013-02-04 | B74: 6 | D74: 561.5451 | E74: 1098.27 | L74: 462.44 | M74: 619.32 | R74: 612.8 | Y74: 517.6075 | Z74: 151655.29 | AF74: 436 | AI74: 414.97 | AJ74: 680.47 | AQ74: 547.9673064 | AR74: 0.01029216136
A75: 2013-02-11 | B75: 7 | D75: 561.5145 | E75: 1098.21 | L75: 459.678 | M75: 615.19 | R75: 611.27 | Y75: 528.8122 | Z75: 154231.85 | AF75: 436 | AI75: 406.13 | AJ75: 692.58 | AQ75: 545.2425381 | AR75: -0.004972501586
A76: 2013-02-18 | B76: 8 | D76: 561.5145 | E76: 1098.21 | L76: 450.618 | M76: 614.09 | R76: 611.27 | Y76: 528.7573 | Z76: 154398.64 | AF76: 412 | AI76: 415.76 | AJ76: 392.58 | AQ76: 539.0463464 | AR76: -0.01136410164
A77: 2013-02-25 | B77: 9 | D77: 561.0645 | E77: 1097.33 | L77: 444.15 | M77: 609.72 | R77: 610.73 | Y77: 535.2574 | Z77: 157735 | AF77: 414 | AI77: 400 | AJ77: 392.73 | AQ77: 535.1133938 | AR77: -0.007296130743
A78: 2013-03-04 | B78: 10 | D78: 561.5145 | E78: 1098.21 | L78: 440.874 | M78: 629.9 | R78: 610.73 | Y78: 538.2367 | Z78: 160251.51 | AF78: 414 | AI78: 414.31 | AJ78: 392.73 | AQ78: 542.1110542 | AR78: 0.01307696728
A79: 2013-03-11 | B79: 11 | D79: 560.3794 | E79: 1095.99 | L79: 442.338 | M79: 599.54 | R79: 586.2 | Y79: 568.2986 | Z79: 172670.21 | AF79: 414 | AI79: 407.19 | AJ79: 489.32 | AQ79: 527.8825055 | AR79: -0.02624655692
A80: 2013-03-18 | B80: 12 | D80: 558.2831 | E80: 1091.89 | L80: 443.082 | M80: 568.17 | R80: 694.23 | Y80: 577.815 | Z80: 176841.92 | AF80: 426 | AI80: 406.35 | AJ80: 474.14 | AQ80: 529.9350387 | AR80: 0.003888238611
A81: 2013-03-25 | B81: 13 | D81: 553.8143 | E81: 1083.15 | L81: 445.83 | M81: 627.86 | R81: 704.25 | Y81: 596.6032 | Z81: 182013.42 | AF81: 431 | AI81: 411.39 | AJ81: 508.62 | AQ81: 556.0367731 | AR81: 0.04925459269
A82: 2013-04-01 | B82: 14 | D82: 551.9225 | E82: 1079.45 | L82: 452.244 | M82: 621.57 | R82: 657.12 | Y82: 595.9325 | Z82: 180183.61 | AF82: 439 | AI82: 418.74 | AJ82: 461.81 | AQ82: 550.139281 | AR82: -0.01060629876
A83: 2013-04-08 | B83: 15 | D83: 549.8159 | E83: 1075.33 | L83: 471.512 | M83: 609.09 | R83: 579.09 | Y83: 579.9623 | Z83: 172458.42 | AF83: 427 | AI83: 415.2 | AJ83: 461.81 | AQ83: 540.8998185 | AR83: -0.01679476969
A84: 2013-04-15 | B84: 16 | D84: 547.8014 | E84: 1071.39 | L84: 480.27 | M84: 614.59 | R84: 565.44 | Y84: 580.2922 | Z84: 171816.24 | AF84: 427 | AI84: 391.23 | AJ84: 437.61 | AQ84: 543.9779394 | AR84: 0.00569074127
A85: 2013-04-22 | B85: 17 | D85: 548.0571 | E85: 1071.89 | L85: 515.116 | M85: 600.32 | R85: 560.41 | Y85: 523.0008 | Z85: 157005.58 | AF85: 427 | AI85: 452.94 | AJ85: 437.61 | AQ85: 549.6267921 | AR85: 0.01038434152
A86: 2013-04-29 | B86: 18 | D86: 574.9719 | E86: 1124.53 | L86: 536.686 | M86: 621.87 | R86: 557.38 | Y86: 522.399 | Z86: 155919.69 | AF86: 427 | AI86: 391.05 | AJ86: 437.61 | AQ86: 566.2604085 | AR86: 0.03026347456
A87: 2013-05-06 | B87: 19 | D87: 546.6408 | E87: 1069.12 | L87: 515.212 | M87: 618.65 | R87: 564.34 | Y87: 526.7263 | Z87: 155126.16 | AF87: 397 | AI87: 418.98 | AJ87: 437.61 | AQ87: 555.0311478 | AR87: -0.01983055949
A88: 2013-05-13 | B88: 20 | D88: 545.5312 | E88: 1066.95 | L88: 495.762 | M88: 639.72 | R88: 596.15 | Y88: 522.8652 | Z88: 152821.56 | AF88: 397 | AI88: 401.97 | AJ88: 437.61 | AQ88: 560.5993351 | AR88: 0.01003220681
A89: 2013-05-20 | B89: 21 | D89: 546.0425 | E89: 1067.95 | L89: 484.464 | M89: 652.75 | R89: 590.94 | Y89: 519.1378 | Z89: 150773.19 | AF89: 397 | AI89: 427.12 | AJ89: 437.61 | AQ89: 561.4520371 | AR89: 0.001521054355
A90: 2013-05-27 | B90: 22 | D90: 545.5312 | E90: 1066.95 | L90: 482.336 | M90: 665.9 | R90: 571.05 | Y90: 513.7399 | Z90: 149649.51 | AF90: 397 | AI90: 418.66 | AJ90: 394.92 | AQ90: 563.1923509 | AR90: 0.003099666018
A91: 2013-06-03 | B91: 23 | D91: 545.0608 | E91: 1066.03 | L91: 479.45 | M91: 686.49 | R91: 571.05 | Y91: 519.4948 | Z91: 153363.77 | AF91: 421 | AI91: 391.23 | AJ91: 402.93 | AQ91: 571.9029731 | AR91: 0.01546651364
A92: 2013-06-10 | B92: 24 | D92: 544.8154 | E92: 1065.55 | L92: 477.32 | M92: 709.3 | R92: 570.61 | Y92: 533.0965 | Z92: 157392.93 | AF92: 421 | AI92: 419.62 | AJ92: 358.19 | AQ92: 580.1941521 | AR92: 0.01449752739
A93: 2013-06-17 | B93: 25 | D93: 562.2201 | E93: 1099.59 | L93: 477.991 | M93: 726.17 | R93: 575.19 | Y93: 533.3499 | Z93: 157426.61 | AF93: 421 | AI93: 401.54 | AJ93: 358.05 | AQ93: 588.57936 | AR93: 0.01445241702
A94: 2013-06-24 | B94: 26 | D94: 564.5414 | E94: 1104.13 | L94: 480.032 | M94: 716.87 | R94: 586.21 | Y94: 544.0501 | Z94: 161477.97 | AF94: 421 | AI94: 408.45 | AJ94: 397.69 | AQ94: 587.3288114 | AR94: -0.002124689796
A95: 2013-07-01 | B95: 27 | D95: 566.0957 | E95: 1107.17 | L95: 489.372 | M95: 738.89 | O95: 658.1755 | P95: 4918 | R95: 588.16 | Y95: 554.6121 | Z95: 163414.88 | AF95: 409 | AI95: 419.07 | AJ95: 397.69 | AQ95: 598.0115279 | AR95: 0.01818864704
A96: 2013-07-08 | B96: 28 | D96: 566.0957 | L96: 501.696 | M96: 757.28 | O96: 568.3777 | P96: 4278 | R96: 587.41 | Y96: 552.8893 | Z96: 162263.54 | AF96: 409 | AI96: 420 | AJ96: 394.77 | AQ96: 608.1040867 | AR96: 0.0168768634
A97: 2013-07-15 | B97: 29 | D97: 567.6194 | E97: 1110.15 | L97: 517.314 | M97: 749.94 | O97: 610.5397 | P97: 4592 | R97: 584.93 | Y97: 571.9174 | Z97: 168095.52 | AF97: 409 | AI97: 402.06 | AJ97: 394.77 | AQ97: 610.962837 | AR97: 0.004701087067
A98: 2013-07-22 | B98: 30 | D98: 569.2658 | E98: 1113.37 | L98: 523.688 | M98: 753.02 | O98: 546.0193 | P98: 4098 | R98: 581.69 | Y98: 613.5371 | Z98: 181388.73 | AF98: 423 | AI98: 436.44 | AJ98: 394.77 | AQ98: 614.5377363 | AR98: 0.005851254952
A99: =A98+7 -> 2013-07-29 | B99: =B98+1 -> 31 | D99: 570.1043 | E99: 1115.01 | L99: 526.972 | M99: 760.7 | O99: 596.1015 | P99: 4478 | R99: 626.45 | Y99: 611.6272 | Z99: 182836.34 | AF99: 429 | AI99: 418.82 | AJ99: 394.77 | AQ99: 625.3208147 | AR99: 0.01754664974
A100: =A99+7 -> 2013-08-05 | B100: =B99+1 -> 32 | D100: 574.9719 | E100: 1124.53 | L100: 545.838 | M100: 760.85 | O100: 597.1199 | P100: 4486 | R100: 626.45 | Y100: 618.7991 | Z100: 185087.24 | AF100: 429 | AI100: 404.62 | AJ100: 470.25 | AQ100: 632.3592696 | AR100: 0.0112557501
A101: =A100+7 -> 2013-08-12 | B101: =B100+1 -> 33 | D101: 574.9719 | E101: 1124.53 | L101: 553.06 | M101: 755.73 | O101: 572.2913 | P101: 4313 | R101: 627.14 | Y101: 617.8799 | Z101: 184715.19 | AF101: 429 | AI101: 399.56 | AJ101: 496.77 | AQ101: 632.6752154 | AR101: 0.0004996302725
A102: =A101+7 -> 2013-08-19 | B102: =B101+1 -> 34 | D102: 574.9719 | E102: 1124.53 | L102: 545.932 | M102: 770.09 | O102: 576.0635 | P102: 4347 | R102: 624.86 | Y102: 632.126 | Z102: 189396.68 | AF102: 429 | AI102: 414.5 | AJ102: 496.77 | AQ102: 635.730333 | AR102: 0.004828887835
C500: BE | D500: BG | E500: BG | F500: CZ | G500: CZ | H500: DK | I500: DK | J500: DE | K500: EE | L500: GR | M500: ES | N500: FR | O500: HR | P500: HR | Q500: IE | R500: IT | S500: CY | T500: LV | U500: LV | V500: LT | W500: LT | X500: LU | Y500: HU | Z500: HU | AA500: MT | AB500: NL | AC500: AT | AD500: PL | AE500: PL | AF500: PT | AG500: RO | AH500: RO | AI500: SI | AJ500: SK | AK500: FI | AL500: SE | AM500: SEK | AN500: GB | AQ500: EU_27
A501: Change 1 week | D501: 0 | E501: =INDEX(E:E,MATCH(MAX($A$16:$A$500),$A:$A,0),1)/INDEX(E:E,MATCH(MAX($A$16:$A$500),$A:$A,0)-1,1)-1 -> 0 | L501: -0.01288829422 | M501: 0.01900149524 | O501: 0.006591398471 | R501: -0.00363555187 | X501: =INDEX(X:X,MATCH(MAX($A$16:$A$500),$A:$A,0),1)/INDEX(X:X,MATCH(MAX($A$16:$A$500),$A:$A,0)-1,1)-1 ->  | Y501: 0.02305642245 | Z501: =INDEX(Z:Z,MATCH(MAX($A$16:$A$500),$A:$A,0),1)/INDEX(Z:Z,MATCH(MAX($A$16:$A$500),$A:$A,0)-1,1)-1 -> 0.02534436935 | AE501: =INDEX(AE:AE,MATCH(MAX($A$16:$A$500),$A:$A,0),1)/INDEX(AE:AE,MATCH(MAX($A$16:$A$500),$A:$A,0)-1,1)-1 ->  | AF501: 0 | AH501: =INDEX(AH:AH,MATCH(MAX($A$16:$A$500),$A:$A,0),1)/INDEX(AH:AH,MATCH(MAX($A$16:$A$500),$A:$A,0)-1,1)-1 ->  | AI501: 0.03739113024 | AJ501: 0 | AQ501: 0.004828887835
A502: Change 4 weeks | D502: 0.01002361287 | E502: =INDEX(E:E,MATCH(MAX($A$16:$A$500),$A:$A,0),1)/INDEX(E:E,MATCH(MAX($A$16:$A$500),$A:$A,0)-4,1)-1 -> 0.01002362198 | L502: 0.04247567254 | M502: 0.02266872062 | R502: 0.07421478795 | X502: =INDEX(X:X,MATCH(MAX($A$16:$A$500),$A:$A,0),1)/INDEX(X:X,MATCH(MAX($A$16:$A$500),$A:$A,0)-4,1)-1 ->  | Y502: 0.0302979233 | Z502: =INDEX(Z:Z,MATCH(MAX($A$16:$A$500),$A:$A,0),1)/INDEX(Z:Z,MATCH(MAX($A$16:$A$500),$A:$A,0)-4,1)-1 -> 0.04414800192 | AE502: =INDEX(AE:AE,MATCH(MAX($A$16:$A$500),$A:$A,0),1)/INDEX(AE:AE,MATCH(MAX($A$16:$A$500),$A:$A,0)-4,1)-1 ->  | AF502: 0.01418439716 | AH502: =INDEX(AH:AH,MATCH(MAX($A$16:$A$500),$A:$A,0),1)/INDEX(AH:AH,MATCH(MAX($A$16:$A$500),$A:$A,0)-4,1)-1 ->  | AI502: -0.05027036935 | AJ502: 0.2583782962 | AQ502: 0.03448542778
A503: Change 1 year | D503: 0.02018539893 | E503: =INDEX(E:E,MATCH(MAX($A$16:$A$500),$A:$A,0),1)/INDEX(E:E,MATCH(MAX($A$16:$A$500),$A:$A,0)-1,1)-1 -> 0 | L503: -0.02915736012 | M503: 0.05735116432 | R503: 0.03436517133 | X503: =INDEX(X:X,MATCH(MAX($A$16:$A$500),$A:$A,0),1)/INDEX(X:X,MATCH(MAX($A$16:$A$500),$A:$A,0)-1,1)-1 ->  | Y503: -0.01420924384 | Z503: =INDEX(Z:Z,MATCH(MAX($A$16:$A$500),$A:$A,0),1)/INDEX(Z:Z,MATCH(MAX($A$16:$A$500),$A:$A,0)-1,1)-1 -> 0.02534436935 | AE503: =INDEX(AE:AE,MATCH(MAX($A$16:$A$500),$A:$A,0),1)/INDEX(AE:AE,MATCH(MAX($A$16:$A$500),$A:$A,0)-1,1)-1 ->  | AF503: 0.0725 | AH503: =INDEX(AH:AH,MATCH(MAX($A$16:$A$500),$A:$A,0),1)/INDEX(AH:AH,MATCH(MAX($A$16:$A$500),$A:$A,0)-1,1)-1 ->  | AI503: 0.05224918581 | AJ503: 0.1370596718 | AQ503: 0.03214100765
A504: Difference in average - last 4 weeks 2013 with same weeks 2012 | D504: 0.01904324351 | E504: =AVERAGE(E501:E502) -> 0.005011810988 | L504: -0.01391003969 | M504: 0.06465035356 | R504: 0.036624731 | X504: =AVERAGE(X501:X502) ->  | Y504: -0.04125024849 | Z504: =AVERAGE(Z501:Z502) -> 0.03474618563 | AE504: =AVERAGE(AE501:AE502) ->  | AF504: 0.08060453401 | AH504: =AVERAGE(AH501:AH502) ->  | AI504: -0.01934950683 | AJ504: -0.04072837257 | AO504: GBP | AQ504: 0.03902936145
A506: ??? | B506: Price not communicated

Sheet Graphs
R1: 2 | S1: 664.8616 | T1: 718.4098 | U1: 642.1222 | V1: 548.0282 | W1: 610.5162 | X1: =IF('Light Lamb Prices'!$AQ70=0,NA(),'Light Lamb Prices'!$AQ70) -> 647.2099546 | Z1: 2 | AA1: 355.6527 | AB1: 401.0616 | AC1: 455.9937 | AD1: 461.4178 | AE1: 518.9253 | AF1: =IF('Heavy Lamb Prices'!$AR70=0,NA(),'Heavy Lamb Prices'!$AR70) -> 438.0584975 | AI1: =+#REF!+7 ->  | AJ1: 3 | AK1: =IF('Light Lamb Prices'!M71=0,NA(),'Light Lamb Prices'!M71) -> 671.39 | AL1: =IF('Heavy Lamb Prices'!AO71=0,NA(),'Heavy Lamb Prices'!AO71) -> 393.3199 | AM1: =IF('Heavy Lamb Prices'!AD71=0,NA(),'Heavy Lamb Prices'!AD71) -> 406.0691 | AN1: =IF('Heavy Lamb Prices'!N71=0,NA(),'Heavy Lamb Prices'!N71) -> 598 | AO1: =IF('Light Lamb Prices'!AJ71=0,NA(),'Light Lamb Prices'!AJ71) -> 680.47 | AP1: =IF('Light Lamb Prices'!R71=0,NA(),'Light Lamb Prices'!R71) -> 611.55 | AQ1: =IF('Heavy Lamb Prices'!AG71=0,NA(),'Heavy Lamb Prices'!AG71) -> 236.3872 | AR1: 383.4911681 | AS1: 277.0880315 | AT1: 268.9378758
R2: 3 | S2: 653.1157 | T2: 671.7401 | U2: 603.6576 | V2: 533.7909 | W2: 588.6976 | X2: =IF('Light Lamb Prices'!$AQ71=0,NA(),'Light Lamb Prices'!$AQ71) -> 577.8514694 | Z2: 3 | AA2: 356.71 | AB2: 408.0885 | AC2: 443.4145 | AD2: 464.7658 | AE2: 513.8238 | AF2: =IF('Heavy Lamb Prices'!$AR71=0,NA(),'Heavy Lamb Prices'!$AR71) -> 426.847079 | AI2: =+AI1+7 ->  | AJ2: 4 | AK2: =IF('Light Lamb Prices'!M72=0,NA(),'Light Lamb Prices'!M72) -> 634.3 | AL2: =IF('Heavy Lamb Prices'!AO72=0,NA(),'Heavy Lamb Prices'!AO72) -> 395.4601 | AM2: =IF('Heavy Lamb Prices'!AD72=0,NA(),'Heavy Lamb Prices'!AD72) -> 323.4769 | AN2: =IF('Heavy Lamb Prices'!N72=0,NA(),'Heavy Lamb Prices'!N72) -> 582 | AO2: =IF('Light Lamb Prices'!AJ72=0,NA(),'Light Lamb Prices'!AJ72) -> 680.47 | AP2: =IF('Light Lamb Prices'!R72=0,NA(),'Light Lamb Prices'!R72) -> 611.55 | AQ2: =IF('Heavy Lamb Prices'!AG72=0,NA(),'Heavy Lamb Prices'!AG72) -> 268.0499 | AR2: 379.3548997 | AS2: 275.9882103 | AT2: 269.775493
R3: 4 | S3: 585.3073 | T3: 650.6208 | U3: 579.7163 | V3: 531.1208 | W3: 576.6501 | X3: =IF('Light Lamb Prices'!$AQ72=0,NA(),'Light Lamb Prices'!$AQ72) -> 558.669316 | Z3: 4 | AA3: 357.7526 | AB3: 402.2414 | AC3: 444.6157 | AD3: 456.0013 | AE3: 512.351 | AF3: =IF('Heavy Lamb Prices'!$AR72=0,NA(),'Heavy Lamb Prices'!$AR72) -> 428.4172022 | AJ3: 5 | AK3: =IF('Light Lamb Prices'!M73=0,NA(),'Light Lamb Prices'!M73) -> 615.1 | AL3: =IF('Heavy Lamb Prices'!AO73=0,NA(),'Heavy Lamb Prices'!AO73) -> 389.0834 | AM3: =IF('Heavy Lamb Prices'!AD73=0,NA(),'Heavy Lamb Prices'!AD73) -> 344.0168 | AN3: =IF('Heavy Lamb Prices'!N73=0,NA(),'Heavy Lamb Prices'!N73) -> 577 | AO3: =IF('Light Lamb Prices'!AJ73=0,NA(),'Light Lamb Prices'!AJ73) -> 680.47 | AP3: =IF('Light Lamb Prices'!R73=0,NA(),'Light Lamb Prices'!R73) -> 612.8 | AQ3: =IF('Heavy Lamb Prices'!AG73=0,NA(),'Heavy Lamb Prices'!AG73) -> 236.5127 | AR3: 380.0639743 | AS3: 262.8346813 | AT3: 279.5037395
R4: 5 | S4: 551.1967 | T4: 631.1508 | U4: 565.467 | V4: 525.7921 | W4: 576.9946 | X4: =IF('Light Lamb Prices'!$AQ73=0,NA(),'Light Lamb Prices'!$AQ73) -> 542.3849925 | Z4: 5 | AA4: 361.0021 | AB4: 403.2285 | AC4: 444.3597 | AD4: 458.6579 | AE4: 514.7138 | AF4: =IF('Heavy Lamb Prices'!$AR73=0,NA(),'Heavy Lamb Prices'!$AR73) -> 419.8118349 | AJ4: 6 | AK4: =IF('Light Lamb Prices'!M74=0,NA(),'Light Lamb Prices'!M74) -> 619.32 | AL4: =IF('Heavy Lamb Prices'!AO74=0,NA(),'Heavy Lamb Prices'!AO74) -> 404.0189 | AM4: =IF('Heavy Lamb Prices'!AD74=0,NA(),'Heavy Lamb Prices'!AD74) -> 359.6812 | AN4: =IF('Heavy Lamb Prices'!N74=0,NA(),'Heavy Lamb Prices'!N74) -> 568 | AO4: =IF('Light Lamb Prices'!AJ74=0,NA(),'Light Lamb Prices'!AJ74) -> 680.47 | AP4: =IF('Light Lamb Prices'!R74=0,NA(),'Light Lamb Prices'!R74) -> 612.8 | AQ4: =IF('Heavy Lamb Prices'!AG74=0,NA(),'Heavy Lamb Prices'!AG74) -> 252.7224 | AR4: 373.4613057 | AS4: 257.4604413 | AT4: 278.5350289
R5: 6 | S5: 546.3541 | T5: 626.5552 | U5: 574.0737 | V5: 527.344 | W5: 585.2754 | X5: =IF('Light Lamb Prices'!$AQ74=0,NA(),'Light Lamb Prices'!$AQ74) -> 547.9673064 | Z5: 6 | AA5: 373.2868 | AB5: 416.9575 | AC5: 438.9227 | AD5: 461.8377 | AE5: 513.9556 | AF5: =IF('Heavy Lamb Prices'!$AR74=0,NA(),'Heavy Lamb Prices'!$AR74) -> 428.8177849 | AJ5: 7 | AK5: =IF('Light Lamb Prices'!M75=0,NA(),'Light Lamb Prices'!M75) -> 615.19 | AL5: =IF('Heavy Lamb Prices'!AO75=0,NA(),'Heavy Lamb Prices'!AO75) -> 419.1226 | AM5: =IF('Heavy Lamb Prices'!AD75=0,NA(),'Heavy Lamb Prices'!AD75) -> 359.6812 | AN5: =IF('Heavy Lamb Prices'!N75=0,NA(),'Heavy Lamb Prices'!N75) -> 552 | AO5: =IF('Light Lamb Prices'!AJ75=0,NA(),'Light Lamb Prices'!AJ75) -> 692.58 | AP5: =IF('Light Lamb Prices'!R75=0,NA(),'Light Lamb Prices'!R75) -> 611.27 | AQ5: =IF('Heavy Lamb Prices'!AG75=0,NA(),'Heavy Lamb Prices'!AG75) -> 221.4549 | AR5: 377.8657822 | AS5: 251.6468715 | AT5: 279.9079755
R6: 7 | S6: 558.0016 | T6: 612.1155 | U6: 566.9125 | V6: 534.5297 | W6: 584.9637 | X6: =IF('Light Lamb Prices'!$AQ75=0,NA(),'Light Lamb Prices'!$AQ75) -> 545.2425381 | Z6: 7 | AA6: 378.4556 | AB6: 416.6549 | AC6: 434.6654 | AD6: 469.7099 | AE6: 512.4621 | AF6: =IF('Heavy Lamb Prices'!$AR75=0,NA(),'Heavy Lamb Prices'!$AR75) -> 429.5730448 | AJ6: 8 | AK6: =IF('Light Lamb Prices'!M76=0,NA(),'Light Lamb Prices'!M76) -> 614.09 | AL6: =IF('Heavy Lamb Prices'!AO76=0,NA(),'Heavy Lamb Prices'!AO76) -> 419.9768 | AM6: =IF('Heavy Lamb Prices'!AD76=0,NA(),'Heavy Lamb Prices'!AD76) -> 361.5628 | AN6: =IF('Heavy Lamb Prices'!N76=0,NA(),'Heavy Lamb Prices'!N76) -> 548 | AO6: =IF('Light Lamb Prices'!AJ76=0,NA(),'Light Lamb Prices'!AJ76) -> 392.58 | AP6: =IF('Light Lamb Prices'!R76=0,NA(),'Light Lamb Prices'!R76) -> 611.27 | AQ6: =IF('Heavy Lamb Prices'!AG76=0,NA(),'Heavy Lamb Prices'!AG76) -> 252.2173 | AR6: 371.0484186 | AS6: 253.295052 | AT6: 285.2957051
R7: 8 | S7: 560.9883 | T7: 593.762 | U7: 565.3834 | V7: 539.1231 | W7: 584.1032 | X7: =IF('Light Lamb Prices'!$AQ76=0,NA(),'Light Lamb Prices'!$AQ76) -> 539.0463464 | Z7: 8 | AA7: 379.2338 | AB7: 415.879 | AC7: 435.9206 | AD7: 481.6166 | AE7: 509.8169 | AF7: =IF('Heavy Lamb Prices'!$AR76=0,NA(),'Heavy Lamb Prices'!$AR76) -> 434.7106194 | AJ7: 9 | AK7: =IF('Light Lamb Prices'!M77=0,NA(),'Light Lamb Prices'!M77) -> 609.72 | AL7: =IF('Heavy Lamb Prices'!AO77=0,NA(),'Heavy Lamb Prices'!AO77) -> 427.5744 | AM7: =IF('Heavy Lamb Prices'!AD77=0,NA(),'Heavy Lamb Prices'!AD77) -> 362.8733 | AN7: =IF('Heavy Lamb Prices'!N77=0,NA(),'Heavy Lamb Prices'!N77) -> 547 | AO7: =IF('Light Lamb Prices'!AJ77=0,NA(),'Light Lamb Prices'!AJ77) -> 392.73 | AP7: =IF('Light Lamb Prices'!R77=0,NA(),'Light Lamb Prices'!R77) -> 610.73 | AQ7: =IF('Heavy Lamb Prices'!AG77=0,NA(),'Heavy Lamb Prices'!AG77) -> 252.8464 | AR7: 369.7845254 | AS7: 246.8443482 | AT7: 312.3472742
R8: 9 | S8: 569.2158 | T8: 571.0848 | U8: 565.7567 | V8: 538.6845 | W8: 584.0246 | X8: =IF('Light Lamb Prices'!$AQ77=0,NA(),'Light Lamb Prices'!$AQ77) -> 535.1133938 | Z8: 9 | AA8: 381.4323 | AB8: 412.0321 | AC8: 432.1058 | AD8: 478.8058 | AE8: 511.6611 | AF8: =IF('Heavy Lamb Prices'!$AR77=0,NA(),'Heavy Lamb Prices'!$AR77) -> 439.602059 | AI8: =+AI7+7 ->  | AJ8: 10 | AK8: =IF('Light Lamb Prices'!M78=0,NA(),'Light Lamb Prices'!M78) -> 629.9 | AL8: =IF('Heavy Lamb Prices'!AO78=0,NA(),'Heavy Lamb Prices'!AO78) -> 464.4796 | AM8: =IF('Heavy Lamb Prices'!AD78=0,NA(),'Heavy Lamb Prices'!AD78) -> 363.9395 | AN8: =IF('Heavy Lamb Prices'!N78=0,NA(),'Heavy Lamb Prices'!N78) -> 559 | AO8: =IF('Light Lamb Prices'!AJ78=0,NA(),'Light Lamb Prices'!AJ78) -> 392.73 | AP8: =IF('Light Lamb Prices'!R78=0,NA(),'Light Lamb Prices'!R78) -> 610.73 | AQ8: =IF('Heavy Lamb Prices'!AG78=0,NA(),'Heavy Lamb Prices'!AG78) -> 230.4842 | AR8: 387.7358717 | AS8: 247.6144884 | AT8: 336.884297
R9: 10 | S9: 569.5003 | T9: 555.4776 | U9: 571.9713 | V9: 540.5812 | W9: 586.6162 | X9: =IF('Light Lamb Prices'!$AQ78=0,NA(),'Light Lamb Prices'!$AQ78) -> 542.1110542 | Z9: 10 | AA9: 385.5302 | AB9: 410.9885 | AC9: 434.5029 | AD9: 488.2327 | AE9: 514.5996 | AF9: =IF('Heavy Lamb Prices'!$AR78=0,NA(),'Heavy Lamb Prices'!$AR78) -> 461.3945751 | AJ9: 11 | AK9: =IF('Light Lamb Prices'!M79=0,NA(),'Light Lamb Prices'!M79) -> 599.54 | AL9: =IF('Heavy Lamb Prices'!AO79=0,NA(),'Heavy Lamb Prices'!AO79) -> 495.121 | AM9: =IF('Heavy Lamb Prices'!AD79=0,NA(),'Heavy Lamb Prices'!AD79) -> 361.381 | AN9: =IF('Heavy Lamb Prices'!N79=0,NA(),'Heavy Lamb Prices'!N79) -> 567 | AO9: =IF('Light Lamb Prices'!AJ79=0,NA(),'Light Lamb Prices'!AJ79) -> 489.32 | AP9: =IF('Light Lamb Prices'!R79=0,NA(),'Light Lamb Prices'!R79) -> 586.2 | AQ9: =IF('Heavy Lamb Prices'!AG79=0,NA(),'Heavy Lamb Prices'!AG79) -> 235.4797 | AR9: 386.218627 | AS9: 246.5545581 | AT9: 338.5019678
R10: 11 | S10: 591.6018 | T10: 551.0442 | U10: 579.2622 | V10: 543.8467 | W10: 586.1503 | X10: =IF('Light Lamb Prices'!$AQ79=0,NA(),'Light Lamb Prices'!$AQ79) -> 527.8825055 | Z10: 11 | AA10: 402.3379 | AB10: 407.8235 | AC10: 441.2885 | AD10: 501.0635 | AE10: 520.0856 | AF10: =IF('Heavy Lamb Prices'!$AR79=0,NA(),'Heavy Lamb Prices'!$AR79) -> 482.1662359 | AJ10: 12 | AK10: =IF('Light Lamb Prices'!M80=0,NA(),'Light Lamb Prices'!M80) -> 568.17 | AL10: =IF('Heavy Lamb Prices'!AO80=0,NA(),'Heavy Lamb Prices'!AO80) -> 532.3203 | AM10: =IF('Heavy Lamb Prices'!AD80=0,NA(),'Heavy Lamb Prices'!AD80) -> 370.8144 | AN10: =IF('Heavy Lamb Prices'!N80=0,NA(),'Heavy Lamb Prices'!N80) -> 589 | AO10: =IF('Light Lamb Prices'!AJ80=0,NA(),'Light Lamb Prices'!AJ80) -> 474.14 | AP10: =IF('Light Lamb Prices'!R80=0,NA(),'Light Lamb Prices'!R80) -> 694.23 | AQ10: =IF('Heavy Lamb Prices'!AG80=0,NA(),'Heavy Lamb Prices'!AG80) -> 246.8233 | AR10: 390.770361 | AS10: 249.0012814 | AT10: 336.6947351
R11: 12 | S11: 584.316 | T11: 556.8554 | U11: 579.5903 | V11: 541.0607 | W11: 581.6567 | X11: =IF('Light Lamb Prices'!$AQ80=0,NA(),'Light Lamb Prices'!$AQ80) -> 529.9350387 | Z11: 12 | AA11: 409.6273 | AB11: 408.6347 | AC11: 446.3931 | AD11: 508.983 | AE11: 530.5922 | AF11: =IF('Heavy Lamb Prices'!$AR80=0,NA(),'Heavy Lamb Prices'!$AR80) -> 505.7902699 | AJ11: 13 | AK11: =IF('Light Lamb Prices'!M81=0,NA(),'Light Lamb Prices'!M81) -> 627.86 | AL11: =IF('Heavy Lamb Prices'!AO81=0,NA(),'Heavy Lamb Prices'!AO81) -> 531.1902 | AM11: =IF('Heavy Lamb Prices'!AD81=0,NA(),'Heavy Lamb Prices'!AD81) -> 353.7404 | AN11: =IF('Heavy Lamb Prices'!N81=0,NA(),'Heavy Lamb Prices'!N81) -> 611 | AO11: =IF('Light Lamb Prices'!AJ81=0,NA(),'Light Lamb Prices'!AJ81) -> 508.62 | AP11: =IF('Light Lamb Prices'!R81=0,NA(),'Light Lamb Prices'!R81) -> 704.25 | AQ11: =IF('Heavy Lamb Prices'!AG81=0,NA(),'Heavy Lamb Prices'!AG81) -> 237.6203 | AR11: 394.1641978 | AS11: 253.7009438 | AT11: 343.5857833
R12: 13 | S12: 567.5131 | T12: 557.5252 | U12: 583.97 | V12: 542.3395 | W12: 580.4996 | X12: =IF('Light Lamb Prices'!$AQ81=0,NA(),'Light Lamb Prices'!$AQ81) -> 556.0367731 | Z12: 13 | AA12: 412.6945 | AB12: 420.7935 | AC12: 452.2736 | AD12: 514.1388 | AE12: 540.5861 | AF12: =IF('Heavy Lamb Prices'!$AR81=0,NA(),'Heavy Lamb Prices'!$AR81) -> 508.8081227 | AJ12: 14 | AK12: =IF('Light Lamb Prices'!M82=0,NA(),'Light Lamb Prices'!M82) -> 621.57 | AL12: =IF('Heavy Lamb Prices'!AO82=0,NA(),'Heavy Lamb Prices'!AO82) -> 536.6688 | AM12: =IF('Heavy Lamb Prices'!AD82=0,NA(),'Heavy Lamb Prices'!AD82) -> 358.6984 | AN12: =IF('Heavy Lamb Prices'!N82=0,NA(),'Heavy Lamb Prices'!N82) -> 614 | AO12: =IF('Light Lamb Prices'!AJ82=0,NA(),'Light Lamb Prices'!AJ82) -> 461.81 | AP12: =IF('Light Lamb Prices'!R82=0,NA(),'Light Lamb Prices'!R82) -> 657.12 | AQ12: =IF('Heavy Lamb Prices'!AG82=0,NA(),'Heavy Lamb Prices'!AG82) -> 229.8197 | AR12: 396.9501553 | AS12: 254.837716 | AT12: 350.0447911
R13: 14 | S13: 534.0569 | T13: 533.8711 | U13: 592.1257 | V13: 559.0942 | W13: 601.7791 | X13: =IF('Light Lamb Prices'!$AQ82=0,NA(),'Light Lamb Prices'!$AQ82) -> 550.139281 | Z13: 14 | AA13: 419.8723 | AB13: 436.8733 | AC13: 464.6093 | AD13: 528.7805 | AE13: 542.8985 | AF13: =IF('Heavy Lamb Prices'!$AR82=0,NA(),'Heavy Lamb Prices'!$AR82) -> 513.5094348 | AJ13: 15 | AK13: =IF('Light Lamb Prices'!M83=0,NA(),'Light Lamb Prices'!M83) -> 609.09 | AL13: =IF('Heavy Lamb Prices'!AO83=0,NA(),'Heavy Lamb Prices'!AO83) -> 553.1386 | AM13: =IF('Heavy Lamb Prices'!AD83=0,NA(),'Heavy Lamb Prices'!AD83) -> 384.2557 | AN13: =IF('Heavy Lamb Prices'!N83=0,NA(),'Heavy Lamb Prices'!N83) -> 620 | AO13: =IF('Light Lamb Prices'!AJ83=0,NA(),'Light Lamb Prices'!AJ83) -> 461.81 | AP13: =IF('Light Lamb Prices'!R83=0,NA(),'Light Lamb Prices'!R83) -> 579.09 | AQ13: =IF('Heavy Lamb Prices'!AG83=0,NA(),'Heavy Lamb Prices'!AG83) -> 246.8286 | AR13: 398.3116931 | AS13: 256.8405112 | AT13: 337.5840482
R14: 15 | S14: 536.9094 | T14: 549.7026 | U14: 578.4623 | V14: 590.5692 | W14: 598.7604 | X14: =IF('Light Lamb Prices'!$AQ83=0,NA(),'Light Lamb Prices'!$AQ83) -> 540.8998185 | Z14: 15 | AA14: 406.4526 | AB14: 442.4561 | AC14: 467.8945 | AD14: 556.2274 | AE14: 542.6313 | AF14: =IF('Heavy Lamb Prices'!$AR83=0,NA(),'Heavy Lamb Prices'!$AR83) -> 523.582061 | AJ14: 16 | AK14: =IF('Light Lamb Prices'!M84=0,NA(),'Light Lamb Prices'!M84) -> 614.59 | AL14: =IF('Heavy Lamb Prices'!AO84=0,NA(),'Heavy Lamb Prices'!AO84) -> 533.9717 | AM14: =IF('Heavy Lamb Prices'!AD84=0,NA(),'Heavy Lamb Prices'!AD84) -> 362.2353 | AN14: =IF('Heavy Lamb Prices'!N84=0,NA(),'Heavy Lamb Prices'!N84) -> 624 | AO14: =IF('Light Lamb Prices'!AJ84=0,NA(),'Light Lamb Prices'!AJ84) -> 437.61 | AP14: =IF('Light Lamb Prices'!R84=0,NA(),'Light Lamb Prices'!R84) -> 565.44 | AQ14: =IF('Heavy Lamb Prices'!AG84=0,NA(),'Heavy Lamb Prices'!AG84) -> 253.9329 | AR14: 406.5221786 | AS14: 254.3486915 | AT14: 312.1516165
R15: 16 | S15: 534.9345 | T15: 579.0222 | U15: 562.0868 | V15: 610.9568 | W15: 591.3914 | X15: =IF('Light Lamb Prices'!$AQ84=0,NA(),'Light Lamb Prices'!$AQ84) -> 543.9779394 | Z15: 16 | AA15: 402.4362 | AB15: 444.7978 | AC15: 461.9391 | AD15: 559.2149 | AE15: 539.7454 | AF15: =IF('Heavy Lamb Prices'!$AR84=0,NA(),'Heavy Lamb Prices'!$AR84) -> 516.5599192 | AJ15: 17 | AK15: =IF('Light Lamb Prices'!M85=0,NA(),'Light Lamb Prices'!M85) -> 600.32 | AL15: =IF('Heavy Lamb Prices'!AO85=0,NA(),'Heavy Lamb Prices'!AO85) -> 542.4996 | AM15: =IF('Heavy Lamb Prices'!AD85=0,NA(),'Heavy Lamb Prices'!AD85) -> 386.299 | AN15: =IF('Heavy Lamb Prices'!N85=0,NA(),'Heavy Lamb Prices'!N85) -> 623 | AO15: =IF('Light Lamb Prices'!AJ85=0,NA(),'Light Lamb Prices'!AJ85) -> 437.61 | AP15: =IF('Light Lamb Prices'!R85=0,NA(),'Light Lamb Prices'!R85) -> 560.41 | AQ15: =IF('Heavy Lamb Prices'!AG85=0,NA(),'Heavy Lamb Prices'!AG85) -> 255.3721 | AR15: 395.1760303 | AS15: 256.8795407 | AT15: 316.9895054
R16: 17 | S16: 523.5339 | T16: 567.9417 | U16: 550.6883 | V16: 584.5196 | W16: 594.3112 | X16: =IF('Light Lamb Prices'!$AQ85=0,NA(),'Light Lamb Prices'!$AQ85) -> 549.6267921 | Z16: 17 | AA16: 397.8625 | AB16: 447.1677 | AC16: 462.0418 | AD16: 555.9461 | AE16: 521.2395 | AF16: =IF('Heavy Lamb Prices'!$AR85=0,NA(),'Heavy Lamb Prices'!$AR85) -> 519.2587017 | AJ16: 18 | AK16: =IF('Light Lamb Prices'!M86=0,NA(),'Light Lamb Prices'!M86) -> 621.87 | AL16: =IF('Heavy Lamb Prices'!AO86=0,NA(),'Heavy Lamb Prices'!AO86) -> 557.7099 | AM16: =IF('Heavy Lamb Prices'!AD86=0,NA(),'Heavy Lamb Prices'!AD86) -> 385.3032 | AN16: =IF('Heavy Lamb Prices'!N86=0,NA(),'Heavy Lamb Prices'!N86) -> 623 | AO16: =IF('Light Lamb Prices'!AJ86=0,NA(),'Light Lamb Prices'!AJ86) -> 437.61 | AP16: =IF('Light Lamb Prices'!R86=0,NA(),'Light Lamb Prices'!R86) -> 557.38 | AQ16: =IF('Heavy Lamb Prices'!AG86=0,NA(),'Heavy Lamb Prices'!AG86) -> 266.4114 | AR16: 385.9897627 | AS16: 266.2494766 | AT16: 307.7998512
R17: 18 | S17: 503.6119 | T17: 559.4607 | U17: 540.4482 | V17: 568.3151 | W17: 595.8218 | X17: =IF('Light Lamb Prices'!$AQ86=0,NA(),'Light Lamb Prices'!$AQ86) -> 566.2604085 | Z17: 18 | AA17: 404.9561 | AB17: 425.9215 | AC17: 461.4963 | AD17: 558.3747 | AE17: 511.6438 | AF17: =IF('Heavy Lamb Prices'!$AR86=0,NA(),'Heavy Lamb Prices'!$AR86) -> 529.5589321 | AJ17: 19 | AK17: =IF('Light Lamb Prices'!M87=0,NA(),'Light Lamb Prices'!M87) -> 618.65 | AL17: =IF('Heavy Lamb Prices'!AO87=0,NA(),'Heavy Lamb Prices'!AO87) -> 576.2024 | AM17: =IF('Heavy Lamb Prices'!AD87=0,NA(),'Heavy Lamb Prices'!AD87) -> 372.2879 | AN17: =IF('Heavy Lamb Prices'!N87=0,NA(),'Heavy Lamb Prices'!N87) -> 621 | AO17: =IF('Light Lamb Prices'!AJ87=0,NA(),'Light Lamb Prices'!AJ87) -> 437.61 | AP17: =IF('Light Lamb Prices'!R87=0,NA(),'Light Lamb Prices'!R87) -> 564.34 | AQ17: =IF('Heavy Lamb Prices'!AG87=0,NA(),'Heavy Lamb Prices'!AG87) -> 241.9798 | AR17: 385.9897627 | AS17: 269.6642134 | AT17: 290.8445722
R18: 19 | S18: 506.2227 | T18: 557.2903 | U18: 536.4982 | V18: 561.3147 | W18: 579.7483 | X18: =IF('Light Lamb Prices'!$AQ87=0,NA(),'Light Lamb Prices'!$AQ87) -> 555.0311478 | Z18: 19 | AA18: 425.6604 | AB18: 437.0628 | AC18: 468.1887 | AD18: 562.929 | AE18: 519.7853 | AF18: =IF('Heavy Lamb Prices'!$AR87=0,NA(),'Heavy Lamb Prices'!$AR87) -> 535.8633256 | AJ18: 20 | AK18: =IF('Light Lamb Prices'!M88=0,NA(),'Light Lamb Prices'!M88) -> 639.72 | AL18: =IF('Heavy Lamb Prices'!AO88=0,NA(),'Heavy Lamb Prices'!AO88) -> 586.2165 | AM18: =IF('Heavy Lamb Prices'!AD88=0,NA(),'Heavy Lamb Prices'!AD88) -> 356.4393 | AN18: =IF('Heavy Lamb Prices'!N88=0,NA(),'Heavy Lamb Prices'!N88) -> 619 | AO18: =IF('Light Lamb Prices'!AJ88=0,NA(),'Light Lamb Prices'!AJ88) -> 437.61 | AP18: =IF('Light Lamb Prices'!R88=0,NA(),'Light Lamb Prices'!R88) -> 596.15 | AQ18: =IF('Heavy Lamb Prices'!AG88=0,NA(),'Heavy Lamb Prices'!AG88) -> 233.5726 | AR18: 391.6234749 | AS18: 265.6706002 | AT18: 293.4261888
R19: 20 | S19: 507.9844 | T19: 551.4824 | U19: 528.2198 | V19: 559.5844 | W19: 556.1989 | X19: =IF('Light Lamb Prices'!$AQ88=0,NA(),'Light Lamb Prices'!$AQ88) -> 560.5993351 | Z19: 20 | AA19: 433.4865 | AB19: 440.8072 | AC19: 464.8189 | AD19: 577.2949 | AE19: 521.0375 | AF19: =IF('Heavy Lamb Prices'!$AR88=0,NA(),'Heavy Lamb Prices'!$AR88) -> 543.9364531 | AJ19: 21 | AK19: =IF('Light Lamb Prices'!M89=0,NA(),'Light Lamb Prices'!M89) -> 652.75 | AL19: =IF('Heavy Lamb Prices'!AO89=0,NA(),'Heavy Lamb Prices'!AO89) -> 581.6706 | AM19: =IF('Heavy Lamb Prices'!AD89=0,NA(),'Heavy Lamb Prices'!AD89) -> 359.6563 | AN19: =IF('Heavy Lamb Prices'!N89=0,NA(),'Heavy Lamb Prices'!N89) -> 620 | AO19: =IF('Light Lamb Prices'!AJ89=0,NA(),'Light Lamb Prices'!AJ89) -> 437.61 | AP19: =IF('Light Lamb Prices'!R89=0,NA(),'Light Lamb Prices'!R89) -> 590.94 | AQ19: =IF('Heavy Lamb Prices'!AG89=0,NA(),'Heavy Lamb Prices'!AG89) -> 251.6663 | AR19: 393.7159965 | AS19: 269.8019579 | AT19: 316.2788667
R20: 21 | S20: 510.3621 | T20: 551.1157 | U20: 532.2307 | V20: 555.8846 | W20: 555.2526 | X20: =IF('Light Lamb Prices'!$AQ89=0,NA(),'Light Lamb Prices'!$AQ89) -> 561.4520371 | Z20: 21 | AA20: 457.2253 | AB20: 456.6237 | AC20: 461.4711 | AD20: 576.4713 | AE20: 516.3699 | AF20: =IF('Heavy Lamb Prices'!$AR89=0,NA(),'Heavy Lamb Prices'!$AR89) -> 542.5499424 | AJ20: 22 | AK20: =IF('Light Lamb Prices'!M90=0,NA(),'Light Lamb Prices'!M90) -> 665.9 | AL20: =IF('Heavy Lamb Prices'!AO90=0,NA(),'Heavy Lamb Prices'!AO90) -> 578.3259 | AM20: =IF('Heavy Lamb Prices'!AD90=0,NA(),'Heavy Lamb Prices'!AD90) -> 359.8056 | AN20: =IF('Heavy Lamb Prices'!N90=0,NA(),'Heavy Lamb Prices'!N90) -> 615 | AO20: =IF('Light Lamb Prices'!AJ90=0,NA(),'Light Lamb Prices'!AJ90) -> 394.92 | AP20: =IF('Light Lamb Prices'!R90=0,NA(),'Light Lamb Prices'!R90) -> 571.05 | AQ20: =IF('Heavy Lamb Prices'!AG90=0,NA(),'Heavy Lamb Prices'!AG90) -> 246.6252 | AR20: 395.647555 | AS20: 273.0533971 | AT20: 320.7408845
R21: 22 | S21: 509.5457 | T21: 556.865 | U21: 531.7722 | V21: 556.7382 | W21: 555.3978 | X21: =IF('Light Lamb Prices'!$AQ90=0,NA(),'Light Lamb Prices'!$AQ90) -> 563.1923509 | Z21: 22 | AA21: 457.3414 | AB21: 453.9611 | AC21: 460.3553 | AD21: 533.1199 | AE21: 491.7203 | AF21: =IF('Heavy Lamb Prices'!$AR90=0,NA(),'Heavy Lamb Prices'!$AR90) -> 535.9251029 | AJ21: 23 | AK21: =IF('Light Lamb Prices'!M91=0,NA(),'Light Lamb Prices'!M91) -> 686.49 | AL21: =IF('Heavy Lamb Prices'!AO91=0,NA(),'Heavy Lamb Prices'!AO91) -> 586.5023 | AM21: =IF('Heavy Lamb Prices'!AD91=0,NA(),'Heavy Lamb Prices'!AD91) -> 352.6816 | AN21: =IF('Heavy Lamb Prices'!N91=0,NA(),'Heavy Lamb Prices'!N91) -> 610 | AO21: =IF('Light Lamb Prices'!AJ91=0,NA(),'Light Lamb Prices'!AJ91) -> 402.93 | AP21: =IF('Light Lamb Prices'!R91=0,NA(),'Light Lamb Prices'!R91) -> 571.05 | AQ21: =IF('Heavy Lamb Prices'!AG91=0,NA(),'Heavy Lamb Prices'!AG91) -> 226.5895 | AR21: 397.2091218 | AS21: 271.7367666 | AT21: 327.2140065
R22: 23 | S22: 521.8262 | T22: 553.7955 | U22: 544.4495 | V22: 560.7125 | W22: 557.1517 | X22: =IF('Light Lamb Prices'!$AQ91=0,NA(),'Light Lamb Prices'!$AQ91) -> 571.9029731 | Z22: 23 | AA22: 425.5265 | AB22: 448.572 | AC22: 456.9711 | AD22: 517.5396 | AE22: 491.3503 | AF22: =IF('Heavy Lamb Prices'!$AR91=0,NA(),'Heavy Lamb Prices'!$AR91) -> 537.2350368 | AJ22: 24 | AK22: =IF('Light Lamb Prices'!M92=0,NA(),'Light Lamb Prices'!M92) -> 709.3 | AL22: =IF('Heavy Lamb Prices'!AO92=0,NA(),'Heavy Lamb Prices'!AO92) -> 576.4436 | AM22: =IF('Heavy Lamb Prices'!AD92=0,NA(),'Heavy Lamb Prices'!AD92) -> 356.4308 | AN22: =IF('Heavy Lamb Prices'!N92=0,NA(),'Heavy Lamb Prices'!N92) -> 608 | AO22: =IF('Light Lamb Prices'!AJ92=0,NA(),'Light Lamb Prices'!AJ92) -> 358.19 | AP22: =IF('Light Lamb Prices'!R92=0,NA(),'Light Lamb Prices'!R92) -> 570.61 | AQ22: =IF('Heavy Lamb Prices'!AG92=0,NA(),'Heavy Lamb Prices'!AG92) -> 222.468 | AR22: 388.1807418 | AS22: 272.1629079 | AT22: 322.156476
R23: 24 | S23: 523.0791 | T23: 561.9236 | U23: 535.011 | V23: 558.1898 | W23: 553.4057 | X23: =IF('Light Lamb Prices'!$AQ92=0,NA(),'Light Lamb Prices'!$AQ92) -> 580.1941521 | Z23: 24 | AA23: 421.5238 | AB23: 441.5857 | AC23: 436.9275 | AD23: 504.0943 | AE23: 500.2066 | AF23: =IF('Heavy Lamb Prices'!$AR92=0,NA(),'Heavy Lamb Prices'!$AR92) -> 532.207792 | AJ23: 25 | AK23: =IF('Light Lamb Prices'!M93=0,NA(),'Light Lamb Prices'!M93) -> 726.17 | AL23: =IF('Heavy Lamb Prices'!AO93=0,NA(),'Heavy Lamb Prices'!AO93) -> 562.9631 | AM23: =IF('Heavy Lamb Prices'!AD93=0,NA(),'Heavy Lamb Prices'!AD93) -> 354.3347 | AN23: =IF('Heavy Lamb Prices'!N93=0,NA(),'Heavy Lamb Prices'!N93) -> 610 | AO23: =IF('Light Lamb Prices'!AJ93=0,NA(),'Light Lamb Prices'!AJ93) -> 358.05 | AP23: =IF('Light Lamb Prices'!R93=0,NA(),'Light Lamb Prices'!R93) -> 575.19 | AQ23: =IF('Heavy Lamb Prices'!AG93=0,NA(),'Heavy Lamb Prices'!AG93) -> 230.1988 | AR23: 399.1098334 | AS23: 276.4459924 | AT23: 346.978278
R24: 25 | S24: 531.4714 | T24: 562.9581 | U24: 532.9171 | V24: 565.3057 | W24: 551.679 | X24: =IF('Light Lamb Prices'!$AQ93=0,NA(),'Light Lamb Prices'!$AQ93) -> 588.57936 | Z24: 25 | AA24: 427.3626 | AB24: 422.2603 | AC24: 423.6412 | AD24: 486.4775 | AE24: 506.2114 | AF24: =IF('Heavy Lamb Prices'!$AR93=0,NA(),'Heavy Lamb Prices'!$AR93) -> 526.5958129 | AJ24: 26 | AK24: =IF('Light Lamb Prices'!M94=0,NA(),'Light Lamb Prices'!M94) -> 716.87 | AL24: =IF('Heavy Lamb Prices'!AO94=0,NA(),'Heavy Lamb Prices'!AO94) -> 577.2398 | AM24: =IF('Heavy Lamb Prices'!AD94=0,NA(),'Heavy Lamb Prices'!AD94) -> 349.8696 | AN24: =IF('Heavy Lamb Prices'!N94=0,NA(),'Heavy Lamb Prices'!N94) -> 617 | AO24: =IF('Light Lamb Prices'!AJ94=0,NA(),'Light Lamb Prices'!AJ94) -> 397.69 | AP24: =IF('Light Lamb Prices'!R94=0,NA(),'Light Lamb Prices'!R94) -> 586.21 | AQ24: =IF('Heavy Lamb Prices'!AG94=0,NA(),'Heavy Lamb Prices'!AG94) -> 231.1881 | AR24: 399.8621984 | AS24: 275.4186958 | AT24: 340.5550835
R25: 26 | S25: 531.509 | T25: 578.2179 | U25: 535.2309 | V25: 571.0586 | W25: 555.0478 | X25: =IF('Light Lamb Prices'!$AQ94=0,NA(),'Light Lamb Prices'!$AQ94) -> 587.3288114 | Z25: 26 | AA25: 407.0077 | AB25: 403.9264 | AC25: 420.1933 | AD25: 473.4308 | AE25: 503.101 | AF25: =IF('Heavy Lamb Prices'!$AR94=0,NA(),'Heavy Lamb Prices'!$AR94) -> 536.1295649 | AJ25: 27 | AK25: =IF('Light Lamb Prices'!M95=0,NA(),'Light Lamb Prices'!M95) -> 738.89 | AL25: =IF('Heavy Lamb Prices'!AO95=0,NA(),'Heavy Lamb Prices'!AO95) -> 573.0448 | AM25: =IF('Heavy Lamb Prices'!AD95=0,NA(),'Heavy Lamb Prices'!AD95) -> 362.9842 | AN25: =IF('Heavy Lamb Prices'!N95=0,NA(),'Heavy Lamb Prices'!N95) -> 617 | AO25: =IF('Light Lamb Prices'!AJ95=0,NA(),'Light Lamb Prices'!AJ95) -> 397.69 | AP25: =IF('Light Lamb Prices'!R95=0,NA(),'Light Lamb Prices'!R95) -> 588.16 | AQ25: =IF('Heavy Lamb Prices'!AG95=0,NA(),'Heavy Lamb Prices'!AG95) -> 233.5156
R26: 27 | S26: 530.8877 | T26: 588.8482 | U26: 555.0626 | V26: 570.0383 | W26: 558.4428 | X26: =IF('Light Lamb Prices'!$AQ95=0,NA(),'Light Lamb Prices'!$AQ95) -> 598.0115279 | Z26: 27 | AA26: 393.3455 | AB26: 392.6026 | AC26: 408.5296 | AD26: 476.7511 | AE26: 489.8702 | AF26: =IF('Heavy Lamb Prices'!$AR95=0,NA(),'Heavy Lamb Prices'!$AR95) -> 533.0571684 | AJ26: 28 | AK26: =IF('Light Lamb Prices'!M96=0,NA(),'Light Lamb Prices'!M96) -> 757.28 | AL26: =IF('Heavy Lamb Prices'!AO96=0,NA(),'Heavy Lamb Prices'!AO96) -> 561.2154 | AM26: =IF('Heavy Lamb Prices'!AD96=0,NA(),'Heavy Lamb Prices'!AD96) -> 356.3772 | AN26: =IF('Heavy Lamb Prices'!N96=0,NA(),'Heavy Lamb Prices'!N96) -> 634 | AO26: =IF('Light Lamb Prices'!AJ96=0,NA(),'Light Lamb Prices'!AJ96) -> 394.77 | AP26: =IF('Light Lamb Prices'!R96=0,NA(),'Light Lamb Prices'!R96) -> 587.41 | AQ26: =IF('Heavy Lamb Prices'!AG96=0,NA(),'Heavy Lamb Prices'!AG96) -> 234.0617
R27: 28 | S27: 570.3925 | T27: 614.0254 | U27: 576.194 | V27: 570.1571 | W27: 577.0952 | X27: =IF('Light Lamb Prices'!$AQ96=0,NA(),'Light Lamb Prices'!$AQ96) -> 608.1040867 | Z27: 28 | AA27: 386.8063 | AB27: 383.8207 | AC27: 410.0696 | AD27: 477.6514 | AE27: 493.6715 | AF27: =IF('Heavy Lamb Prices'!$AR96=0,NA(),'Heavy Lamb Prices'!$AR96) -> 530.0870685 | AJ27: 29 | AK27: =IF('Light Lamb Prices'!M97=0,NA(),'Light Lamb Prices'!M97) -> 749.94 | AL27: =IF('Heavy Lamb Prices'!AO97=0,NA(),'Heavy Lamb Prices'!AO97) -> 549.858 | AM27: =IF('Heavy Lamb Prices'!AD97=0,NA(),'Heavy Lamb Prices'!AD97) -> 347.0256 | AN27: =IF('Heavy Lamb Prices'!N97=0,NA(),'Heavy Lamb Prices'!N97) -> 645 | AO27: =IF('Light Lamb Prices'!AJ97=0,NA(),'Light Lamb Prices'!AJ97) -> 394.77 | AP27: =IF('Light Lamb Prices'!R97=0,NA(),'Light Lamb Prices'!R97) -> 584.93 | AQ27: =IF('Heavy Lamb Prices'!AG97=0,NA(),'Heavy Lamb Prices'!AG97) -> 234.2858
R28: 29 | S28: 582.1735 | T28: 619.4115 | U28: 572.7013 | V28: 590.039 | W28: 591.8697 | X28: =IF('Light Lamb Prices'!$AQ97=0,NA(),'Light Lamb Prices'!$AQ97) -> 610.962837 | Z28: 29 | AA28: 384.9643 | AB28: 389.5489 | AC28: 412.2523 | AD28: 473.1176 | AE28: 506.4863 | AF28: =IF('Heavy Lamb Prices'!$AR97=0,NA(),'Heavy Lamb Prices'!$AR97) -> 526.6565614 | AJ28: 30 | AK28: =IF('Light Lamb Prices'!M98=0,NA(),'Light Lamb Prices'!M98) -> 753.02 | AL28: =IF('Heavy Lamb Prices'!AO98=0,NA(),'Heavy Lamb Prices'!AO98) -> 475.7338 | AM28: =IF('Heavy Lamb Prices'!AD98=0,NA(),'Heavy Lamb Prices'!AD98) -> 347.03 | AN28: =IF('Heavy Lamb Prices'!N98=0,NA(),'Heavy Lamb Prices'!N98) -> 644 | AO28: =IF('Light Lamb Prices'!AJ98=0,NA(),'Light Lamb Prices'!AJ98) -> 394.77 | AP28: =IF('Light Lamb Prices'!R98=0,NA(),'Light Lamb Prices'!R98) -> 581.69 | AQ28: =IF('Heavy Lamb Prices'!AG98=0,NA(),'Heavy Lamb Prices'!AG98) -> 227.1238
R29: 30 | S29: 588.7133 | T29: 633.3556 | U29: 576.3106 | V29: 584.7811 | W29: 594.9073 | X29: =IF('Light Lamb Prices'!$AQ98=0,NA(),'Light Lamb Prices'!$AQ98) -> 614.5377363 | Z29: 30 | AA29: 387.8851 | AB29: 384.7318 | AC29: 420.2613 | AD29: 469.7487 | AE29: 511.1069 | AF29: =IF('Heavy Lamb Prices'!$AR98=0,NA(),'Heavy Lamb Prices'!$AR98) -> 489.5022613 | AJ29: 31 | AK29: =IF('Light Lamb Prices'!M99=0,NA(),'Light Lamb Prices'!M99) -> 760.7 | AL29: =IF('Heavy Lamb Prices'!AO99=0,NA(),'Heavy Lamb Prices'!AO99) -> 475.3669 | AM29: =IF('Heavy Lamb Prices'!AD99=0,NA(),'Heavy Lamb Prices'!AD99) -> 372.8339 | AN29: =IF('Heavy Lamb Prices'!N99=0,NA(),'Heavy Lamb Prices'!N99) -> 646 | AO29: =IF('Light Lamb Prices'!AJ99=0,NA(),'Light Lamb Prices'!AJ99) -> 394.77 | AP29: =IF('Light Lamb Prices'!R99=0,NA(),'Light Lamb Prices'!R99) -> 626.45 | AQ29: =IF('Heavy Lamb Prices'!AG99=0,NA(),'Heavy Lamb Prices'!AG99) -> 226.6443
R30: 31 | S30: 592.2777 | T30: 647.0263 | U30: 575.2679 | V30: 582.2754 | W30: 579.1826 | X30: =IF('Light Lamb Prices'!$AQ99=0,NA(),'Light Lamb Prices'!$AQ99) -> 625.3208147 | Z30: 31 | AA30: 384.1384 | AB30: 379.9581 | AC30: 423.287 | AD30: 473.1257 | AE30: 507.3849 | AF30: =IF('Heavy Lamb Prices'!$AR99=0,NA(),'Heavy Lamb Prices'!$AR99) -> 487.1870243 | AJ30: 32 | AK30: =IF('Light Lamb Prices'!M100=0,NA(),'Light Lamb Prices'!M100) -> 760.85 | AL30: =IF('Heavy Lamb Prices'!AO100=0,NA(),'Heavy Lamb Prices'!AO100) -> 493.0197 | AM30: =IF('Heavy Lamb Prices'!AD100=0,NA(),'Heavy Lamb Prices'!AD100) -> 375.1869 | AN30: =IF('Heavy Lamb Prices'!N100=0,NA(),'Heavy Lamb Prices'!N100) -> 645 | AO30: =IF('Light Lamb Prices'!AJ100=0,NA(),'Light Lamb Prices'!AJ100) -> 470.25 | AP30: =IF('Light Lamb Prices'!R100=0,NA(),'Light Lamb Prices'!R100) -> 626.45 | AQ30: =IF('Heavy Lamb Prices'!AG100=0,NA(),'Heavy Lamb Prices'!AG100) -> 225.594
R31: 32 | S31: 595.0278 | T31: 648.8347 | U31: 588.866 | V31: 601.8916 | W31: 604.9474 | X31: =IF('Light Lamb Prices'!$AQ100=0,NA(),'Light Lamb Prices'!$AQ100) -> 632.3592696 | Z31: 32 | AA31: 374.1131 | AB31: 382.5959 | AC31: 430.5006 | AD31: 463.7825 | AE31: 494.085 | AF31: =IF('Heavy Lamb Prices'!$AR100=0,NA(),'Heavy Lamb Prices'!$AR100) -> 497.0591884 | AJ31: 33 | AK31: =IF('Light Lamb Prices'!M101=0,NA(),'Light Lamb Prices'!M101) -> 755.73 | AL31: =IF('Heavy Lamb Prices'!AO101=0,NA(),'Heavy Lamb Prices'!AO101) -> 494.2523 | AM31: =IF('Heavy Lamb Prices'!AD101=0,NA(),'Heavy Lamb Prices'!AD101) -> 353.5067 | AN31: =IF('Heavy Lamb Prices'!N101=0,NA(),'Heavy Lamb Prices'!N101) -> 651 | AO31: =IF('Light Lamb Prices'!AJ101=0,NA(),'Light Lamb Prices'!AJ101) -> 496.77 | AP31: =IF('Light Lamb Prices'!R101=0,NA(),'Light Lamb Prices'!R101) -> 627.14 | AQ31: =IF('Heavy Lamb Prices'!AG101=0,NA(),'Heavy Lamb Prices'!AG101) -> 225.4145
R32: 33 | S32: 592.2546 | T32: 647.0273 | U32: 630.9121 | V32: 598.8055 | W32: 614.4938 | X32: =IF('Light Lamb Prices'!$AQ101=0,NA(),'Light Lamb Prices'!$AQ101) -> 632.6752154 | Z32: 33 | AA32: 382.306 | AB32: 388.4871 | AC32: 427.0567 | AD32: 463.1365 | AE32: 509.4725 | AF32: =IF('Heavy Lamb Prices'!$AR101=0,NA(),'Heavy Lamb Prices'!$AR101) -> 497.8855525 | AJ32: 34 | AK32: =IF('Light Lamb Prices'!M102=0,NA(),'Light Lamb Prices'!M102) -> 770.09 | AL32: =IF('Heavy Lamb Prices'!AO102=0,NA(),'Heavy Lamb Prices'!AO102) -> 493.3818 | AM32: =IF('Heavy Lamb Prices'!AD102=0,NA(),'Heavy Lamb Prices'!AD102) -> 372.1604 | AN32: =IF('Heavy Lamb Prices'!N102=0,NA(),'Heavy Lamb Prices'!N102) -> 657 | AO32: =IF('Light Lamb Prices'!AJ102=0,NA(),'Light Lamb Prices'!AJ102) -> 496.77 | AP32: =IF('Light Lamb Prices'!R102=0,NA(),'Light Lamb Prices'!R102) -> 624.86 | AQ32: =IF('Heavy Lamb Prices'!AG102=0,NA(),'Heavy Lamb Prices'!AG102) -> 236.5156
R33: 34 | S33: 598.1367 | T33: 647.6612 | U33: 601.5059 | V33: 599.6964 | W33: 611.9228 | X33: =IF('Light Lamb Prices'!$AQ102=0,NA(),'Light Lamb Prices'!$AQ102) -> 635.730333 | Z33: 34 | AA33: 388.054 | AB33: 388.1176 | AC33: 425.2171 | AD33: 464.778 | AE33: 510.6426 | AF33: =IF('Heavy Lamb Prices'!$AR102=0,NA(),'Heavy Lamb Prices'!$AR102) -> 497.9420383 | AJ33: 35 | AK33: =IF('Light Lamb Prices'!M103=0,NA(),'Light Lamb Prices'!M103) ->  | AL33: =IF('Heavy Lamb Prices'!AO103=0,NA(),'Heavy Lamb Prices'!AO103) ->  | AM33: =IF('Heavy Lamb Prices'!AD103=0,NA(),'Heavy Lamb Prices'!AD103) ->  | AN33: =IF('Heavy Lamb Prices'!N103=0,NA(),'Heavy Lamb Prices'!N103) ->  | AO33: =IF('Light Lamb Prices'!AJ103=0,NA(),'Light Lamb Prices'!AJ103) ->  | AP33: =IF('Light Lamb Prices'!R103=0,NA(),'Light Lamb Prices'!R103) ->  | AQ33: =IF('Heavy Lamb Prices'!AG103=0,NA(),'Heavy Lamb Prices'!AG103) -> 
R34: 35 | S34: 622.556 | T34: 665.6542 | U34: 621.2528 | V34: 608.8934 | W34: 615.9336 | X34: =IF('Light Lamb Prices'!$AQ103=0,NA(),'Light Lamb Prices'!$AQ103) ->  | Z34: 35 | AA34: 388.6092 | AB34: 387.7555 | AC34: 428.1336 | AD34: 459.0444 | AE34: 505.7832 | AF34: =IF('Heavy Lamb Prices'!$AR103=0,NA(),'Heavy Lamb Prices'!$AR103) ->  | AJ34: 36 | AK34: =IF('Light Lamb Prices'!M104=0,NA(),'Light Lamb Prices'!M104) ->  | AL34: =IF('Heavy Lamb Prices'!AO104=0,NA(),'Heavy Lamb Prices'!AO104) ->  | AM34: =IF('Heavy Lamb Prices'!AD104=0,NA(),'Heavy Lamb Prices'!AD104) ->  | AN34: =IF('Heavy Lamb Prices'!N104=0,NA(),'Heavy Lamb Prices'!N104) ->  | AO34: =IF('Light Lamb Prices'!AJ104=0,NA(),'Light Lamb Prices'!AJ104) ->  | AP34: =IF('Light Lamb Prices'!R104=0,NA(),'Light Lamb Prices'!R104) ->  | AQ34: =IF('Heavy Lamb Prices'!AG104=0,NA(),'Heavy Lamb Prices'!AG104) -> 
R35: 36 | S35: 626.6146 | T35: 677.1514 | U35: 620.5306 | V35: 622.8133 | W35: 633.9653 | X35: =IF('Light Lamb Prices'!$AQ104=0,NA(),'Light Lamb Prices'!$AQ104) ->  | Z35: 36 | AA35: 386.3289 | AB35: 387.3237 | AC35: 428.8631 | AD35: 460.7746 | AE35: 502.0531 | AF35: =IF('Heavy Lamb Prices'!$AR104=0,NA(),'Heavy Lamb Prices'!$AR104) ->  | AJ35: 37 | AK35: =IF('Light Lamb Prices'!M105=0,NA(),'Light Lamb Prices'!M105) ->  | AL35: =IF('Heavy Lamb Prices'!AO105=0,NA(),'Heavy Lamb Prices'!AO105) ->  | AM35: =IF('Heavy Lamb Prices'!AD105=0,NA(),'Heavy Lamb Prices'!AD105) ->  | AN35: =IF('Heavy Lamb Prices'!N105=0,NA(),'Heavy Lamb Prices'!N105) ->  | AO35: =IF('Light Lamb Prices'!AJ105=0,NA(),'Light Lamb Prices'!AJ105) ->  | AP35: =IF('Light Lamb Prices'!R105=0,NA(),'Light Lamb Prices'!R105) ->  | AQ35: =IF('Heavy Lamb Prices'!AG105=0,NA(),'Heavy Lamb Prices'!AG105) -> 
R36: 37 | S36: 644.8152 | T36: 700.4223 | U36: 630.5361 | V36: 622.5038 | W36: 637.8794 | X36: =IF('Light Lamb Prices'!$AQ105=0,NA(),'Light Lamb Prices'!$AQ105) ->  | Z36: 37 | AA36: 391.694 | AB36: 388.3877 | AC36: 421.0035 | AD36: 458.275 | AE36: 493.8857 | AF36: =IF('Heavy Lamb Prices'!$AR105=0,NA(),'Heavy Lamb Prices'!$AR105) ->  | AJ36: 38 | AK36: =IF('Light Lamb Prices'!M106=0,NA(),'Light Lamb Prices'!M106) ->  | AL36: =IF('Heavy Lamb Prices'!AO106=0,NA(),'Heavy Lamb Prices'!AO106) ->  | AM36: =IF('Heavy Lamb Prices'!AD106=0,NA(),'Heavy Lamb Prices'!AD106) ->  | AN36: =IF('Heavy Lamb Prices'!N106=0,NA(),'Heavy Lamb Prices'!N106) ->  | AO36: =IF('Light Lamb Prices'!AJ106=0,NA(),'Light Lamb Prices'!AJ106) ->  | AP36: =IF('Light Lamb Prices'!R106=0,NA(),'Light Lamb Prices'!R106) ->  | AQ36: =IF('Heavy Lamb Prices'!AG106=0,NA(),'Heavy Lamb Prices'!AG106) -> 
R37: 38 | S37: 645.7656 | T37: 717.2922 | U37: 628.5919 | V37: 622.6156 | W37: 639.45 | X37: =IF('Light Lamb Prices'!$AQ106=0,NA(),'Light Lamb Prices'!$AQ106) ->  | Z37: 38 | AA37: 390.4085 | AB37: 390.4239 | AC37: 418.6112 | AD37: 457.6958 | AE37: 484.4163 | AF37: =IF('Heavy Lamb Prices'!$AR106=0,NA(),'Heavy Lamb Prices'!$AR106) ->  | AJ37: 39 | AK37: =IF('Light Lamb Prices'!M107=0,NA(),'Light Lamb Prices'!M107) ->  | AL37: =IF('Heavy Lamb Prices'!AO107=0,NA(),'Heavy Lamb Prices'!AO107) ->  | AM37: =IF('Heavy Lamb Prices'!AD107=0,NA(),'Heavy Lamb Prices'!AD107) ->  | AN37: =IF('Heavy Lamb Prices'!N107=0,NA(),'Heavy Lamb Prices'!N107) ->  | AO37: =IF('Light Lamb Prices'!AJ107=0,NA(),'Light Lamb Prices'!AJ107) ->  | AP37: =IF('Light Lamb Prices'!R107=0,NA(),'Light Lamb Prices'!R107) ->  | AQ37: =IF('Heavy Lamb Prices'!AG107=0,NA(),'Heavy Lamb Prices'!AG107) -> 
R38: 39 | S38: 663.4061 | T38: 726.4867 | U38: 630.3102 | V38: 620.6761 | W38: 638.5612 | X38: =IF('Light Lamb Prices'!$AQ107=0,NA(),'Light Lamb Prices'!$AQ107) ->  | Z38: 39 | AA38: 390.9804 | AB38: 385.8842 | AC38: 413.5293 | AD38: 456.4842 | AE38: 483.064 | AF38: =IF('Heavy Lamb Prices'!$AR107=0,NA(),'Heavy Lamb Prices'!$AR107) ->  | AJ38: 40 | AK38: =IF('Light Lamb Prices'!M108=0,NA(),'Light Lamb Prices'!M108) ->  | AL38: =IF('Heavy Lamb Prices'!AO108=0,NA(),'Heavy Lamb Prices'!AO108) ->  | AM38: =IF('Heavy Lamb Prices'!AD108=0,NA(),'Heavy Lamb Prices'!AD108) ->  | AN38: =IF('Heavy Lamb Prices'!N108=0,NA(),'Heavy Lamb Prices'!N108) ->  | AO38: =IF('Light Lamb Prices'!AJ108=0,NA(),'Light Lamb Prices'!AJ108) ->  | AP38: =IF('Light Lamb Prices'!R108=0,NA(),'Light Lamb Prices'!R108) ->  | AQ38: =IF('Heavy Lamb Prices'!AG108=0,NA(),'Heavy Lamb Prices'!AG108) -> 
R39: 40 | S39: 681.1843 | T39: 730.8681 | U39: 628.911 | V39: 630.3032 | W39: 626.2246 | X39: =IF('Light Lamb Prices'!$AQ108=0,NA(),'Light Lamb Prices'!$AQ108) ->  | Z39: 40 | AA39: 390.8044 | AB39: 372.8842 | AC39: 405.9667 | AD39: 458.8512 | AE39: 474.6035 | AF39: =IF('Heavy Lamb Prices'!$AR108=0,NA(),'Heavy Lamb Prices'!$AR108) ->  | AJ39: 41 | AK39: =IF('Light Lamb Prices'!M109=0,NA(),'Light Lamb Prices'!M109) ->  | AL39: =IF('Heavy Lamb Prices'!AO109=0,NA(),'Heavy Lamb Prices'!AO109) ->  | AM39: =IF('Heavy Lamb Prices'!AD109=0,NA(),'Heavy Lamb Prices'!AD109) ->  | AN39: =IF('Heavy Lamb Prices'!N109=0,NA(),'Heavy Lamb Prices'!N109) ->  | AO39: =IF('Light Lamb Prices'!AJ109=0,NA(),'Light Lamb Prices'!AJ109) ->  | AP39: =IF('Light Lamb Prices'!R109=0,NA(),'Light Lamb Prices'!R109) ->  | AQ39: =IF('Heavy Lamb Prices'!AG109=0,NA(),'Heavy Lamb Prices'!AG109) -> 
R40: 41 | S40: 675.3085 | T40: 727.9501 | U40: 629.2334 | V40: 638.3054 | W40: 631.0806 | X40: =IF('Light Lamb Prices'!$AQ109=0,NA(),'Light Lamb Prices'!$AQ109) ->  | Z40: 41 | AA40: 385.522 | AB40: 386.5374 | AC40: 406.6123 | AD40: 461.6156 | AE40: 474.8762 | AF40: =IF('Heavy Lamb Prices'!$AR109=0,NA(),'Heavy Lamb Prices'!$AR109) ->  | AJ40: 42 | AK40: =IF('Light Lamb Prices'!M110=0,NA(),'Light Lamb Prices'!M110) ->  | AL40: =IF('Heavy Lamb Prices'!AO110=0,NA(),'Heavy Lamb Prices'!AO110) ->  | AM40: =IF('Heavy Lamb Prices'!AD110=0,NA(),'Heavy Lamb Prices'!AD110) ->  | AN40: =IF('Heavy Lamb Prices'!N110=0,NA(),'Heavy Lamb Prices'!N110) ->  | AO40: =IF('Light Lamb Prices'!AJ110=0,NA(),'Light Lamb Prices'!AJ110) ->  | AP40: =IF('Light Lamb Prices'!R110=0,NA(),'Light Lamb Prices'!R110) ->  | AQ40: =IF('Heavy Lamb Prices'!AG110=0,NA(),'Heavy Lamb Prices'!AG110) -> 
R41: 42 | S41: 685.3663 | T41: 725.1186 | U41: 628.345 | V41: 633.8895 | W41: 629.1075 | X41: =IF('Light Lamb Prices'!$AQ110=0,NA(),'Light Lamb Prices'!$AQ110) ->  | Z41: 42 | AA41: 383.2144 | AB41: 394.7805 | AC41: 410.6908 | AD41: 469.6832 | AE41: 473.9903 | AF41: =IF('Heavy Lamb Prices'!$AR110=0,NA(),'Heavy Lamb Prices'!$AR110) ->  | AJ41: 43 | AK41: =IF('Light Lamb Prices'!M111=0,NA(),'Light Lamb Prices'!M111) ->  | AL41: =IF('Heavy Lamb Prices'!AO111=0,NA(),'Heavy Lamb Prices'!AO111) ->  | AM41: =IF('Heavy Lamb Prices'!AD111=0,NA(),'Heavy Lamb Prices'!AD111) ->  | AN41: =IF('Heavy Lamb Prices'!N111=0,NA(),'Heavy Lamb Prices'!N111) ->  | AO41: =IF('Light Lamb Prices'!AJ111=0,NA(),'Light Lamb Prices'!AJ111) ->  | AP41: =IF('Light Lamb Prices'!R111=0,NA(),'Light Lamb Prices'!R111) ->  | AQ41: =IF('Heavy Lamb Prices'!AG111=0,NA(),'Heavy Lamb Prices'!AG111) -> 
R42: 43 | S42: 681.5834 | T42: 723.8726 | U42: 623.205 | V42: 621.1463 | W42: 625.8971 | X42: =IF('Light Lamb Prices'!$AQ111=0,NA(),'Light Lamb Prices'!$AQ111) ->  | Z42: 43 | AA42: 381.6294 | AB42: 378.1192 | AC42: 411.0695 | AD42: 470.5174 | AE42: 470.2499 | AF42: =IF('Heavy Lamb Prices'!$AR111=0,NA(),'Heavy Lamb Prices'!$AR111) ->  | AJ42: 44 | AK42: =IF('Light Lamb Prices'!M112=0,NA(),'Light Lamb Prices'!M112) ->  | AL42: =IF('Heavy Lamb Prices'!AO112=0,NA(),'Heavy Lamb Prices'!AO112) ->  | AM42: =IF('Heavy Lamb Prices'!AD112=0,NA(),'Heavy Lamb Prices'!AD112) ->  | AN42: =IF('Heavy Lamb Prices'!N112=0,NA(),'Heavy Lamb Prices'!N112) ->  | AO42: =IF('Light Lamb Prices'!AJ112=0,NA(),'Light Lamb Prices'!AJ112) ->  | AP42: =IF('Light Lamb Prices'!R112=0,NA(),'Light Lamb Prices'!R112) ->  | AQ42: =IF('Heavy Lamb Prices'!AG112=0,NA(),'Heavy Lamb Prices'!AG112) -> 
R43: 44 | S43: 714.5491 | T43: 718.2867 | U43: 622.5198 | V43: 634.9799 | W43: 629.7307 | X43: =IF('Light Lamb Prices'!$AQ112=0,NA(),'Light Lamb Prices'!$AQ112) ->  | Z43: 44 | AA43: 380.8361 | AB43: 380.1721 | AC43: 416.9194 | AD43: 476.7851 | AE43: 469.7548 | AF43: =IF('Heavy Lamb Prices'!$AR112=0,NA(),'Heavy Lamb Prices'!$AR112) ->  | AJ43: 45 | AK43: =IF('Light Lamb Prices'!M113=0,NA(),'Light Lamb Prices'!M113) ->  | AL43: =IF('Heavy Lamb Prices'!AO113=0,NA(),'Heavy Lamb Prices'!AO113) ->  | AM43: =IF('Heavy Lamb Prices'!AD113=0,NA(),'Heavy Lamb Prices'!AD113) ->  | AN43: =IF('Heavy Lamb Prices'!N113=0,NA(),'Heavy Lamb Prices'!N113) ->  | AO43: =IF('Light Lamb Prices'!AJ113=0,NA(),'Light Lamb Prices'!AJ113) ->  | AP43: =IF('Light Lamb Prices'!R113=0,NA(),'Light Lamb Prices'!R113) ->  | AQ43: =IF('Heavy Lamb Prices'!AG113=0,NA(),'Heavy Lamb Prices'!AG113) -> 
R44: 45 | S44: 740.7325 | T44: 711.7163 | U44: 619.9699 | V44: 627.3962 | W44: 632.1588 | X44: =IF('Light Lamb Prices'!$AQ113=0,NA(),'Light Lamb Prices'!$AQ113) ->  | Z44: 45 | AA44: 383.8464 | AB44: 384.2512 | AC44: 425.1025 | AD44: 481.2624 | AE44: 470.477 | AF44: =IF('Heavy Lamb Prices'!$AR113=0,NA(),'Heavy Lamb Prices'!$AR113) ->  | AJ44: 46 | AK44: =IF('Light Lamb Prices'!M114=0,NA(),'Light Lamb Prices'!M114) ->  | AL44: =IF('Heavy Lamb Prices'!AO114=0,NA(),'Heavy Lamb Prices'!AO114) ->  | AM44: =IF('Heavy Lamb Prices'!AD114=0,NA(),'Heavy Lamb Prices'!AD114) ->  | AN44: =IF('Heavy Lamb Prices'!N114=0,NA(),'Heavy Lamb Prices'!N114) ->  | AO44: =IF('Light Lamb Prices'!AJ114=0,NA(),'Light Lamb Prices'!AJ114) ->  | AP44: =IF('Light Lamb Prices'!R114=0,NA(),'Light Lamb Prices'!R114) ->  | AQ44: =IF('Heavy Lamb Prices'!AG114=0,NA(),'Heavy Lamb Prices'!AG114) -> 
R45: 46 | S45: 751.4541 | T45: 706.7446 | U45: 604.3323 | V45: 636.5804 | W45: 635.9327 | X45: =IF('Light Lamb Prices'!$AQ114=0,NA(),'Light Lamb Prices'!$AQ114) ->  | Z45: 46 | AA45: 374.5282 | AB45: 394.0183 | AC45: 427.0636 | AD45: 488.7968 | AE45: 469.5928 | AF45: =IF('Heavy Lamb Prices'!$AR114=0,NA(),'Heavy Lamb Prices'!$AR114) ->  | AJ45: 47 | AK45: =IF('Light Lamb Prices'!M115=0,NA(),'Light Lamb Prices'!M115) ->  | AL45: =IF('Heavy Lamb Prices'!AO115=0,NA(),'Heavy Lamb Prices'!AO115) ->  | AM45: =IF('Heavy Lamb Prices'!AD115=0,NA(),'Heavy Lamb Prices'!AD115) ->  | AN45: =IF('Heavy Lamb Prices'!N115=0,NA(),'Heavy Lamb Prices'!N115) ->  | AO45: =IF('Light Lamb Prices'!AJ115=0,NA(),'Light Lamb Prices'!AJ115) ->  | AP45: =IF('Light Lamb Prices'!R115=0,NA(),'Light Lamb Prices'!R115) ->  | AQ45: =IF('Heavy Lamb Prices'!AG115=0,NA(),'Heavy Lamb Prices'!AG115) -> 
R46: 47 | S46: 739.2571 | T46: 701.8843 | U46: 615.7284 | V46: 637.7001 | W46: 638.2042 | X46: =IF('Light Lamb Prices'!$AQ115=0,NA(),'Light Lamb Prices'!$AQ115) ->  | Z46: 47 | AA46: 376.7238 | AB46: 425.4946 | AC46: 427.1262 | AD46: 499.0047 | AE46: 462.4292 | AF46: =IF('Heavy Lamb Prices'!$AR115=0,NA(),'Heavy Lamb Prices'!$AR115) ->  | AJ46: 48 | AK46: =IF('Light Lamb Prices'!M116=0,NA(),'Light Lamb Prices'!M116) ->  | AL46: =IF('Heavy Lamb Prices'!AO116=0,NA(),'Heavy Lamb Prices'!AO116) ->  | AM46: =IF('Heavy Lamb Prices'!AD116=0,NA(),'Heavy Lamb Prices'!AD116) ->  | AN46: =IF('Heavy Lamb Prices'!N116=0,NA(),'Heavy Lamb Prices'!N116) ->  | AO46: =IF('Light Lamb Prices'!AJ116=0,NA(),'Light Lamb Prices'!AJ116) ->  | AP46: =IF('Light Lamb Prices'!R116=0,NA(),'Light Lamb Prices'!R116) ->  | AQ46: =IF('Heavy Lamb Prices'!AG116=0,NA(),'Heavy Lamb Prices'!AG116) -> 
R47: 48 | S47: 734.1741 | T47: 713.5397 | U47: 608.1974 | V47: 637.794 | W47: 634.315 | X47: =IF('Light Lamb Prices'!$AQ116=0,NA(),'Light Lamb Prices'!$AQ116) ->  | Z47: 48 | AA47: 377.3526 | AB47: 409.9785 | AC47: 437.3608 | AD47: 505.2482 | AE47: 462.4987 | AF47: =IF('Heavy Lamb Prices'!$AR116=0,NA(),'Heavy Lamb Prices'!$AR116) ->  | AJ47: 49 | AK47: =IF('Light Lamb Prices'!M117=0,NA(),'Light Lamb Prices'!M117) ->  | AL47: =IF('Heavy Lamb Prices'!AO117=0,NA(),'Heavy Lamb Prices'!AO117) ->  | AM47: =IF('Heavy Lamb Prices'!AD117=0,NA(),'Heavy Lamb Prices'!AD117) ->  | AN47: =IF('Heavy Lamb Prices'!N117=0,NA(),'Heavy Lamb Prices'!N117) ->  | AO47: =IF('Light Lamb Prices'!AJ117=0,NA(),'Light Lamb Prices'!AJ117) ->  | AP47: =IF('Light Lamb Prices'!R117=0,NA(),'Light Lamb Prices'!R117) ->  | AQ47: =IF('Heavy Lamb Prices'!AG117=0,NA(),'Heavy Lamb Prices'!AG117) -> 
R48: 49 | S48: 718.0439 | T48: 713.6382 | U48: 610.1005 | V48: 642.1708 | W48: 635.3194 | X48: =IF('Light Lamb Prices'!$AQ117=0,NA(),'Light Lamb Prices'!$AQ117) ->  | Z48: 49 | AA48: 381.0062 | AB48: 411.4551 | AC48: 440.1251 | AD48: 517.9668 | AE48: 463.3337 | AF48: =IF('Heavy Lamb Prices'!$AR117=0,NA(),'Heavy Lamb Prices'!$AR117) ->  | AJ48: 50 | AK48: =IF('Light Lamb Prices'!M118=0,NA(),'Light Lamb Prices'!M118) ->  | AL48: =IF('Heavy Lamb Prices'!AO118=0,NA(),'Heavy Lamb Prices'!AO118) ->  | AM48: =IF('Heavy Lamb Prices'!AD118=0,NA(),'Heavy Lamb Prices'!AD118) ->  | AN48: =IF('Heavy Lamb Prices'!N118=0,NA(),'Heavy Lamb Prices'!N118) ->  | AO48: =IF('Light Lamb Prices'!AJ118=0,NA(),'Light Lamb Prices'!AJ118) ->  | AP48: =IF('Light Lamb Prices'!R118=0,NA(),'Light Lamb Prices'!R118) ->  | AQ48: =IF('Heavy Lamb Prices'!AG118=0,NA(),'Heavy Lamb Prices'!AG118) -> 
R49: 50 | S49: 706.7075 | T49: 714.434 | U49: 611.0241 | V49: 643.766 | W49: 635.7048 | X49: =IF('Light Lamb Prices'!$AQ118=0,NA(),'Light Lamb Prices'!$AQ118) ->  | Z49: 50 | AA49: 382.5261 | AB49: 422.5288 | AC49: 445.44 | AD49: 526.0117 | AE49: 462.979 | AF49: =IF('Heavy Lamb Prices'!$AR118=0,NA(),'Heavy Lamb Prices'!$AR118) ->  | AJ49: 51 | AK49: =IF('Light Lamb Prices'!M119=0,NA(),'Light Lamb Prices'!M119) ->  | AL49: =IF('Heavy Lamb Prices'!AO119=0,NA(),'Heavy Lamb Prices'!AO119) ->  | AM49: =IF('Heavy Lamb Prices'!AD119=0,NA(),'Heavy Lamb Prices'!AD119) ->  | AN49: =IF('Heavy Lamb Prices'!N119=0,NA(),'Heavy Lamb Prices'!N119) ->  | AO49: =IF('Light Lamb Prices'!AJ119=0,NA(),'Light Lamb Prices'!AJ119) ->  | AP49: =IF('Light Lamb Prices'!R119=0,NA(),'Light Lamb Prices'!R119) ->  | AQ49: =IF('Heavy Lamb Prices'!AG119=0,NA(),'Heavy Lamb Prices'!AG119) -> 
R50: 51 | S50: 705.4246 | T50: 725.0233 | U50: 628.1194 | V50: 651.4829 | W50: 604.137 | X50: =IF('Light Lamb Prices'!$AQ119=0,NA(),'Light Lamb Prices'!$AQ119) ->  | Z50: 51 | AA50: 377.0629 | AB50: 427.0925 | AC50: 451.4669 | AD50: 524.3885 | AE50: 453.4271 | AF50: =IF('Heavy Lamb Prices'!$AR119=0,NA(),'Heavy Lamb Prices'!$AR119) ->  | AJ50: 52 | AK50: =IF('Light Lamb Prices'!M120=0,NA(),'Light Lamb Prices'!M120) ->  | AL50: =IF('Heavy Lamb Prices'!AO120=0,NA(),'Heavy Lamb Prices'!AO120) ->  | AM50: =IF('Heavy Lamb Prices'!AD120=0,NA(),'Heavy Lamb Prices'!AD120) ->  | AN50: =IF('Heavy Lamb Prices'!N120=0,NA(),'Heavy Lamb Prices'!N120) ->  | AO50: =IF('Light Lamb Prices'!AJ120=0,NA(),'Light Lamb Prices'!AJ120) ->  | AP50: =IF('Light Lamb Prices'!R120=0,NA(),'Light Lamb Prices'!R120) ->  | AQ50: =IF('Heavy Lamb Prices'!AG120=0,NA(),'Heavy Lamb Prices'!AG120) -> 
R51: 52 | S51: 709.1261 | T51: 720.3086 | U51: 615.2114 | V51: 645.3799 | W51: 602.9494 | X51: =IF('Light Lamb Prices'!$AQ120=0,NA(),'Light Lamb Prices'!$AQ120) ->  | Z51: 52 | AA51: 374.7625 | AB51: 429.7617 | AC51: 450.6108 | AD51: 529.5265 | AE51: 453.4246 | AF51: =IF('Heavy Lamb Prices'!$AR120=0,NA(),'Heavy Lamb Prices'!$AR120) ->  | AK51: ESP/LL | AL51: UK | AM51: PL | AN51: FR | AO51: SK | AP51: IT | AQ51: RO | AR51: Uruguay | AS51: New Z | AT51: AUS
R52: 53 | S52: 0 | T52: 717.561 | U52: 0 | V52: 0 | W52: 0 | X52: =IF('Light Lamb Prices'!$AQ121=0,NA(),'Light Lamb Prices'!$AQ121) ->  | Z52: 53 | AA52: 0 | AB52: 449.1997 | AC52: 0 | AD52: 0 | AE52: 0 | AF52: =IF('Heavy Lamb Prices'!$AR121=0,NA(),'Heavy Lamb Prices'!$AR121) -> 

Sheet Monthly prices
G1: | | M1: 2007 | S1: | | Y1: 2008 | AE1: | | AK1: 2009 | AQ1: | | AW1: 2010 | BC1: | | BI1: 2011 | BO1: | | BU1: 2012 | CA1: | | CH1: 2013
A2: €UR per 100 kg carcasses weight | CI2: €UR per 100 kg carcasses weight
A5: HEAVY LAMBS | CI5: HEAVY LAMBS
G6: Month beginning
B7: >2011 | C7: 2011 | D7: 2012 | E7: 2013-I | F7: 2013-II | G7: 2007-01-01 | H7: 2007-02-01 | I7: 2007-03-01 | J7: 2007-04-01 | K7: 2007-05-01 | L7: 2007-06-01 | M7: 2007-07-01 | N7: 2007-08-01 | O7: 2007-09-01 | P7: 2007-10-01 | Q7: 2007-11-01 | R7: 2007-12-01 | S7: 2008-01-01 | T7: 2008-02-01 | U7: 2008-03-01 | V7: 2008-04-01 | W7: 2008-05-01 | X7: 2008-06-01 | Y7: 2008-07-01 | Z7: 2008-08-01 | AA7: 2008-09-01 | AB7: 2008-10-01 | AC7: 2008-11-01 | AD7: 2008-12-01 | AE7: 2009-01-01 | AF7: 2009-02-01 | AG7: 2009-03-01 | AH7: 2009-04-01 | AI7: 2009-05-01 | AJ7: 2009-06-01 | AK7: 2009-07-01 | AL7: 2009-08-01 | AM7: 2009-09-01 | AN7: 2009-10-01 | AO7: 2009-11-01 | AP7: 2009-12-01 | AQ7: 2010-01-01 | AR7: 2010-02-01 | AS7: 2010-03-01 | AT7: 2010-04-01 | AU7: 2010-05-01 | AV7: 2010-06-01 | AW7: 2010-07-01 | AX7: 2010-08-01 | AY7: 2010-09-01 | AZ7: 2010-10-01 | BA7: 2010-11-01 | BB7: 2010-12-01 | BC7: 2011-01-01 | BD7: 2011-02-01 | BE7: 2011-03-01 | BF7: 2011-04-01 | BG7: 2011-05-01 | BH7: 2011-06-01 | BI7: 2011-07-01 | BJ7: 2011-08-01 | BK7: 2011-09-01 | BL7: 2011-10-01 | BM7: 2011-11-01 | BN7: 2011-12-01 | BO7: 2012-01-01 | BP7: 2012-02-01 | BQ7: 2012-03-01 | BR7: 2012-04-01 | BS7: 2012-05-01 | BT7: 2012-06-01 | BU7: 2012-07-01 | BV7: 2012-08-01 | BW7: 2012-09-01 | BX7: 2012-10-01 | BY7: 2012-11-01 | BZ7: 2012-12-01 | CA7: 2013-01-01 | CB7: 2013-02-01 | CC7: 2013-03-01 | CD7: 2013-04-01 | CE7: 2013-05-01 | CF7: 2013-06-01 | CG7: 2013-07-01
B8: Weights (%) | C8: Weights (%) | D8: Weights (%) | E8: Weights (%) | F8: Weights (%) | CJ8: Weights (%)
A9: BE | B9: 0.26 | C9: 0.53 | D9: 0.53 | E9: 0.46 | F9: 0.43 | G9: 404.1539 | H9: 405.0639 | I9: 412.3423 | J9: 449.3733 | K9: 439.0003 | L9: 430.4977 | M9: 418.951 | N9: 424.3335 | O9: 428.2757 | P9: 420.6684 | Q9: 433.063 | R9: 433.8845 | S9: 429.7352 | T9: 441.0976 | U9: 494.0106 | V9: 522.7903 | W9: 514.7542 | X9: 469.633 | Y9: 458.9652 | Z9: 433.3858 | AA9: 427.5757 | AB9: 442.0719 | AC9: 445.5793 | AD9: 450.3145 | AE9: 455.0742 | AF9: 458.3814 | AG9: 476.9771 | AH9: 512.8523 | AI9: 528.439 | AJ9: 520.921 | AK9: 467.7206 | AL9: 455.8884 | AM9: 433.44 | AN9: 412.5358 | AO9: 441.5273 | AP9: 442.5087 | AQ9: 436.5216 | AR9: 443.93 | AS9: 468.4865 | AT9: 526.5063 | AU9: 509.5155 | AV9: 456.41 | AW9: 410.8523 | AX9: 404.8148 | AY9: 427.267 | AZ9: 455.1548 | BA9: 482.412 | BB9: 437.7952 | BC9: 430.4558 | BD9: 429.295 | BE9: 465.0255 | BF9: 526.022 | BG9: 531.3506 | BH9: 489.0807 | BI9: 442.4758 | BJ9: 443.6571 | BK9: 467.5533 | BL9: 494.4119 | BM9: 506.5853 | BN9: 452.9919 | BO9: 444.8274 | BP9: 439.5919 | BQ9: 499.0906 | BR9: 587.245 | BS9: 558.3761 | BT9: 501.598 | BU9: 477.8048 | BV9: 490.0587 | BW9: 519.0233 | BX9: 552.3919 | BY9: 512.3242 | BZ9: 480.8229 | CA9: 449.9855 | CB9: 451.085 | CC9: 504.5123 | CD9: 544.8867 | CE9: 522.5803 | CF9: 488.9307 | CG9: 486.4333 | CI9: BE | CJ9: 0.46
A10: DK | E10: 0.26 | F10: 0.28 | CC10: 466.2212137 | CD10: 482.0598 | CE10: 483.3065 | CF10: 487.7702 | CG10: 486.9296 | CI10: DK | CJ10: 0.26
A11: DE | B11: 5.79 | C11: 6.68 | D11: 6.67 | E11: 6.87 | F11: 6.64 | G11: 399.7252 | H11: 382.4829 | I11: 378.3423 | J11: 412.913 | K11: 407.5329 | L11: 395.1603 | M11: 368.95 | N11: 375.85 | O11: 388.1363 | P11: 397.5016 | Q11: 389.0773 | R11: 396.381 | S11: 404.5074 | T11: 409.9121 | U11: 442.0203 | V11: 430.891 | W11: 429.9384 | X11: 422.9553 | Y11: 388.0784 | Z11: 390.8726 | AA11: 404.1787 | AB11: 411.6016 | AC11: 400.2993 | AD11: 415.4403 | AE11: 434.7619 | AF11: 428.2282 | AG11: 445.701 | AH11: 454.5313 | AI11: 452.3661 | AJ11: 438.5487 | AK11: 414.2271 | AL11: 394.7568 | AM11: 411.8047 | AN11: 404.3258 | AO11: 400.4877 | AP11: 409.2823 | AQ11: 424.6513 | AR11: 412.1975 | AS11: 458.6797 | AT11: 467.7553 | AU11: 459.4481 | AV11: 435.729 | AW11: 410.9797 | AX11: 403.7326 | AY11: 411.537 | AZ11: 408.759 | BA11: 417.9347 | BB11: 424.9935 | BC11: 431.6748 | BD11: 442.935 | BE11: 459.1645 | BF11: 512.074 | BG11: 519.6406 | BH11: 497.454 | BI11: 446.9245 | BJ11: 457.3877 | BK11: 469.098 | BL11: 471.9639 | BM11: 481.304 | BN11: 480.6503 | BO11: 508.7826 | BP11: 498.2524 | BQ11: 550.5697 | BR11: 557.532 | BS11: 537.3097 | BT11: 498.678 | BU11: 482.2626 | BV11: 488.2839 | BW11: 505.07 | BX11: 519.2458 | BY11: 499.12 | BZ11: 505.4594 | CA11: 502.5968 | CB11: 494.1536 | CC11: 512.369 | CD11: 507.042 | CE11: 497.2665 | CF11: 508.504 | CG11: 518.16 | CI11: DE | CJ11: 6.87
A12: EE | D12: 0.12 | E12: 0.1 | F12: 0.11 | BN12: 228.48 | BO12: 256.2423 | BP12: 234.0124 | BQ12: 253.2274 | BR12: 288.1653 | BS12: 278.9929 | BT12: 273.3373 | BU12: 295.6565 | BV12: 249.5316 | BW12: 219.2523 | BX12: 218.2565 | BY12: 224.5183 | BZ12: 270.8661 | CA12: 239.7213 | CB12: 225.4239 | CC12: 289.7148 | CD12: 269.9207 | CE12: 280.3303 | CF12: 301.232 | CG12: 280.6288 | CI12: EE | CJ12: 0.1
A13: IE | B13: 9.38 | C13: 8.43 | D13: 8.42 | E13: 8.19 | F13: 9.39 | G13: 316.8642 | H13: 337.1146 | I13: 347.8313 | J13: 393.1667 | K13: 357.17 | L13: 344.2663 | M13: 327.8394 | N13: 335.4694 | O13: 341.0727 | P13: 330.1597 | Q13: 321.837 | R13: 323.4245 | S13: 327.9958 | T13: 357.3397 | U13: 382.7168 | V13: 409.3123 | W13: 425.689 | X13: 396.418 | Y13: 349.6116 | Z13: 325.1435 | AA13: 325.1293 | AB13: 313.3494 | AC13: 309.6517 | AD13: 311.0916 | AE13: 339.2177 | AF13: 361.6979 | AG13: 372.0229 | AH13: 420.3433 | AI13: 437.3748 | AJ13: 396.592 | AK13: 336.7848 | AL13: 322.8094 | AM13: 318.7137 | AN13: 311.9171 | AO13: 331.445 | AP13: 368.4629 | AQ13: 412.5606 | AR13: 422.1425 | AS13: 444.0887 | AT13: 483.934 | AU13: 475.6845 | AV13: 439.1837 | AW13: 390.3194 | AX13: 401.88 | AY13: 387.4253 | AZ13: 392.8116 | BA13: 416.645 | BB13: 440.6613 | BC13: 443.1565 | BD13: 446.6521 | BE13: 493.1768 | BF13: 562.9567 | BG13: 568.6142 | BH13: 475.562 | BI13: 440.4352 | BJ13: 433.4306 | BK13: 417.673 | BL13: 422.439 | BM13: 443.353 | BN13: 465.5974 | BO13: 482.4545 | BP13: 485.9631 | BQ13: 489.9558 | BR13: 518.9253 | BS13: 468.4797 | BT13: 449.578 | BU13: 435.4952 | BV13: 436.1771 | BW13: 415.9133 | BX13: 402.6635 | BY13: 387.8783 | BZ13: 391.3661 | CA13: 368.3252 | CB13: 399.0479 | CC13: 463.4942 | CD13: 499.5677 | CE13: 523.3906 | CF13: 483.6633 | CG13: 462.0316 | CI13: IE | CJ13: 8.19
A14: ES | B14: 7.56 | C14: 4.65 | D14: 4.64 | E14: 4.69 | F14: 4.55 | G14: 383.8342 | H14: 429.5436 | I14: 447.1945 | J14: 417.4733 | K14: 407.97 | L14: 374.72 | M14: 408.489 | N14: 443.5555 | O14: 473.8013 | P14: 542.8429 | Q14: 577.387 | R14: 555.4206 | S14: 474.8065 | T14: 450.52 | U14: 450.9626 | V14: 404.8743 | W14: 405.8968 | X14: 424.6127 | Y14: 484.2161 | Z14: 508.4729 | AA14: 566.0077 | AB14: 604.4187 | AC14: 655.3707 | AD14: 618.1119 | AE14: 569.0552 | AF14: 490.1461 | AG14: 460.9287 | AH14: 458.2997 | AI14: 451.1442 | AJ14: 451.6033 | AK14: 482.0742 | AL14: 501.9919 | AM14: 556.5543 | AN14: 594.9603 | AO14: 594.535 | AP14: 588.9687 | AQ14: 503.9855 | AR14: 456.25 | AS14: 448.08 | AT14: 446.6793 | AU14: 430.1532 | AV14: 427.7913 | AW14: 443.1019 | AX14: 463.12 | AY14: 498.18 | AZ14: 494.8558 | BA14: 492.0467 | BB14: 491.7945 | BC14: 476.9261 | BD14: 477.3579 | BE14: 480.219 | BF14: 476.575 | BG14: 471.6229 | BH14: 479.1523 | BI14: 498.9655 | BJ14: 523.1335 | BK14: 546.3543 | BL14: 558.9945 | BM14: 587.9377 | BN14: 597.5913 | BO14: 514.9984 | BP14: 488.8648 | BQ14: 491.0671 | BR14: 498.146 | BS14: 480.8787 | BT14: 466.4643 | BU14: 500.1113 | BV14: 533.6661 | BW14: 543.4927 | BX14: 544.4461 | BY14: 542.45 | BZ14: 538.9839 | CA14: 446.3726 | CB14: 394.1664 | CC14: 404.2994 | CD14: 415.1573 | CE14: 421.4116 | CF14: 473.2963 | CG14: 499.339 | CI14: ES | CJ14: 4.69
A15: FR | B15: 16.2 | C15: 17.91 | D15: 17.89 | E15: 17.74 | F15: 17.78 | G15: 548.7097 | H15: 529.8214 | I15: 542.0968 | J15: 553.9 | K15: 526.0323 | L15: 481.4667 | M15: 484.2581 | N15: 544.3871 | O15: 568.8 | P15: 568.5161 | Q15: 566.3667 | R15: 567.3548 | S15: 562.0645 | T15: 538.5862 | U15: 562.5161 | V15: 558.5 | W15: 552.4516 | X15: 544.5333 | Y15: 562.9677 | Z15: 568.0968 | AA15: 569.4 | AB15: 565.3226 | AC15: 574.9667 | AD15: 601.9677 | AE15: 610.5161 | AF15: 590 | AG15: 586.6774 | AH15: 601.0333 | AI15: 587.6452 | AJ15: 575.2667 | AK15: 562.7097 | AL15: 553 | AM15: 558.8667 | AN15: 559.8387 | AO15: 587.5333 | AP15: 608.5161 | AQ15: 612.2258 | AR15: 584.5 | AS15: 592.9355 | AT15: 598.2 | AU15: 570.4839 | AV15: 550.3 | AW15: 547.8387 | AX15: 556.4839 | AY15: 570.1333 | AZ15: 580.2258 | BA15: 603.5 | BB15: 610.5161 | BC15: 597.5484 | BD15: 581.4643 | BE15: 595.9355 | BF15: 623.5 | BG15: 627.129 | BH15: 607.4333 | BI15: 592.2581 | BJ15: 588.7742 | BK15: 604.2 | BL15: 625.6129 | BM15: 635.2 | BN15: 645.2581 | BO15: 639.129 | BP15: 633.2414 | BQ15: 625.0645 | BR15: 629.6 | BS15: 611.2258 | BT15: 581.8 | BU15: 581.0323 | BV15: 598.9032 | BW15: 620.3667 | BX15: 632.3226 | BY15: 638.1667 | BZ15: 630 | CA15: 602.1613 | CB15: 556.9643 | CC15: 578.1613 | CD15: 620.4333 | CE15: 619.6774 | CF15: 611.5 | CG15: 636.0645 | CI15: FR | CJ15: 17.74
A16: CY | E16: 0.43 | F16: 0.54 | CA16: 481.9355 | CB16: 456.6786 | CC16: 493.7742 | CD16: 483.6667 | CE16: 482.5484 | CF16: 479.7667 | CG16: 481.8387 | CI16: CY | CJ16: 0.43
A17: NL | B17: 2.14 | C17: 2.32 | D17: 2.32 | E17: 2.19 | F17: 2.29 | G17: 370.6058 | H17: 355.3804 | I17: 368.7868 | J17: 379.574 | K17: 394.9374 | L17: 403.9467 | M17: 393.9842 | N17: 388.3455 | O17: 417.874 | P17: 424.4142 | Q17: 431.268 | R17: 416.5003 | S17: 421.0287 | T17: 426.671 | U17: 448.7416 | V17: 462.928 | W17: 485.03 | X17: 483.989 | Y17: 481.0781 | Z17: 471.6458 | AA17: 445.1713 | AB17: 430.5087 | AC17: 423.081 | AD17: 430.2316 | AE17: 428.9103 | AF17: 445.5911 | AG17: 473.8761 | AH17: 501.168 | AI17: 498.0381 | AJ17: 491.7893 | AK17: 466.5087 | AL17: 438.1477 | AM17: 427.6803 | AN17: 432.0613 | AO17: 441.842 | AP17: 447.7923 | AQ17: 458.9803 | AR17: 455.5725 | AS17: 490.9368 | AT17: 511.028 | AU17: 503.3884 | AV17: 459.6453 | AW17: 438.0223 | AX17: 442.5919 | AY17: 444.957 | AZ17: 451.5519 | BA17: 453.8573 | BB17: 446.5748 | BC17: 448.5545 | BD17: 457.9464 | BE17: 494.8339 | BF17: 537.9223 | BG17: 556.7294 | BH17: 538.0357 | BI17: 516.3032 | BJ17: 495.679 | BK17: 510.7687 | BL17: 524.1123 | BM17: 518.5873 | BN17: 501.5797 | BO17: 487.0355 | BP17: 485.4166 | BQ17: 547.9542 | BR17: 585.3387 | BS17: 567.2681 | BT17: 565.8267 | BU17: 575.0116 | BV17: 560.1884 | BW17: 556.6423 | BX17: 547.0855 | BY17: 512.7675 | BZ17: 490.1113 | CA17: 468.9952 | CB17: 466.7811 | CC17: 494.7565 | CD17: 503.889 | CE17: 512.5594 | CF17: 533.197 | CG17: 547.6035 | CI17: NL | CJ17: 2.19
A18: AT | B18: 0.86 | C18: 1.28 | D18: 1.28 | E18: 1.28 | F18: 1.33 | G18: 467.8065 | H18: 466.5 | I18: 464.871 | J18: 468.2667 | K18: 464.2258 | L18: 464 | M18: 462.129 | N18: 460.3226 | O18: 459.4667 | P18: 459.9032 | Q18: 459.7 | R18: 463.2581 | S18: 463.8387 | T18: 463.4138 | U18: 467.6774 | V18: 467.7 | W18: 467.2903 | X18: 465.0333 | Y18: 465.3548 | Z18: 463.9677 | AA18: 463 | AB18: 464.0645 | AC18: 493.6333 | AD18: 490.4194 | AE18: 509.4839 | AF18: 504.9643 | AG18: 504.4839 | AH18: 506.5 | AI18: 496.3548 | AJ18: 498.0333 | AK18: 492.5484 | AL18: 488.0645 | AM18: 496.9667 | AN18: 496.9355 | AO18: 505.9667 | AP18: 513.2903 | AQ18: 503.4839 | AR18: 500 | AS18: 510.2903 | AT18: 512.5667 | AU18: 494.5161 | AV18: 496.4333 | AW18: 481.3226 | AX18: 491 | AY18: 479.9667 | AZ18: 505.0968 | BA18: 502.2333 | BB18: 502.3871 | BC18: 510.6129 | BD18: 503.0357 | BE18: 511.3871 | BF18: 516.1 | BG18: 501.9677 | BH18: 507.7667 | BI18: 494.871 | BJ18: 495.5806 | BK18: 519.6333 | BL18: 516.7097 | BM18: 526.0667 | BN18: 535.6129 | BO18: 522.6452 | BP18: 526.1034 | BQ18: 532.3548 | BR18: 538.9 | BS18: 526.2581 | BT18: 528 | BU18: 511.6774 | BV18: 519.9032 | BW18: 523.9 | BX18: 527.6774 | BY18: 538.5 | BZ18: 537.0645 | CA18: 540.6129 | CB18: 529.2857 | CC18: 538.8065 | CD18: 533.1333 | CE18: 522.4194 | CF18: 516.9667 | CG18: 513.4516 | CI18: AT | CJ18: 1.28
A19: PL | B19: 0.14 | C19: 0.17 | D19: 0.17 | E19: 0.12 | F19: 0.12 | G19: 312.2483 | H19: 303.156 | I19: 327.2619 | J19: 339.3636 | K19: 311.6494 | L19: 302.4268 | M19: 293.9166 | N19: 292.9336 | O19: 315.1732 | P19: 301.7962 | Q19: 322.7194 | R19: 381.8314 | S19: 370.9714 | T19: 346.2161 | U19: 368.7821 | V19: 356.785 | W19: 316.2506 | X19: 304.8646 | Y19: 319.749 | Z19: 333.8468 | AA19: 325.4104 | AB19: 307.7427 | AC19: 294.5115 | AD19: 274.5935 | AE19: 303.29 | AF19: 321.3731 | AG19: 322.7574 | AH19: 330.4468 | AI19: 334.9778 | AJ19: 327.2403 | AK19: 320.0378 | AL19: 320.4157 | AM19: 321.4025 | AN19: 330.239 | AO19: 328.8618 | AP19: 411.3107 | AQ19: 422.3832 | AR19: 382.0701 | AS19: 401.8994 | AT19: 373.0351 | AU19: 340.1968 | AV19: 321.7152 | AW19: 316.4942 | AX19: 319.4076 | AY19: 336.3251 | AZ19: 331.0515 | BA19: 327.7541 | BB19: 394.1249 | BC19: 421.6959 | BD19: 358.3184 | BE19: 391.4293 | BF19: 415.538 | BG19: 410.3655 | BH19: 392.544 | BI19: 393.8771 | BJ19: 365.045 | BK19: 376.562 | BL19: 345.9511 | BM19: 368.364 | BN19: 448.3956 | BO19: 423.7678 | BP19: 420.5245 | BQ19: 413.0519 | BR19: 417.4828 | BS19: 394.0592 | BT19: 379.2078 | BU19: 376.8808 | BV19: 388.2539 | BW19: 378.4129 | BX19: 382.8399 | BY19: 392.5092 | BZ19: 411.1223 | CA19: 366.4585 | CB19: 358.9293 | CC19: 362.508 | CD19: 373.7008 | CE19: 365.9429 | CF19: 353.7609 | CG19: 357.6338 | CI19: PL | CJ19: 0.12
A20: RO | B20: 13.15 | C20: 7.52 | D20: 7.51 | E20: 7.47 | F20: 7.34 | R20: 180.7873 | S20: 175.0005 | T20: 174.3649 | U20: 178.2978 | V20: 184.2738 | W20: 218.8219 | X20: 191.7851 | Y20: 182.9089 | Z20: 194.3701 | AA20: 187.381 | AB20: 188.597 | AC20: 185.3713 | AD20: 199.2604 | AE20: 179.2589 | AF20: 189.9722 | AG20: 189.1859 | AH20: 185.6007 | AI20: 170.5591 | AJ20: 181.427 | AK20: 188.8275 | AL20: 195.3119 | AM20: 200.053 | AN20: 182.9275 | AO20: 165.6276 | AP20: 165.4819 | AQ20: 168.7355 | AR20: 169.8228 | AS20: 175.1625 | AT20: 181.7781 | AU20: 188.5293 | AV20: 201.8731 | AW20: 210.9741 | AX20: 212.7676 | AY20: 208.8237 | AZ20: 182.8417 | BA20: 185.6808 | BB20: 194.0332 | BC20: 182.3445 | BD20: 254.147 | BE20: 236.6111 | BF20: 244.231 | BG20: 246.503 | BH20: 246.6436 | BI20: 252.9262 | BJ20: 243.7643 | BK20: 226.6685 | BL20: 225.41 | BM20: 226.1572 | BN20: 230.9838 | BO20: 236.7195 | BP20: 234.4435 | BQ20: 238.7232 | BR20: 221.3322 | BS20: 233.9784 | BT20: 241.1175 | BU20: 239.0446 | BV20: 233.456 | BW20: 225.8525 | BX20: 241.8305 | BY20: 229.7549 | BZ20: 235.5756 | CA20: 242.5398 | CB20: 243.0602 | CC20: 241.1212 | CD20: 247.8165 | CE20: 246.9585 | CF20: 228.8787 | CG20: 229.6711 | CI20: RO | CJ20: 7.47
A21: SE | B21: 0.56 | C21: 0.94 | D21: 0.94 | E21: 0.95 | F21: 0.97 | G21: 319.3168 | H21: 342.4772 | I21: 367.317 | J21: 378.9138 | K21: 395.6266 | L21: 393.3963 | M21: 389.0145 | N21: 355.2758 | O21: 324.4729 | P21: 308.2967 | Q21: 286.7903 | R21: 302.7395 | S21: 322.1488 | T21: 354.6098 | U21: 379.2169 | V21: 399.4955 | W21: 427.0979 | X21: 414.4119 | Y21: 388.0186 | Z21: 352.9197 | AA21: 315.7389 | AB21: 296.1323 | AC21: 279.2592 | AD21: 262.933 | AE21: 272.726 | AF21: 296.1813 | AG21: 312.9211 | AH21: 344.4411 | AI21: 376.2615 | AJ21: 360.8229 | AK21: 343.2389 | AL21: 335.2213 | AM21: 305.5435 | AN21: 271.8455 | AO21: 264.3783 | AP21: 264.9423 | AQ21: 284.4049 | AR21: 304.6849 | AS21: 349.8813 | AT21: 391.6172 | AU21: 425.074 | AV21: 429.4518 | AW21: 416.3892 | AX21: 398.8357 | AY21: 372.6473 | AZ21: 333.2287 | BA21: 318.8547 | BB21: 343.3419 | BC21: 368.1554 | BD21: 395.0886 | BE21: 423.5454 | BF21: 436.2045 | BG21: 477.755 | BH21: 466.9969 | BI21: 441.5197 | BJ21: 427.5864 | BK21: 376.6931 | BL21: 336.3032 | BM21: 332.454 | BN21: 370.3399 | BO21: 398.1058 | BP21: 409.6736 | BQ21: 446.4183 | BR21: 506.8379 | BS21: 531.0667 | BT21: 526.9291 | BU21: 520.0961 | BV21: 494.6797 | BW21: 415.7138 | BX21: 364.3514 | BY21: 370.0305 | BZ21: 402.7931 | CA21: 431.67 | CB21: 490.1758 | CC21: 530.2184 | CD21: 544.7958 | CE21: 558.777 | CF21: 553.0581 | CG21: 542.2706 | CI21: SE | CJ21: 0.95
A22: GB | B22: 92.87 | C22: 92.87 | D22: 92.87 | E22: 92.87 | F22: 92.87 | G22: 344.5331 | H22: 362.638 | I22: 377.8462 | J22: 365.7548 | K22: 368.7827 | L22: 393.1914 | M22: 384.5332 | N22: 365.6062 | O22: 330.6992 | P22: 299.8959 | Q22: 279.7108 | R22: 278.4867 | S22: 310.8452 | T22: 359.7859 | U22: 398.1736 | V22: 409.5969 | W22: 469.5545 | X22: 447.3812 | Y22: 371.2025 | Z22: 358.3292 | AA22: 366.4065 | AB22: 350.1274 | AC22: 326.4336 | AD22: 318.675 | AE22: 370.464 | AF22: 415.7805 | AG22: 411.4084 | AH22: 456.6121 | AI22: 473.3304 | AJ22: 445.6092 | AK22: 367.2653 | AL22: 374.5436 | AM22: 361.5199 | AN22: 355.4643 | AO22: 390.503 | AP22: 427.3646 | AQ22: 476.0938 | AR22: 472.1296 | AS22: 456.6049 | AT22: 493.5281 | AU22: 509.942 | AV22: 478.6847 | AW22: 425.7172 | AX22: 446.0991 | AY22: 430.1765 | AZ22: 401.1981 | BA22: 420.9842 | BB22: 456.6889 | BC22: 465.0121 | BD22: 470.9338 | BE22: 512.0692 | BF22: 578.4213 | BG22: 613.3847 | BH22: 516.4329 | BI22: 473.4893 | BJ22: 457.0677 | BK22: 437.9232 | BL22: 440.434 | BM22: 477.9444 | BN22: 539.2268 | BO22: 533.5543 | BP22: 527.6328 | BQ22: 540.5573 | BR22: 555.4541 | BS22: 533.333 | BT22: 522.1792 | BU22: 528.8896 | BV22: 529.2623 | BW22: 497.2856 | BX22: 451.9158 | BY22: 435.9794 | BZ22: 429.0028 | CA22: 400.1709 | CB22: 413.5491 | CC22: 498.2097 | CD22: 542.6457 | CE22: 577.0582 | CF22: 575.9564 | CG22: 533.7118 | CI22: GB | CJ22: 92.87
A23: NI | B23: 7.13 | C23: 7.13 | D23: 7.13 | E23: 7.13 | F23: 7.13 | G23: 320.3499 | H23: 342.6397 | I23: 349.6804 | J23: 358.7453 | K23: 338.1788 | L23: 348.4871 | M23: 335.5659 | N23: 342.4831 | O23: 326.3873 | P23: 311.7777 | Q23: 306.4368 | R23: 295.053 | S23: 308.4141 | T23: 350.7392 | U23: 366.2431 | V23: 387.3329 | W23: 445.5285 | X23: 399.0693 | Y23: 343.7787 | Z23: 326.9765 | AA23: 316.2373 | AB23: 304.1542 | AC23: 296.7827 | AD23: 291.8478 | AE23: 343.5439 | AF23: 376.6224 | AG23: 392.6897 | AH23: 433.2383 | AI23: 446.4945 | AJ23: 392.6214 | AK23: 330.5521 | AL23: 318.0775 | AM23: 304.7115 | AN23: 300.2339 | AO23: 332.4913 | AP23: 372.754 | AQ23: 421.2876 | AR23: 424.2067 | AS23: 436.2832 | AT23: 469.2702 | AU23: 491.512 | AV23: 430.1485 | AW23: 380.8277 | AX23: 403.7284 | AY23: 378.9449 | AZ23: 376.07 | BA23: 410.8551 | BB23: 435.6776 | BC23: 433.0415 | BD23: 439.2917 | BE23: 491.1691 | BF23: 549.8889 | BG23: 591.3376 | BH23: 468.4444 | BI23: 438.591 | BJ23: 426.2776 | BK23: 411.8834 | BL23: 423.037 | BM23: 447.0787 | BN23: 463.3187 | BO23: 477.7129 | BP23: 481.1103 | BQ23: 500.3583 | BR23: 506.166 | BS23: 439.1808 | BT23: 446.2194 | BU23: 436.3509 | BV23: 435.8247 | BW23: 400.6209 | BX23: 382.075 | BY23: 383.3596 | BZ23: 375.072 | CA23: 362.2455 | CB23: 383.7851 | CC23: 458.1618 | CD23: 495.9396 | CE23: 552.6287 | CF23: 501.9217 | CG23: 463.4132 | CI23: NI | CJ23: 7.13
A24: UK | B24: 43.96 | C24: 49.57 | D24: 49.51 | E24: 49.25 | F24: 48.16 | G24: 342.8088 | H24: 361.2121 | I24: 375.838 | J24: 365.255 | K24: 366.6006 | L24: 390.004 | M24: 381.0418 | N24: 363.9576 | O24: 330.3918 | P24: 300.743 | Q24: 281.6163 | R24: 279.6679 | S24: 310.6719 | T24: 359.1409 | U24: 395.8969 | V24: 408.0095 | W24: 467.8414 | X24: 443.9366 | Y24: 369.2472 | Z24: 356.0938 | AA24: 362.8295 | AB24: 346.8495 | AC24: 324.3195 | AD24: 316.7622 | AE24: 368.5446 | AF24: 412.9885 | AG24: 410.0737 | AH24: 454.9455 | AI24: 471.417 | AJ24: 441.8312 | AK24: 364.6477 | AL24: 370.5175 | AM24: 357.4695 | AN24: 351.5264 | AO24: 386.3668 | AP24: 423.4709 | AQ24: 472.1862 | AR24: 468.7127 | AS24: 455.1559 | AT24: 491.7985 | AU24: 508.6279 | AV24: 475.2241 | AW24: 422.5166 | AX24: 443.078 | AY24: 426.5237 | AZ24: 399.4064 | BA24: 420.262 | BB24: 455.1908 | BC24: 462.7326 | BD24: 468.6778 | BE24: 510.579 | BF24: 576.3869 | BG24: 611.8127 | BH24: 513.0114 | BI24: 471.001 | BJ24: 454.8724 | BK24: 436.0666 | BL24: 439.1936 | BM24: 475.7437 | BN24: 533.8146 | BO24: 529.5728 | BP24: 524.3158 | BQ24: 537.6911 | BR24: 551.9398 | BS24: 526.6199 | BT24: 516.7633 | BU24: 522.2916 | BV24: 522.6002 | BW24: 490.3935 | BX24: 446.9361 | BY24: 432.2276 | BZ24: 425.1575 | CA24: 397.4668 | CB24: 411.427 | CC24: 495.3543 | CD24: 539.3156 | CE24: 575.3164 | CF24: 570.6778 | CG24: 528.6995 | CI24: UK | CJ24: 49.25
A25: EU_H | B25: =SUM(B9:B24)-B22-B23 -> 100 | C25: =SUM(C9:C24)-C22-C23 -> 100 | D25: =SUM(D9:D24)-D22-D23 -> 100 | E25: =SUM(E9:E24)-E22-E23 -> 100 | F25: =SUM(F9:F24)-F22-F23 -> 99.93 | G25: =+(G9*$B$9+G11*$B$11+G13*$B$13+G14*$B$14+G15*$B$15+G17*$B$17+G18*$B$18+G19*$B$19+G21*$B$21+G24*$B$24)/86.85 -> 387.6842352 | H25: 398.2418065 | I25: 410.8874216 | J25: 412.850838 | K25: 403.6307546 | L25: 402.21615 | M25: 397.2779562 | N25: 403.8230263 | O25: 396.0122618 | P25: 386.4246657 | Q25: 377.9880555 | R25: =+(R9*$B$9+R11*$B$11+R13*$B$13+R14*$B$14+R15*$B$15+R17*$B$17+R18*$B$18+R19*$B$19+R20*$B$20+R21*$B$21+R24*$B$24)/100 -> 350.1596227 | S25: 357.1604697 | T25: 376.1034641 | U25: 401.7440629 | V25: 406.0453684 | W25: 438.0153767 | X25: 420.6877189 | Y25: 387.5553864 | Z25: 383.3546006 | AA25: 389.9163819 | AB25: 384.2181755 | AC25: 378.294321 | AD25: 379.3860547 | AE25: 401.1955736 | AF25: 415.0664816 | AG25: 413.6599979 | AH25: 440.9667564 | AI25: 445.0628535 | AJ25: 426.6538769 | AK25: 386.1133562 | AL25: 386.3203825 | AM25: 386.5155325 | AN25: 383.5041472 | AO25: 402.9275225 | AP25: 426.4906709 | AQ25: 447.8002498 | AR25: 438.4671059 | AS25: 439.8984795 | AT25: 462.6801316 | AU25: 463.750433 | AV25: 441.5163226 | AW25: 413.4935879 | AX25: 426.4179892 | AY25: 422.4709907 | AZ25: 409.0632877 | BA25: 424.9401169 | BB25: 445.1316543 | BC25: =+(BC9*$C$9+BC11*$C$11+BC13*$C$13+BC14*$C$14+BC15*$C$15+BC17*$C$17+BC18*$C$18+BC19*$C$19+BC20*$C$20+BC21*$C$21+BC24*$C$24)/100 -> 461.882077 | BD25: 468.6751194 | BE25: 497.3336825 | BF25: 546.2550689 | BG25: 566.0540041 | BH25: 503.8701048 | BI25: 474.2313924 | BJ25: 465.5126447 | BK25: 458.5272032 | BL25: 464.9814499 | BM25: 488.6634293 | BN25: 521.8297198 | BO25: =+(BO9*$D$9+BO11*$D$11+BO12*$D$12+BO13*$D$13+BO14*$D$14+BO15*$D$15+BO17*$D$17+BO18*$D$18+BO19*$D$19+BO20*$D$20+BO21*$D$21+BO24*$D$24)/100 -> 517.8804578 | BP25: 512.4894648 | BQ25: 524.100058 | BR25: 535.927724 | BS25: 514.0997414 | BT25: 499.2715282 | BU25: 500.8327685 | BV25: 505.3303438 | BW25: 491.8500366 | BX25: 473.0742776 | BY25: 462.4581358 | BZ25: 458.1737979 | CA25: =+(CA9*$E$9+CA10*$E$10+CA11*$E$11+CA12*$E$12+CA13*$E$13+CA14*$E$14+CA15*$E$15+CA16*$E$16+CA17*$E$17+CA18*$E$18+CA19*$E$19+CA20*$E$20+CA21*$E$21+CA24*$E$24)/(100-0.26) -> 433.5633428 | CB25: =+(CB9*$E$9+CB10*$E$10+CB11*$E$11+CB12*$E$12+CB13*$E$13+CB14*$E$14+CB15*$E$15+CB16*$E$16+CB17*$E$17+CB18*$E$18+CB19*$E$19+CB20*$E$20+CB21*$E$21+CB24*$E$24)/(100-0.26) -> 432.1791878 | CC25: =+(CC9*$E$9+CC10*$E$10+CC11*$E$11+CC12*$E$12+CC13*$E$13+CC14*$E$14+CC15*$E$15+CC16*$E$16+CC17*$E$17+CC18*$E$18+CC19*$E$19+CC20*$E$20+CC21*$E$21+CC24*$E$24)/(100) -> 485.8109787 | CD25: =+(CD9*$E$9+CD10*$E$10+CD11*$E$11+CD12*$E$12+CD13*$E$13+CD14*$E$14+CD15*$E$15+CD16*$E$16+CD17*$E$17+CD18*$E$18+CD19*$E$19+CD20*$E$20+CD21*$E$21+CD24*$E$24)/(100) -> 519.0017486 | CE25: =+(CE9*$E$9+CE10*$E$10+CE11*$E$11+CE12*$E$12+CE13*$E$13+CE14*$E$14+CE15*$E$15+CE16*$E$16+CE17*$E$17+CE18*$E$18+CE19*$E$19+CE20*$E$20+CE21*$E$21+CE24*$E$24)/(100) -> 538.1892873 | CF25: =+(CF9*$E$9+CF10*$E$10+CF11*$E$11+CF12*$E$12+CF13*$E$13+CF14*$E$14+CF15*$E$15+CF16*$E$16+CF17*$E$17+CF18*$E$18+CF19*$E$19+CF20*$E$20+CF21*$E$21+CF24*$E$24)/(100) -> 533.2342666 | CG25: =+(CG9*$F$9+CG10*$F$10+CG11*$F$11+CG12*$F$12+CG13*$F$13+CG14*$F$14+CG15*$F$15+CG16*$F$16+CG17*$F$17+CG18*$F$18+CG19*$F$19+CG20*$F$20+CG21*$F$21+CG24*$F$24)/$F$25 -> 516.8680279 | CI25: EU_H | CJ25: 100
A26: EU_H 25 | B26: =+B9+B11+B13+B14+B15+B17+B18+B19+B21+B24 -> 86.85 | C26: =+C9+C11+C13+C14+C15+C17+C18+C19+C21+C24 -> 92.48 | D26: =+D9+D11+D12+D13+D14+D15+D17+D18+D19+D21+D24 -> 92.49 | E26: =+E9+E10+E11+E12+E13+E14+E15+E16+E17+E18+E19+E21+E24 -> 92.53 | F26: =+F9+F10+F11+F12+F13+F14+F15+F16+F17+F18+F19+F21+F24 -> 92.59 | G26: =+(G9*$B$9+G11*$B$11+G13*$B$13+G14*$B$14+G15*$B$15+G17*$B$17+G18*$B$18+G19*$B$19+G21*$B$21+G24*$B$24)/$B$26 -> 387.6842352 | H26: 398.2418065 | I26: 410.8874216 | J26: 412.850838 | K26: 403.6307546 | L26: 402.21615 | M26: 397.2779562 | N26: 403.8230263 | O26: 396.0122618 | P26: 386.4246657 | Q26: 377.9880555 | R26: 375.804367 | S26: 384.7413977 | T26: 406.6487965 | U26: 435.5761684 | V26: 439.6239075 | W26: 471.2035658 | X26: 455.3459738 | Y26: 418.5410087 | Z26: 411.9688341 | AA26: 420.5823609 | AB26: 413.8372711 | AC26: 407.5048878 | AD26: 406.6589661 | AE26: 434.7991114 | AF26: 449.1481144 | AG26: 447.6477283 | AH26: 479.6318531 | AI26: 486.625598 | AJ26: 463.7837955 | AK26: 415.9845019 | AL26: 415.2410681 | AM26: 414.7479137 | AN26: 413.8735532 | AO26: 438.8572172 | AP26: 466.0101336 | AQ26: 490.0535769 | AR26: 479.1426687 | AS26: 479.9822807 | AT26: 505.2116424 | AU26: 505.4217963 | AV26: 477.8008175 | AW26: 444.1571603 | AX26: 458.7668968 | AY26: 454.8194291 | AZ26: 443.3156064 | BA26: 461.1664844 | BB26: 483.1505912 | BC26: =+(BC9*$C$9+BC11*$C$11+BC13*$C$13+BC14*$C$14+BC15*$C$15+BC17*$C$17+BC18*$C$18+BC19*$C$19+BC21*$C$21+BC24*$C$24)/$C$26 -> 484.6126412 | BD26: 486.1194475 | BE26: 518.5343077 | BF26: 570.8141195 | BG26: 592.0382552 | BH26: 524.7864469 | BI26: 492.2267973 | BJ26: 483.5440845 | BK26: 477.3807655 | BL26: 484.4621734 | BM26: 510.0090915 | BN26: 545.4798206
AE27: =+(AE25/S25)-1 -> 0.1232922108 | AF27: 0.1035965399 | AG27: 0.02966051285 | AH27: 0.08600366057 | AI27: 0.0160895649 | AJ27: 0.01418191633 | AK27: -0.003720836455 | AL27: 0.007736393239 | AM27: -0.00872199676 | AN27: -0.001858392798 | AO27: 0.06511649836 | AP27: 0.124160115 | AQ27: 0.1161644825 | AR27: 0.05637801496 | AS27: 0.06343006765 | AT27: 0.04924039013 | AU27: 0.04198863004 | AV27: 0.03483490137 | AW27: 0.07091241798 | AX27: 0.1037936608 | AY27: 0.09302461406 | AZ27: 0.06664632106 | BA27: 0.05463164756 | BB27: 0.04370783387 | BC27: 0.03144667114 | BD27: 0.06889459453 | BE27: 0.1305646772 | BF27: 0.1806322157 | BG27: 0.2206004862 | BH27: 0.1412264486 | BI27: 0.1468893504 | BJ27: 0.09168153424 | BK27: 0.0853460077 | BL27: 0.1366980707 | BM27: 0.1499583349 | BN27: 0.1723042269 | BO27: 0.1212395624 | BP27: 0.0934855373 | BQ27: 0.05381975203 | BR27: -0.01890571916 | BS27: -0.09178322614 | BT27: -0.009126512182 | BU27: 0.05609366332 | BV27: 0.08553516108 | BW27: 0.07267362377 | BX27: 0.01740462477 | BY27: -0.05362646746 | BZ27: -0.1219860033 | CA27: -0.1628119265 | CB27: -0.1567062008 | CC27: -0.07305681173 | CD27: -0.03158257101 | CE27: 0.04685772812 | CF27: 0.06802458472 | CG27: 0.03201719316
A29: LIGHT LAMBS | CI29: LIGHT LAMBS
G30: Month beginning
G31: 2007-01-01 | H31: 2007-02-01 | I31: 2007-03-01 | J31: 2007-04-01 | K31: 2007-05-01 | L31: 2007-06-01 | M31: 2007-07-01 | N31: 2007-08-01 | O31: 2007-09-01 | P31: 2007-10-01 | Q31: 2007-11-01 | R31: 2007-12-01 | S31: 2008-01-01 | T31: 2008-02-01 | U31: 2008-03-01 | V31: 2008-04-01 | W31: 2008-05-01 | X31: 2008-06-01 | Y31: 2008-07-01 | Z31: 2008-08-01 | AA31: 2008-09-01 | AB31: 2008-10-01 | AC31: 2008-11-01 | AD31: 2008-12-01 | AE31: 2009-01-01 | AF31: 2009-02-01 | AG31: 2009-03-01 | AH31: 2009-04-01 | AI31: 2009-05-01 | AJ31: 2009-06-01 | AK31: 2009-07-01 | AL31: 2009-08-01 | AM31: 2009-09-01 | AN31: 2009-10-01 | AO31: 2009-11-01 | AP31: 2009-12-01 | AQ31: 2010-01-01 | AR31: 2010-02-01 | AS31: 2010-03-01 | AT31: 2010-04-01 | AU31: 2010-05-01 | AV31: 2010-06-01 | AW31: 2010-07-01 | AX31: 2010-08-01 | AY31: 2010-09-01 | AZ31: 2010-10-01 | BA31: 2010-11-01 | BB31: 2010-12-01 | BC31: 2011-01-01 | BD31: 2011-02-01 | BE31: 2011-03-01 | BF31: 2011-04-01 | BG31: 2011-05-01 | BH31: 2011-06-01 | BI31: 2011-07-01 | BJ31: 2011-08-01 | BK31: 2011-09-01 | BL31: 2011-10-01 | BM31: 2011-11-01 | BN31: 2011-12-01 | BO31: 2012-01-01 | BP31: 2012-02-01 | BQ31: 2012-03-01 | BR31: 2012-04-01 | BS31: 2012-05-01 | BT31: 2012-06-01 | BU31: 2012-07-01 | BV31: 2012-08-01 | BW31: 2012-09-01 | BX31: 2012-10-01 | BY31: 2012-11-01 | BZ31: 2012-12-01 | CA31: 2013-01-01 | CB31: 2013-02-01 | CC31: 2013-03-01 | CD31: 2013-04-01 | CE31: 2013-05-01 | CF31: 2013-06-01 | CG31: 2013-07-01
B32: Weights (%) | C32: Weights (%) | D32: Weights (%) | E32: Weights (%) | F32: Weights (%) | CJ32: Weights (%)
A33: BG | C33: 4.77 | D33: 4.77 | E33: 5.86 | F33: 3.71 | BB33: 540.1677 | BC33: 551.4643 | BD33: 570.519 | BE33: 562.7391 | BF33: 548.9469 | BG33: 532.2419 | BH33: 532.3245 | BI33: 532.3669 | BJ33: 532.3145 | BK33: 530.9456 | BL33: 527.1908 | BM33: 527.4205 | BN33: 527.741 | BO33: 528.2496 | BP33: 529.3126 | BQ33: 559.3327 | BR33: 563.6909 | BS33: 563.6982 | BT33: 563.1881 | BU33: 563.0616 | BV33: 563.1241 | BW33: 564.7969 | BX33: 565.7248 | BY33: 566.0411 | BZ33: 566.3492 | CA33: 564.754 | CB33: 561.459 | CC33: 558.7462 | CD33: 551.1041 | CE33: 550.6457 | CF33: 553.5842 | CG33: 567.9658 | CI33: BG | CJ33: 5.86
A34: GR | B34: 23.21 | C34: 31.88 | D34: 31.88 | E34: 33.75 | F34: 34.68 | G34: 472.9135 | H34: 477.1044 | I34: 504.6553 | J34: 518.9055 | K34: 476.8928 | L34: 485.1785 | M34: 552.7267 | N34: 616.9952 | O34: 602.6891 | P34: 540.4585 | Q34: 505.5492 | R34: 498.3939 | S34: 479.4471 | T34: 444.6206 | U34: 443.3401 | V34: 492.7974 | W34: 504.045 | X34: 493.687 | Y34: 533.9284 | Z34: 580.9912 | AA34: 587.6845 | AB34: 572.5315 | AC34: 526.1217 | AD34: 518.2986 | AE34: 505.3758 | AF34: 475.0811 | AG34: 466.6319 | AH34: 523.2925 | AI34: 525.7221 | AJ34: 531.0465 | AK34: 563.1565 | AL34: 610.6456 | AM34: 625.1027 | AN34: 598.0492 | AO34: 528.7467 | AP34: 534.6255 | AQ34: 512.9507 | AR34: 516.4775 | AS34: 539.2175 | AT34: 563.4182 | AU34: 506.4743 | AV34: 515.1184 | AW34: 552.8303 | AX34: 607.4983 | AY34: 603.8783 | AZ34: 574.38 | BA34: 517.3339 | BB34: 517.2072 | BC34: 486.184 | BD34: 477.6874 | BE34: 481.7096 | BF34: 581.7778 | BG34: 560.2007 | BH34: 555.6985 | BI34: 589.8046 | BJ34: 613.7194 | BK34: 638.8475 | BL34: 596.7403 | BM34: 533.8963 | BN34: 538.4279 | BO34: 485.5754 | BP34: 485.127 | BQ34: 493.7187 | BR34: 535.1834 | BS34: 508.3661 | BT34: 505.3839 | BU34: 539.4259 | BV34: 552.6306 | BW34: 562.7643 | BX34: 529.8263 | BY34: 535.9375 | BZ34: 526.9294 | CA34: 497.3015 | CB34: 455.1451 | CC34: 443.1393 | CD34: 483.5789 | CE34: 502.0379 | CF34: 478.9408 | CG34: 509.8518 | CI34: GR | CJ34: 33.75
A35: ES | B35: 52.3 | C35: 35.6 | D35: 35.6 | E35: 39.55 | F35: 39.03 | G35: 526.9935 | H35: 573.8568 | I35: 597.5668 | J35: 579.22 | K35: 503.7997 | L35: 496.37 | M35: 539.1377 | N35: 567.2213 | O35: 613.6953 | P35: 713.0523 | Q35: 797.3803 | R35: 767.5616 | S35: 693.8923 | T35: 608.9752 | U35: 606.1439 | V35: 543.6693 | W35: 503.8784 | X35: 524.509 | Y35: 594.9239 | Z35: 624.2126 | AA35: 690.4513 | AB35: 766.1248 | AC35: 884.857 | AD35: 852.2239 | AE35: 814.7823 | AF35: 685.42 | AG35: 595.2945 | AH35: 569.0203 | AI35: 572.3316 | AJ35: 579.264 | AK35: 657.4777 | AL35: 693.0055 | AM35: 772.313 | AN35: 822.6277 | AO35: 835.004 | AP35: 836.9658 | AQ35: 740.7397 | AR35: 629.805 | AS35: 618.62 | AT35: 611.3747 | AU35: 571.5913 | AV35: 562.616 | AW35: 604.2613 | AX35: 642.5152 | AY35: 684.6317 | AZ35: 695.2742 | BA35: 690.9783 | BB35: 695.2545 | BC35: 658.4332 | BD35: 632.0157 | BE35: 652.7868 | BF35: 638.263 | BG35: 627.1358 | BH35: 633.9913 | BI35: 648.0377 | BJ35: 679.1223 | BK35: 720.7063 | BL35: 775.0697 | BM35: 806.681 | BN35: 814.0677 | BO35: 743.7997 | BP35: 699.401 | BQ35: 687.23 | BR35: 683.205 | BS35: 636.8861 | BT35: 602.7983 | BU35: 654.1177 | BV35: 718.9161 | BW35: 782.584 | BX35: 784.5484 | BY35: 792.0225 | BZ35: 747.0029 | CA35: 706.769 | CB35: 615.1564 | CC35: 606.6919 | CD35: 612.091 | CE35: 639.2481 | CF35: 706.787 | CG35: 750.839 | CI35: ES | CJ35: 39.55
A36: HR | F36: 1.39 | CG36: 595.8093516
A37: IT | B37: 19.37 | C37: 18.66 | D37: 18.66 | E37: 12.51 | F37: 12.51 | G37: 659.5823 | H37: 572.4107 | I37: 613.0661 | J37: 647.0103 | K37: 646.9194 | L37: 665.4 | M37: 662.5329 | N37: 658.86 | O37: 579.8137 | P37: 715.3335 | Q37: 719.0513 | R37: 724.9848 | S37: 703.1271 | T37: 589.2624 | U37: 691.6352 | V37: 561.8217 | W37: 554.7803 | X37: 613.127 | Y37: 612.6242 | Z37: 622.92 | AA37: 666.705 | AB37: 665.3561 | AC37: 663.1347 | AD37: 598.7965 | AE37: 530.7868 | AF37: 552.1689 | AG37: 568.1665 | AH37: 603.0687 | AI37: 567.9977 | AJ37: 604.0193 | AK37: 634.861 | AL37: 644.8997 | AM37: 694.205 | AN37: 666.4987 | AO37: 625.4653 | AP37: 658.0071 | AQ37: 557.6326 | AR37: 475.6 | AS37: 520.7506 | AT37: 507.4987 | AU37: 492.8406 | AV37: 517.0833 | AW37: 512.8523 | AX37: 518.0932 | AY37: 541.6903 | AZ37: 549.82 | BA37: 563.3173 | BB37: 545.5803 | BC37: 469.5571 | BD37: 454.2782 | BE37: 465.2545 | BF37: 542.0177 | BG37: 508.0335 | BH37: 510.2693 | BI37: 511.8816 | BJ37: 513.6487 | BK37: 515.3647 | BL37: 518.19 | BM37: 575.9877 | BN37: 598.2855 | BO37: 602.0855 | BP37: 604.5034 | BQ37: 605.4968 | BR37: 607.1637 | BS37: 605.0955 | BT37: 603.6697 | BU37: 603.6561 | BV37: 604.1 | BW37: 604.5293 | BX37: 605.5594 | BY37: 608.08 | BZ37: 610.8042 | CA37: 611.9713 | CB37: 611.7393 | CC37: 645.1632 | CD37: 588.306 | CE37: 577.489 | CF37: 575.4507 | CG37: 589.5058 | CI37: IT | CJ37: 12.51
A38: CY | B38: 0.93 | C38: 0.92 | D38: 0.92 | G38: 626.0761 | H38: 613.8454 | I38: 591.5551 | J38: 576.5698 | K38: 491.7683 | L38: 443.8778 | M38: 408.5107 | N38: 434.8378 | O38: 490.2431 | P38: 481.3309 | Q38: 452.5276 | R38: 593.5452 | S38: 536.3548 | T38: 459.4483 | U38: 480.9032 | V38: 523.9667 | W38: 461.5161 | X38: 419.9667 | Y38: 428.3548 | Z38: 467.6774 | AA38: 543.1 | AB38: 627.4516 | AC38: 720.9333 | AD38: 802.4516 | AE38: 938.7097 | AF38: 906.0714 | AG38: 735.3548 | AH38: 641.6667 | AI38: 641.5806 | AJ38: 698.4333 | AK38: 727.5161 | AL38: 724.129 | AM38: 746.7333 | AN38: 780.3871 | AO38: 842.8 | AP38: 868.5484 | AQ38: 819.0645 | AR38: 751.25 | AS38: 745.129 | AT38: 740.3 | AU38: 709.7097 | AV38: 636.8667 | AW38: 564.8387 | AX38: 609.5161 | AY38: 627.4 | AZ38: 630.5484 | BA38: 652.2333 | BB38: 693.871 | BC38: 670.129 | BD38: 584.8929 | BE38: 548.5161 | BF38: 533.5667 | BG38: 529.3871 | BH38: 504.4667 | BI38: 493.9032 | BJ38: 476 | BK38: 484.5 | BL38: 539.5161 | BM38: 613.1 | BN38: 647.7742 | BO38: 560.129 | BP38: 458.0345 | BQ38: 444.3871 | BR38: 494.0667 | BS38: 562.6774 | BT38: 547.1667 | BU38: 475.4194 | BV38: 467.0323 | BW38: 469.2 | BX38: 493.9355 | BY38: 548.25 | BZ38: 536 | CI38: CY
A39: HU | B39: 0.26 | C39: 0.29 | D39: 0.29 | E39: 0.38 | F39: 0.44 | G39: 523.6847 | H39: 509.1614 | I39: 552.0387 | J39: 570.337 | K39: 435.056 | L39: 413.0687 | M39: 463.7585 | N39: 491.2064 | O39: 524.2725 | P39: 530.8139 | Q39: 601.0159 | R39: 645.9966 | S39: 594.9603 | T39: 532.4332 | U39: 574.5511 | V39: 438.1347 | W39: 407.9994 | X39: 416.2607 | Y39: 460.0531 | Z39: 516.9914 | AA39: 542.9797 | AB39: 526.5532 | AC39: 586.9829 | AD39: 648.9143 | AE39: 600.4873 | AF39: 547.5067 | AG39: 464.2273 | AH39: 470.2764 | AI39: 471.4508 | AJ39: 442.715 | AK39: 504.7009 | AL39: 545.9815 | AM39: 556.9227 | AN39: 571.925 | AO39: 619.1843 | AP39: 676.2258 | AQ39: 621.6939 | AR39: 544.552 | AS39: 524.6568 | AT39: 530.6087 | AU39: 491.9216 | AV39: 471.3841 | AW39: 503.7087 | AX39: 564.9425 | AY39: 577.8967 | AZ39: 584.6939 | BA39: 618.0858 | BB39: 662.3237 | BC39: 593.6031 | BD39: 575.7908 | BE39: 592.5436 | BF39: 624.3654 | BG39: 633.8143 | BH39: 626.429 | BI39: 598.4991 | BJ39: 625.5169 | BK39: 632.6875 | BL39: 656.7297 | BM39: 690.983 | BN39: 742.6897 | BO39: 650.6909 | BP39: 594.6846 | BQ39: 600.0785 | BR39: 607.9873 | BS39: 588.8354 | BT39: 575.3595 | BU39: 603.2949 | BV39: 646.8983 | BW39: 651.8417 | BX39: 675.1133 | BY39: 695.8384 | BZ39: 693.8758 | CA39: 592.2432 | CB39: 527.398 | CC39: 566.8531 | CD39: 566.6371 | CE39: 521.3484 | CF39: 531.2473 | CG39: 576.954 | CI39: HU | CJ39: 0.38
A40: PT | B40: 3.64 | C40: 6.88 | D40: 6.88 | E40: 7 | F40: 7.22 | G40: 435.5161 | H40: 408 | I40: 394.7742 | J40: 383.4 | K40: 362.3226 | L40: 352 | M40: 348 | N40: 348 | O40: 358.7333 | P40: 377.7419 | Q40: 378.4 | R40: 457.2258 | S40: 428.0968 | T40: 396 | U40: 414.7742 | V40: 401.42 | W40: 362.7032 | X40: 347.6 | Y40: 336.5484 | Z40: 335.2581 | AA40: 363.4 | AB40: 423.7742 | AC40: 464.0667 | AD40: 488.7419 | AE40: 473.7419 | AF40: 447.7857 | AG40: 423.871 | AH40: 418.1333 | AI40: 410.5806 | AJ40: 380 | AK40: 386.7097 | AL40: 393.3871 | AM40: 432.8 | AN40: 462.3226 | AO40: 488.4333 | AP40: 496 | AQ40: 493.2903 | AR40: 468 | AS40: 441.4839 | AT40: 430.0667 | AU40: 393.129 | AV40: 380 | AW40: 383.3548 | AX40: 388 | AY40: 398.9333 | AZ40: 431.6129 | BA40: 432 | BB40: 445.1613 | BC40: 466.129 | BD40: 466.5714 | BE40: 452.8065 | BF40: 446.8 | BG40: 415.1613 | BH40: 403 | BI40: 404.4452 | BJ40: 405.3161 | BK40: 412 | BL40: 457.2903 | BM40: 478.9 | BN40: 485 | BO40: 478.6129 | BP40: 456 | BQ40: 461.4194 | BR40: 447.0333 | BS40: 421 | BT40: 408.6667 | BU40: 388.9677 | BV40: 397.5484 | BW40: 404.6667 | BX40: 428.3226 | BY40: 468 | BZ40: 486.0323 | CA40: 453.8065 | CB40: 425.7857 | CC40: 420.5484 | CD40: 429.8 | CE40: 401.8387 | CF40: 419.4 | CG40: 414.0968 | CI40: PT | CJ40: 7
A41: SI | B41: 0.26 | C41: 0.59 | D41: 0.59 | E41: 0.59 | F41: 0.62 | G41: 400.9623 | H41: 421.2636 | I41: 418.5277 | J41: 417.8627 | K41: 416.4965 | L41: 411.531 | M41: 426.6668 | N41: 415.9306 | O41: 405.9707 | P41: 402.7239 | Q41: 413.4867 | R41: 412.9548 | S41: 401.0858 | T41: 406.1476 | U41: 426.5387 | V41: 431.2123 | W41: 470.1777 | X41: 424.906 | Y41: 420.4087 | Z41: 414.4526 | AA41: 424.8957 | AB41: 423.4552 | AC41: 404.198 | AD41: 412.2929 | AE41: 414.0742 | AF41: 411.3593 | AG41: 413.031 | AH41: 408.496 | AI41: 418.3116 | AJ41: 415.2313 | AK41: 415.4894 | AL41: 415.8352 | AM41: 424.5943 | AN41: 411.0258 | AO41: 411.045 | AP41: 414.1326 | AQ41: 417.8848 | AR41: 395.81 | AS41: 406.0465 | AT41: 405.5103 | AU41: 407.5435 | AV41: 403.597 | AW41: 408.9068 | AX41: 409.7977 | AY41: 404.9363 | AZ41: 405.4023 | BA41: 410.46 | BB41: 414.6368 | BC41: 415.7984 | BD41: 408.2521 | BE41: 409.6481 | BF41: 407.0477 | BG41: 410.5158 | BH41: 402.2357 | BI41: 405.5584 | BJ41: 397.7526 | BK41: 392.698 | BL41: 403.6516 | BM41: 388.855 | BN41: 402.1406 | BO41: 404.6632 | BP41: 402.787 | BQ41: 411.5977 | BR41: 417.9137 | BS41: 405.5761 | BT41: 404.871 | BU41: 402.4342 | BV41: 414.7826 | BW41: 398.0079 | BX41: 394.7366 | BY41: 389.975 | BZ41: 402.7643 | CA41: 403.3403 | CB41: 410.6721 | CC41: 408.8606 | CD41: 417.629 | CE41: 412.4206 | CF41: 406.1067 | CG41: 419.3371 | CI41: SI | CJ41: 0.59
A42: SK | B42: 0.03 | C42: 0.41 | D42: 0.41 | E42: 0.36 | F42: 0.4 | G42: 416.2269 | H42: 354.5145 | I42: 400.0044 | J42: 466.4052 | K42: 358.7285 | L42: 351.6286 | M42: 340.8962 | N42: 333.8178 | O42: 320.5574 | P42: 247.4341 | Q42: 255.4572 | R42: 508.8902 | S42: 601.4387 | T42: 608.1299 | U42: 569.293 | V42: 467.7184 | W42: 351.7977 | X42: 366.9542 | Y42: 363.1495 | Z42: 360.4821 | AA42: 363.9229 | AB42: 317.7714 | AC42: 326.8503 | AD42: 470.6477 | AE42: 488.8313 | AF42: 365.25 | AG42: 375.849 | AH42: 405.145 | AI42: 342.3019 | AJ42: 325.995 | AK42: 305.6997 | AL42: 373.7365 | AM42: 355.6217 | AN42: 373.4752 | AO42: 310.5583 | AP42: 528.7184 | AQ42: 431.3606 | AR42: 354.1225 | AS42: 387.7765 | AT42: 469.69 | AU42: 377.5206 | AV42: 343.1907 | AW42: 369.2623 | AX42: 373.0132 | AY42: 370.71 | AZ42: 372.5526 | BA42: 357.886 | BB42: 324.79 | BC42: 324.79 | BD42: 324.79 | BE42: 324.79 | BF42: 505.0437 | BG42: 487.5513 | BH42: 460.89 | BI42: 455.8206 | BJ42: 454.1371 | BK42: 438.746 | BL42: 405.8513 | BM42: 388.0967 | BN42: 625.3384 | BO42: 657.4106 | BP42: 482.5662 | BQ42: 525.0997 | BR42: 597.108 | BS42: 494.7939 | BT42: 481.8467 | BU42: 481.8642 | BV42: 476.8697 | BW42: 457.8433 | BX42: 426.2306 | BY42: 423.8533 | BZ42: 605.3113 | CA42: 680.47 | CB42: 570.4193 | CC42: 459.0923 | CD42: 448.9033 | CE42: 430.7245 | CF42: 380.262 | CG42: 395.4294 | CI42: SK | CJ42: 0.36
A43: EU_L | B43: =SUM(B34:B42) -> 100 | C43: =SUM(C33:C42) -> 100 | D43: =SUM(D33:D42) -> 100 | E43: 100 | F43: =SUM(F33:F42) -> 100 | G43: =+(G34*$B$34+G35*$B$35+G37*$B$37+G38*$B$38+G39*$B$39+G40*$B$40+G41*$B$41+G42*$B$42)/100 -> 537.3461594 | H43: =+(H34*$B$34+H35*$B$35+H37*$B$37+H38*$B$38+H39*$B$39+H40*$B$40+H41*$B$41+H42*$B$42)/100 -> 544.8244118 | I43: 570.9235524 | J43: 570.7230216 | K43: 519.5659926 | L43: 520.2897312 | M43: 557.473231 | N43: 586.6524009 | O43: 593.2886482 | P43: 657.6544807 | Q43: 694.3447136 | R43: 682.6104269 | S43: 633.7220387 | T43: 557.140616 | U43: 576.2260372 | V43: 529.4273798 | W43: 507.8614878 | X43: 526.5211096 | Y43: 572.3674958 | Z43: 601.053545 | AA43: 647.5526038 | AB43: 686.2733421 | AC43: 739.614082 | AD43: 710.1504249 | AE43: 675.0009839 | AF43: 603.0245893 | AG43: 554.3594689 | AH43: 559.4621175 | AI43: 554.6985869 | AJ43: 565.8653916 | AK43: 620.8683739 | AL43: 652.7563267 | AM43: 708.8307146 | AN43: 724.8961619 | AO43: 708.9706055 | AP43: 718.4011147 | AQ43: 642.8815348 | AR43: 567.9591657 | AS43: 575.0959082 | AT43: 573.9348648 | AU43: 535.3202204 | AV43: 536.0989522 | AW43: 565.3707567 | AX43: 599.8283861 | AY43: 626.1705146 | AZ43: 627.7029642 | BA43: 615.1415647 | BB43: =+(BB34*$B$34+BB35*$B$35+BB37*$B$37+BB38*$B$38+BB39*$B$39+BB40*$B$40+BB41*$B$41+BB42*$B$42)/100 -> 614.8952046 | BC43: =+(BC33*$C$33+BC34*$C$34+BC35*$C$35+BC37*$C$37+BC38*$C$38+BC39*$C$39+BC40*$C$40+BC41*$C$41+BC42*$C$42)/100 -> 547.0630409 | BD43: =+(BD33*$C$33+BD34*$C$34+BD35*$C$35+BD37*$C$37+BD38*$C$38+BD39*$C$39+BD40*$C$40+BD41*$C$41+BD42*$C$42)/100 -> 532.1576475 | BE43: 541.2866406 | BF43: 581.9492345 | BG43: 561.7318415 | BH43: 561.912692 | BI43: 578.009181 | BJ43: 596.9471817 | BK43: 620.4827545 | BL43: 630.3820477 | BM43: 634.4999708 | BN43: 644.6900755 | BO43: =+(BO33*$D$33+BO34*$D$34+BO35*$D$35+BO37*$D$37+BO38*$D$38+BO39*$D$39+BO40*$D$40+BO41*$D$41+BO42*$D$42)/100 -> 602.1924452 | BP43: 583.3600565 | BQ43: 583.8728531 | BR43: 596.0005517 | BS43: 568.8683974 | BT43: 554.404476 | BU43: 581.5695411 | BV43: 609.6252617 | BW43: =+(BW33*$D$33+BW34*$D$34+BW35*$D$35+BW37*$D$37+BW38*$D$38+BW39*$D$39+BW40*$D$40+BW41*$D$41+BW42*$D$42)/100 -> 636.0285964 | BX43: =+(BX33*$D$33+BX34*$D$34+BX35*$D$35+BX37*$D$37+BX38*$D$38+BX39*$D$39+BX40*$D$40+BX41*$D$41+BX42*$D$42)/100 -> 628.2374333 | BY43: =+(BY33*$D$33+BY34*$D$34+BY35*$D$35+BY37*$D$37+BY38*$D$38+BY39*$D$39+BY40*$D$40+BY41*$D$41+BY42*$D$42)/100 -> 636.5836559 | BZ43: =+(BZ33*$D$33+BZ34*$D$34+BZ35*$D$35+BZ37*$D$37+BZ38*$D$38+BZ39*$D$39+BZ40*$D$40+BZ41*$D$41+BZ42*$D$42)/100 -> 620.1495934 | CA43: =+(CA33*$E$33+CA34*$E$34+CA35*$E$35+CA37*$E$37+CA39*$E$39+CA40*$E$40+CA41*$E$41+CA42*$E$42)/100 -> 595.8649687 | CB43: =+(CB33*$E$33+CB34*$E$34+CB35*$E$35+CB37*$E$37+CB39*$E$39+CB40*$E$40+CB41*$E$41+CB42*$E$42)/100 -> 542.6214976 | CC43: 538.6160434 | CD43: 547.5009341 | CE43: 560.8658494 | CF43: 580.7474077 | CG43: =+(CG33*$F$33+CG34*$F$34+CG35*$F$35+CG36*$F$36+CG37*$F$37+CG39*$F$39+CG40*$F$40+CG41*$F$41+CG42*$F$42)/100 -> 609.5875169 | CI43: EU_L | CJ43: 100
AE44: =(+AE43/S43)-1 -> 0.06513730416 | AF44: 0.08235618091 | AG44: -0.03794790048 | AH44: 0.05673060914 | AI44: 0.09222416006 | AJ44: 0.07472498505 | AK44: 0.08473730338 | AL44: 0.08602025906 | AM44: 0.09463032108 | AN44: 0.05627906172 | AO44: -0.04143171045 | AP44: 0.01161822838 | AQ44: -0.04758429974 | AR44: -0.05814924343 | AS44: 0.03740612448 | AT44: 0.0258690389 | AU44: -0.03493494843 | AV44: -0.05260339268 | AW44: -0.08938709011 | AX44: -0.08108376498 | AY44: -0.1166148677 | AZ44: -0.1340787865 | BA44: -0.1323454598 | BB44: -0.144078159 | BC44: -0.1490453352 | BD44: -0.06303537369 | BE44: -0.05878892039 | BF44: 0.01396390112 | BG44: 0.04933798512 | BH44: 0.04815107297 | BI44: 0.02235422362 | BJ44: -0.004803381128 | BK44: -0.0090834045 | BL44: 0.004268075241 | BM44: =(+BM43/BA43)-1 -> 0.03146983917 | BN44: 0.04845520114 | BO44: 0.100773403 | BP44: 0.09621661798 | BQ44: 0.07867589799 | BR44: 0.0241452629 | BS44: 0.01270456015 | BT44: -0.01336189069 | BU44: 0.006159694841 | BV44: 0.02123819388 | BW44: 0.02505443024 | BX44: -0.003402086684 | BY44: 0.003283979789 | BZ44: -0.03806554958 | CA44: -0.01050739934 | CB44: -0.06983433047 | CC44: -0.0775114127 | CD44: -0.08137512212 | CE44: -0.01406748572 | CF44: 0.04751572682 | CG44: 0.04817648404
A45: DG-AGRI, Sheep sector | CI45: DG-AGRI, Sheep sector
A48: EU Heavy lambs | G48: =+G25 -> 387.6842352 | H48: =+H25 -> 398.2418065 | I48: =+I25 -> 410.8874216 | J48: =+J25 -> 412.850838 | K48: =+K25 -> 403.6307546 | L48: =+L25 -> 402.21615 | M48: 397.2779562 | N48: 403.8230263 | O48: 396.0122618 | P48: 386.4246657 | Q48: 377.9880555 | R48: 350.1596227 | S48: 357.1604697 | T48: 376.1034641 | U48: 401.7440629 | V48: 406.0453684 | W48: 438.0153767 | X48: 420.6877189 | Y48: 387.5553864 | Z48: 383.3546006 | AA48: 389.9163819 | AB48: 384.2181755 | AC48: 378.294321 | AD48: 379.3860547 | AE48: 401.1955736 | AF48: 415.0664816 | AG48: 413.6599979 | AH48: 440.9667564 | AI48: 445.0628535 | AJ48: 426.6538769 | AK48: 386.1133562 | AL48: 386.3203825 | AM48: 386.5155325 | AN48: 383.5041472 | AO48: 402.9275225 | AP48: 426.4906709 | AQ48: 447.8002498 | AR48: 438.4671059 | AS48: 439.8984795 | AT48: 462.6801316 | AU48: 463.750433 | AV48: 441.5163226 | AW48: 413.4935879 | AX48: 426.4179892 | AY48: 422.4709907 | AZ48: 409.0632877 | BA48: 424.9401169 | BB48: 445.1316543 | BC48: 461.882077 | BD48: 468.6751194 | BE48: 497.3336825 | BF48: 546.2550689 | BG48: 566.0540041 | BH48: 503.8701048 | BI48: 474.2313924 | BJ48: 465.5126447 | BK48: 458.5272032 | BL48: 464.9814499 | BM48: 488.6634293 | BN48: 521.8297198 | BO48: 517.8804578 | BP48: 512.4894648 | BQ48: 524.100058 | BR48: 535.927724 | BS48: 514.0997414 | BT48: 499.2715282 | BU48: 500.8327685 | BV48: 505.3303438 | BW48: 491.8500366 | BX48: =+BX25 -> 473.0742776 | BY48: 462.4581358 | BZ48: 458.1737979 | CA48: 433.5633428 | CB48: 432.1791878 | CC48: 485.8109787 | CD48: 519.0017486 | CE48: 538.1892873 | CF48: 533.2342666 | CG48: =+CG25 -> 516.8680279
A49: maximum | G49: =MAX(G9:G24) -> 548.7097 | H49: 529.8214 | I49: 542.0968 | J49: 553.9 | K49: 526.0323 | L49: 481.4667 | M49: 484.2581 | N49: 544.3871 | O49: 568.8 | P49: 568.5161 | Q49: 577.387 | R49: 567.3548 | S49: 562.0645 | T49: 538.5862 | U49: 562.5161 | V49: 558.5 | W49: 552.4516 | X49: 544.5333 | Y49: 562.9677 | Z49: 568.0968 | AA49: 569.4 | AB49: 604.4187 | AC49: 655.3707 | AD49: 618.1119 | AE49: 610.5161 | AF49: 590 | AG49: 586.6774 | AH49: 601.0333 | AI49: 587.6452 | AJ49: 575.2667 | AK49: 562.7097 | AL49: 553 | AM49: 558.8667 | AN49: 594.9603 | AO49: 594.535 | AP49: 608.5161 | AQ49: 612.2258 | AR49: 584.5 | AS49: 592.9355 | AT49: 598.2 | AU49: 570.4839 | AV49: 550.3 | AW49: 547.8387 | AX49: 556.4839 | AY49: 570.1333 | AZ49: 580.2258 | BA49: 603.5 | BB49: 610.5161 | BC49: 597.5484 | BD49: 581.4643 | BE49: 595.9355 | BF49: 623.5 | BG49: 627.129 | BH49: 607.4333 | BI49: 592.2581 | BJ49: 588.7742 | BK49: 604.2 | BL49: 625.6129 | BM49: 635.2 | BN49: 645.2581 | BO49: 639.129 | BP49: 633.2414 | BQ49: 625.0645 | BR49: 629.6 | BS49: =MAX(BS9:BS24) -> 611.2258 | BT49: 581.8 | BU49: 581.0323 | BV49: 598.9032 | BW49: 620.3667 | BX49: 632.3226 | BY49: 638.1667 | BZ49: 630 | CA49: 602.1613 | CB49: 556.9643 | CC49: 578.1613 | CD49: 620.4333 | CE49: 619.6774 | CF49: 611.5 | CG49: =MAX(CG9:CG24) -> 636.0645
A50: minimum | G50: =MIN(G9:G24) -> 312.2483 | H50: 303.156 | I50: 327.2619 | J50: 339.3636 | K50: 311.6494 | L50: 302.4268 | M50: 293.9166 | N50: 292.9336 | O50: 315.1732 | P50: 299.8959 | Q50: 279.7108 | R50: 180.7873 | S50: 175.0005 | T50: 174.3649 | U50: 178.2978 | V50: 184.2738 | W50: 218.8219 | X50: 191.7851 | Y50: 182.9089 | Z50: 194.3701 | AA50: 187.381 | AB50: 188.597 | AC50: 185.3713 | AD50: 199.2604 | AE50: 179.2589 | AF50: 189.9722 | AG50: 189.1859 | AH50: 185.6007 | AI50: 170.5591 | AJ50: 181.427 | AK50: 188.8275 | AL50: 195.3119 | AM50: 200.053 | AN50: 182.9275 | AO50: 165.6276 | AP50: 165.4819 | AQ50: 168.7355 | AR50: 169.8228 | AS50: 175.1625 | AT50: 181.7781 | AU50: 188.5293 | AV50: 201.8731 | AW50: 210.9741 | AX50: 212.7676 | AY50: 208.8237 | AZ50: 182.8417 | BA50: 185.6808 | BB50: 194.0332 | BC50: 182.3445 | BD50: 254.147 | BE50: 236.6111 | BF50: 244.231 | BG50: 246.503 | BH50: 246.6436 | BI50: 252.9262 | BJ50: 243.7643 | BK50: 226.6685 | BL50: 225.41 | BM50: 226.1572 | BN50: 228.48 | BO50: 236.7195 | BP50: 234.0124 | BQ50: 238.7232 | BR50: 221.3322 | BS50: =MIN(BS9:BS24) -> 233.9784 | BT50: 241.1175 | BU50: 239.0446 | BV50: 233.456 | BW50: 219.2523 | BX50: 218.2565 | BY50: 224.5183 | BZ50: 235.5756 | CA50: 239.7213 | CB50: 225.4239 | CC50: 241.1212 | CD50: 247.8165 | CE50: 246.9585 | CF50: 228.8787 | CG50: =MIN(CG9:CG24) -> 229.6711
A51: difference 25-27 | R51: =+R26-R25 -> 25.64474431 | S51: =+S26-S25 -> 27.58092805 | T51: =+T26-T25 -> 30.54533239 | U51: =+U26-U25 -> 33.83210544 | V51: =+V26-V25 -> 33.57853914 | W51: =+W26-W25 -> 33.18818905 | X51: 34.6582549 | Y51: 30.98562229 | Z51: 28.61423353 | AA51: 30.66597896 | AB51: 29.61909565 | AC51: 29.21056679 | AD51: 27.27291145 | AE51: 33.6035378 | AF51: 34.08163274 | AG51: 33.98773042 | AH51: 38.66509663 | AI51: 41.56274449 | AJ51: 37.12991861 | AK51: 29.87114575 | AL51: 28.92068561 | AM51: 28.23238115 | AN51: 30.36940599 | AO51: 35.92969466 | AP51: 39.51946272 | AQ51: 42.25332711 | AR51: 40.67556273 | AS51: 40.08380116 | AT51: 42.53151082 | AU51: 41.67136326 | AV51: 36.28449485 | AW51: 30.66357243 | AX51: 32.34890752 | AY51: 32.34843838 | AZ51: 34.25231869 | BA51: 36.2263675 | BB51: 38.01893694 | BC51: 22.73056422 | BD51: 17.44432805 | BE51: 21.20062522 | BF51: 24.55905059 | BG51: 25.98425119 | BH51: 20.91634209 | BI51: 17.99540492 | BJ51: 18.0314398 | BK51: 18.85356237 | BL51: 19.48072344 | BM51: 21.34566224 | BN51: 23.65010075 | BO51: -517.8804578 | BP51: -512.4894648 | BQ51: -524.100058 | BR51: -535.927724 | BS51: -514.0997414 | BT51: -499.2715282 | BU51: -500.8327685 | BV51: -505.3303438 | BW51: -491.8500366 | BX51: -473.0742776 | BY51: -462.4581358 | BZ51: -458.1737979 | CA51: -433.5633428 | CB51: -432.1791878 | CC51: -485.8109787 | CD51: -519.0017486 | CE51: -538.1892873 | CF51: -533.2342666 | CG51: =+CG26-CG25 -> -516.8680279
A54: EU Light lambs | G54: =+G43 -> 537.3461594 | H54: =+H43 -> 544.8244118 | I54: =+I43 -> 570.9235524 | J54: =+J43 -> 570.7230216 | K54: =+K43 -> 519.5659926 | L54: =+L43 -> 520.2897312 | M54: 557.473231 | N54: 586.6524009 | O54: 593.2886482 | P54: 657.6544807 | Q54: 694.3447136 | R54: 682.6104269 | S54: 633.7220387 | T54: 557.140616 | U54: 576.2260372 | V54: 529.4273798 | W54: 507.8614878 | X54: 526.5211096 | Y54: 572.3674958 | Z54: 601.053545 | AA54: 647.5526038 | AB54: 686.2733421 | AC54: 739.614082 | AD54: 710.1504249 | AE54: 675.0009839 | AF54: 603.0245893 | AG54: 554.3594689 | AH54: 559.4621175 | AI54: 554.6985869 | AJ54: 565.8653916 | AK54: 620.8683739 | AL54: 652.7563267 | AM54: 708.8307146 | AN54: 724.8961619 | AO54: 708.9706055 | AP54: 718.4011147 | AQ54: 642.8815348 | AR54: 567.9591657 | AS54: 575.0959082 | AT54: 573.9348648 | AU54: 535.3202204 | AV54: 536.0989522 | AW54: 565.3707567 | AX54: 599.8283861 | AY54: 626.1705146 | AZ54: 627.7029642 | BA54: 615.1415647 | BB54: 614.8952046 | BC54: 547.0630409 | BD54: 532.1576475 | BE54: 541.2866406 | BF54: 581.9492345 | BG54: 561.7318415 | BH54: 561.912692 | BI54: 578.009181 | BJ54: 596.9471817 | BK54: 620.4827545 | BL54: 630.3820477 | BM54: 634.4999708 | BN54: 644.6900755 | BO54: 602.1924452 | BP54: 583.3600565 | BQ54: 583.8728531 | BR54: 596.0005517 | BS54: 568.8683974 | BT54: 554.404476 | BU54: 581.5695411 | BV54: 609.6252617 | BW54: 636.0285964 | BX54: =+BX43 -> 628.2374333 | BY54: 636.5836559 | BZ54: 620.1495934 | CA54: 595.8649687 | CB54: 542.6214976 | CC54: 538.6160434 | CD54: 547.5009341 | CE54: 560.8658494 | CF54: 580.7474077 | CG54: =+CG43 -> 609.5875169
A55: maximum | G55: =MAX(G34:G42) -> 659.5823 | H55: =MAX(H34:H42) -> 613.8454 | I55: =MAX(I34:I42) -> 613.0661 | J55: =MAX(J34:J42) -> 647.0103 | K55: =MAX(K34:K42) -> 646.9194 | L55: =MAX(L34:L42) -> 665.4 | M55: 662.5329 | N55: 658.86 | O55: 613.6953 | P55: 715.3335 | Q55: 797.3803 | R55: 767.5616 | S55: 703.1271 | T55: 608.9752 | U55: 691.6352 | V55: 561.8217 | W55: 554.7803 | X55: 613.127 | Y55: 612.6242 | Z55: 624.2126 | AA55: 690.4513 | AB55: 766.1248 | AC55: 884.857 | AD55: 852.2239 | AE55: 938.7097 | AF55: 906.0714 | AG55: 735.3548 | AH55: 641.6667 | AI55: 641.5806 | AJ55: 698.4333 | AK55: 727.5161 | AL55: 724.129 | AM55: 772.313 | AN55: 822.6277 | AO55: 842.8 | AP55: 868.5484 | AQ55: 819.0645 | AR55: 751.25 | AS55: 745.129 | AT55: 740.3 | AU55: 709.7097 | AV55: 636.8667 | AW55: 604.2613 | AX55: 642.5152 | AY55: 684.6317 | AZ55: 695.2742 | BA55: 690.9783 | BB55: 695.2545 | BC55: 670.129 | BD55: 632.0157 | BE55: 652.7868 | BF55: 638.263 | BG55: 633.8143 | BH55: 633.9913 | BI55: 648.0377 | BJ55: 679.1223 | BK55: 720.7063 | BL55: 775.0697 | BM55: 806.681 | BN55: 814.0677 | BO55: 743.7997 | BP55: 699.401 | BQ55: 687.23 | BR55: 683.205 | BS55: 636.8861 | BT55: 603.6697 | BU55: 654.1177 | BV55: 718.9161 | BW55: 782.584 | BX55: =MAX(BX34:BX42) -> 784.5484 | BY55: 792.0225 | BZ55: 747.0029 | CA55: 706.769 | CB55: 615.1564 | CC55: 645.1632 | CD55: 612.091 | CE55: 639.2481 | CF55: 706.787 | CG55: =MAX(CG34:CG42) -> 750.839
A56: minimum | G56: =MIN(G34:G42) -> 400.9623 | H56: =MIN(H34:H42) -> 354.5145 | I56: =MIN(I34:I42) -> 394.7742 | J56: =MIN(J34:J42) -> 383.4 | K56: =MIN(K34:K42) -> 358.7285 | L56: =MIN(L34:L42) -> 351.6286 | M56: 340.8962 | N56: 333.8178 | O56: 320.5574 | P56: 247.4341 | Q56: 255.4572 | R56: 412.9548 | S56: 401.0858 | T56: 396 | U56: 414.7742 | V56: 401.42 | W56: 351.7977 | X56: 347.6 | Y56: 336.5484 | Z56: 335.2581 | AA56: 363.4 | AB56: 317.7714 | AC56: 326.8503 | AD56: 412.2929 | AE56: 414.0742 | AF56: 365.25 | AG56: 375.849 | AH56: 405.145 | AI56: 342.3019 | AJ56: 325.995 | AK56: 305.6997 | AL56: 373.7365 | AM56: 355.6217 | AN56: 373.4752 | AO56: 310.5583 | AP56: 414.1326 | AQ56: 417.8848 | AR56: 354.1225 | AS56: 387.7765 | AT56: 405.5103 | AU56: 377.5206 | AV56: 343.1907 | AW56: 369.2623 | AX56: 373.0132 | AY56: 370.71 | AZ56: 372.5526 | BA56: 357.886 | BB56: 324.79 | BC56: 324.79 | BD56: 324.79 | BE56: 324.79 | BF56: 407.0477 | BG56: 410.5158 | BH56: 402.2357 | BI56: 404.4452 | BJ56: 397.7526 | BK56: 392.698 | BL56: 403.6516 | BM56: 388.0967 | BN56: 402.1406 | BO56: 404.6632 | BP56: 402.787 | BQ56: 411.5977 | BR56: 417.9137 | BS56: 405.5761 | BT56: 404.871 | BU56: 388.9677 | BV56: 397.5484 | BW56: 398.0079 | BX56: =MIN(BX34:BX42) -> 394.7366 | BY56: 389.975 | BZ56: 402.7643 | CA56: 403.3403 | CB56: 410.6721 | CC56: 408.8606 | CD56: 417.629 | CE56: 401.8387 | CF56: 380.262 | CG56: =MIN(CG34:CG42) -> 395.4294
BJ58: 7 | BK58: 8 | BL58: 9 | BM58: 10 | BN58: 11 | BO58: 12
BH59: BE | BJ59: =AVERAGE(G9:R9) -> 424.9672917 | BK59: =AVERAGE(S9:AD9) -> 460.8261083 | BL59: =AVERAGE(AE9:AP9) -> 467.1888167 | BM59: =AVERAGE(AQ9:BB9) -> 454.9721667 | BN59: =AVERAGE(BC9:BN9) -> 473.242075 | BO59: =AVERAGE(BO9:BZ9) -> 505.2629
BH61: DE | BJ61: =AVERAGE(G11:R11) -> 391.0044 | BK61: =AVERAGE(S11:AD11) -> 412.55795 | BL61: =AVERAGE(AE11:AP11) -> 424.0851333 | BM61: =AVERAGE(AQ11:BB11) -> 428.0331167 | BN61: =AVERAGE(BC11:BN11) -> 472.5226083 | BO61: =AVERAGE(BO11:BZ11) -> 512.547175
BH62: EE | BO62: =AVERAGE(BO12:BZ12) -> 255.171575
BH63: IE | BJ63: =AVERAGE(G13:R13) -> 339.68465 | BK63: =AVERAGE(S13:AD13) -> 352.7873917 | BL63: =AVERAGE(AE13:AP13) -> 359.7817917 | BM63: =AVERAGE(AQ13:BB13) -> 425.6113833 | BN63: =AVERAGE(BC13:BN13) -> 467.753875 | BO63: =AVERAGE(BO13:BZ13) -> 447.070825
BH64: ES | BJ64: =AVERAGE(G14:R14) -> 455.1859917 | BK64: =AVERAGE(S14:AD14) -> 504.022575 | BL64: =AVERAGE(AE14:AP14) -> 516.6884667 | BM64: =AVERAGE(AQ14:BB14) -> 466.3365167 | BN64: =AVERAGE(BC14:BN14) -> 514.5691667 | BO64: =AVERAGE(BO14:BZ14) -> 511.9641167
BH65: FR | BJ65: =AVERAGE(G15:R15) -> 540.142475 | BK65: =AVERAGE(S15:AD15) -> 563.4477667 | BL65: =AVERAGE(AE15:AP15) -> 581.8002667 | BM65: =AVERAGE(AQ15:BB15) -> 581.44525 | BN65: =AVERAGE(BC15:BN15) -> 610.3594833 | BO65: =AVERAGE(BO15:BZ15) -> 618.40435
BH67: NL | BJ67: =AVERAGE(G17:R17) -> 395.4681083 | BK67: =AVERAGE(S17:AD17) -> 450.8420667 | BL67: =AVERAGE(AE17:AP17) -> 457.7837667 | BM67: =AVERAGE(AQ17:BB17) -> 463.0922083 | BN67: =AVERAGE(BC17:BN17) -> 508.4210333 | BO67: =AVERAGE(BO17:BZ17) -> 540.0538667
BH68: AT | BJ68: 463.3708 | BK68: 469.6161 | BL68: 501.1326917 | BM68: 498.2747333 | BN68: 511.612025 | BO68: 527.7486667
BH69: PL | BJ69: 317.0397 | BK69: 326.6436417 | BL69: 331.0294083 | BM69: 355.5381 | BN69: 390.673825 | BO69: 398.1760833
BH70: RO | BJ70: 180.7873 | BK70: 188.3693917 | BL70: 182.8527667 | BM70: 190.0852 | BN70: 234.6991833 | BO70: 234.3190333
BH71: SE | BJ71: 346.9697833 | BK71: 349.331875 | BL71: 312.376975 | BM71: 364.0343 | BN71: 404.3868417 | BO71: 448.8913333
BH72: GB | BJ72: 345.9731833 | BK72: 373.8759583 | BL72: 404.1554417 | BM72: 455.653925 | BN72: 498.5282833 | BO72: 507.0871833
BH73: NI | BJ73: 331.3154167 | BK73: 344.7586917 | BL73: 362.0025417 | BM73: 421.5676583 | BN73: 465.2799667 | BO73: 438.6709
BH74: UK | BJ74: 344.928075 | BK74: 371.7999083 | BL74: 401.1499417 | BM74: 453.2235667 | BN74: 496.1576917 | BO74: 502.2091
BH75: EU_H | BJ75: 393.9330662 | BK75: 391.8734484 | BL75: 409.5397626 | BM75: 436.3025291 | BN75: 493.1513247 | BO75: 499.6240279
BH83: BG | BM83: =AVERAGE(AQ33:BB33) -> 540.1677 | BN83: =AVERAGE(BC33:BN33) -> 539.6845833 | BO83: =AVERAGE(BO33:BZ33) -> 558.0474833
BH84: GR | BJ84: =AVERAGE(G34:R34) -> 521.03855 | BK84: =AVERAGE(S34:AD34) -> 514.7910917 | BL84: =AVERAGE(AE34:AP34) -> 540.6230083 | BM84: =AVERAGE(AQ34:BB34) -> 543.8987167 | BN84: =AVERAGE(BC34:BN34) -> 554.5578333 | BO84: =AVERAGE(BO34:BZ34) -> 521.7390417
BH85: ES | BJ85: =AVERAGE(G35:R35) -> 606.321275 | BK85: =AVERAGE(S35:AD35) -> 657.8218 | BL85: =AVERAGE(AE35:AP35) -> 702.7922 | BM85: =AVERAGE(AQ35:BB35) -> 645.6384917 | BN85: =AVERAGE(BC35:BN35) -> 690.525875 | BO85: =AVERAGE(BO35:BZ35) -> 711.0426417
BH86: IT | BJ86: =AVERAGE(G37:R37) -> 655.41375 | BK86: =AVERAGE(S37:AD37) -> 628.6075167 | BL86: =AVERAGE(AE37:AP37) -> 612.5120583 | BM86: =AVERAGE(AQ37:BB37) -> 525.2299333 | BN86: =AVERAGE(BC37:BN37) -> 515.2307083 | BO86: =AVERAGE(BO37:BZ37) -> 605.3953
BH87: CY | BJ87: 517.0573167 | BK87: 539.3437083 | BL87: 770.9942 | BM87: 681.7272833 | BN87: 552.146 | BO87: 504.69155
BH88: HU | BJ88: 521.7008583 | BK88: 520.5678333 | BL88: 539.3003083 | BM88: 558.0390333 | BN88: 632.8043417 | BO88: 632.04155
BH89: PT | BJ89: 383.6761583 | BK89: 396.8652917 | BL89: 434.4804333 | BM89: 423.7526833 | BN89: 441.1183167 | BO89: 437.1891667
BH90: SI | BJ90: 413.6981083 | BK90: 421.6476 | BL90: 414.385475 | BM90: 407.5443333 | BN90: 403.6795 | BO90: 404.175775
BH91: SK | BJ91: 362.8800833 | BK91: 430.67965 | BL91: 379.2651667 | BM91: 377.65625 | BN91: 432.9870917 | BO91: 509.233125
BH92: EU_L | BJ92: 586.3080642 | BK92: 607.3258469 | BL92: 637.261203 | BM92: 590.0333364 | BN92: 585.9260257 | BO92: 600.0744052
